Workbook

Sheet Calculation
A2: Shear strength at surface | B2: cs | C2: 16 | D2: kN/m2
A3: Peak value for shear strength evaluated in lab | B3: clab | C3: 28 | D3: kN/m2 | E3: Factor for increasing shear strength peak | G3: 10 | H3: %
A4: Peak value for shear strength | B4: c | C4: =C3*(1+G3/100) -> 30.8 | D4: kN/m2
A5: Residual value for shear strength | B5: cR | C5: 15 | D5: kN/m2 | E5: =IF(cR<=t0,"Ok","cR too high") -> Ok
A6: Shear stress at elastic limit | B6: tel | C6: 16 | D6: kN/m2 | G6: t | H6: 0 | I6: =tel -> 16 | J6: =I6+($AB$6-$I$6)/19 -> 16.77894737 | K6: =J6+($AB$6-$I$6)/19 -> 17.55789474 | L6: =K6+($AB$6-$I$6)/19 -> 18.33684211 | M6: 19.11578947 | N6: 19.89473684 | O6: 20.67368421 | P6: 21.45263158 | Q6: 22.23157895 | R6: 23.01052632 | S6: 23.78947368 | T6: 24.56842105 | U6: 25.34736842 | V6: 26.12631579 | W6: 26.90526316 | X6: 27.68421053 | Y6: 28.46315789 | Z6: 29.24210526 | AA6: 30.02105263 | AB6: =c_peak -> 30.8 | AC6: =cR -> 15 | AD6: =AC6 -> 15
A7: Deviator strain at elastic limit | B7: gel | C7: =g_f*tel/(2*c_peak-tel) -> 0.01052631579 | G7: g | H7: 0 | I7: =gel -> 0.01052631579 | J7: =g_f-(g_f-gel)*(1-(J6-tel)/(c_peak-tel))^0.5 -> 0.01104570764 | K7: 0.01157973884 | L7: 0.01212972178 | M7: 0.01269717752 | N7: 0.01328388538 | O7: 0.0138919489 | P7: 0.01452388509 | Q7: 0.01518274806 | R7: 0.0158723046 | S7: 0.01659729134 | T7: 0.01736380509 | U7: 0.01817992199 | V7: 0.0190567342 | W7: 0.02001021078 | X7: 0.02106486089 | Y7: 0.02226194255 | Z7: 0.02368190255 | AA7: 0.02553243045 | AB7: =g_f -> 0.03 | AC7: =def_cR -> 0.2 | AD7: =def_cR+0.05 -> 0.25
A8: Deviator strain at failure limit | B8: gf | C8: 0.03 | G8: t0 | H8: =t0 -> 22.34532086 | I8: 22.34532086 | J8: 22.34532086 | K8: 22.34532086 | L8: 22.34532086 | M8: 22.34532086 | N8: 22.34532086 | O8: 22.34532086 | P8: 22.34532086 | Q8: 22.34532086 | R8: 22.34532086 | S8: 22.34532086 | T8: 22.34532086 | U8: 22.34532086 | V8: 22.34532086 | W8: 22.34532086 | X8: 22.34532086 | Y8: 22.34532086 | Z8: 22.34532086 | AA8: 22.34532086 | AB8: 22.34532086 | AC8: 22.34532086 | AD8: 22.34532086
A9: Elastic modulus at shear | B9: G | C9: =tel/gel -> 1520 | AB9: =F9 -> 0
A10: Elastic modulus | B10: Emean | C10: =G/c_peak*2*(1+0.5)*(cS+c_peak)/2 -> 3464.415584
A11: Post peak slip at z=0 when cR is reached | B11: dcR | C11: 0.2 | D11: m
A12: Density: | B12: dstart | C12: 16
B13: dgain | C13: 0
A14: Depth to slip surface | B14: H | C14: 20 | D14: m
A15: Gradient | B15: dy/dx | C15: 0.07
A16: Sensitivity ratio | B16: cR/cu | C16: =cR/c_peak -> 0.487012987
A18: Colour indication:
A19: Cells that require input
A20: to<tel
A21: to>tel
A22: t+Dt<tel | C22: Stage I
A23: tel<t+Dt<cu
A24: cu<t+Dt<cR | C24: Stage IIa
A25: t+Dt=cR | C25: Stage IIb
K26: c | S26: to | T26: cR
B28: Stage I | K28: Stage II
B29: Dx1 | C29: Dx2 | D29: Dx3 | E29: Dx4 | F29: Dx5 | G29: Dx6 | H29: Dx7 | I29: Dx8 | J29: Dx9 | K29: Dx10 | L29: Dx11 | M29: Dx12 | N29: Dx13 | O29: Dx14 | P29: Dx15 | Q29: Dx16 | R29: Dx17 | S29: Dx18 | T29: Dx19 | U29: Dx20 | V29: SDx
A30: length of Dx | B30: 36.38582606 | C30: 17.04125705 | D30: 9.5132361 | E30: 6.745262999 | F30: 5.339722181 | G30: 4.521548562 | H30: 4.022389557 | I30: 3.75001874 | J30: 6.074979337 | K30: 2.801946453 | L30: 2.524414187 | M30: 2.354619918 | N30: 2.234350286 | O30: 2.147346698 | P30: 2.084303669 | Q30: 2.039771612 | R30: 2.01321894 | S30: 1.999423415 | T30: 1.849103789e-12 | U30: 38.6100333 | V30: =SUM(Dx) -> 152.2036691
A31: Dt | B31: =0.5+((COLUMN(A1)-COLUMN($A$1))^grad)*((c_peak-$B$39)/10) -> 0.5 | C31: =((COLUMN(B1)-COLUMN($A$1))^grad)*((c_peak-$B$39)/10) -> 0.8454679136 | D31: 0.8875017744 | E31: 0.9130522229 | F31: 0.9316254193 | G31: 0.9462916994 | H31: 0.9584461514 | I31: 0.9688443102 | J31: =E39-0.001-AR39 -> 1.502449645 | K31: =IF(t0>cR,-(c_peak-t0)/9,-(c_peak-cR)/9) -> -0.9394087929 | L31: -0.9394087929 | M31: -0.9394087929 | N31: -0.9394087929 | O31: -0.9394087929 | P31: -0.9394087929 | Q31: -0.9394087929 | R31: -0.9394087929 | S31: -0.9394087929 | T31: =cR-CP39 -> -7.345320864 | U31: 0
A32: Start (length from x=0) | B32: 0 | C32: =ROUND(SUM($B$30:B30),0) -> 36 | D32: =ROUND(SUM($B$30:C30),0) -> 53 | E32: =ROUND(SUM($B$30:D30),0) -> 63 | F32: =ROUND(SUM($B$30:E30),0) -> 70 | G32: =ROUND(SUM($B$30:F30),0) -> 75 | H32: =ROUND(SUM($B$30:G30),0) -> 80 | I32: =ROUND(SUM($B$30:H30),0) -> 84 | J32: =ROUND(SUM($B$30:I30),0) -> 87 | K32: =ROUND(SUM($B$30:J30),0) -> 93 | L32: =ROUND(SUM($B$30:K30),0) -> 96 | M32: =ROUND(SUM($B$30:L30),0) -> 99 | N32: =ROUND(SUM($B$30:M30),0) -> 101 | O32: =ROUND(SUM($B$30:N30),0) -> 103 | P32: =ROUND(SUM($B$30:O30),0) -> 105 | Q32: =ROUND(SUM($B$30:P30),0) -> 108 | R32: =ROUND(SUM($B$30:Q30),0) -> 110 | S32: =ROUND(SUM($B$30:R30),0) -> 112 | T32: =ROUND(SUM($B$30:S30),0) -> 114 | U32: =ROUND(SUM($B$30:T30),0) -> 114
G35: STAGE I | AZ35: STAGE II
B36: In situ | F36: Stage II | H36: x | I36: 1 | K36: =OFFSET($B$30,0,(COLUMN(B1)-COLUMN($B$1))/5) -> 36.38582606 | M36: x | N36: =I36+1 -> 2 | P36: =OFFSET($B$30,0,(COLUMN(G1)-COLUMN($B$1))/5) -> 17.04125705 | R36: x | S36: =N36+1 -> 3 | U36: =OFFSET($B$30,0,(COLUMN(L1)-COLUMN($B$1))/5) -> 9.5132361 | W36: x | X36: =S36+1 -> 4 | Z36: =OFFSET($B$30,0,(COLUMN(Q1)-COLUMN($B$1))/5) -> 6.745262999 | AB36: x | AC36: =X36+1 -> 5 | AE36: =OFFSET($B$30,0,(COLUMN(V1)-COLUMN($B$1))/5) -> 5.339722181 | AG36: x | AH36: =AC36+1 -> 6 | AJ36: =OFFSET($B$30,0,(COLUMN(AA1)-COLUMN($B$1))/5) -> 4.521548562 | AL36: x | AM36: =AH36+1 -> 7 | AO36: =OFFSET($B$30,0,(COLUMN(AF1)-COLUMN($B$1))/5) -> 4.022389557 | AQ36: x | AR36: =AM36+1 -> 8 | AT36: =OFFSET($B$30,0,(COLUMN(AK1)-COLUMN($B$1))/5) -> 3.75001874 | AV36: x | AW36: =AR36+1 -> 9 | AY36: =OFFSET($B$30,0,(COLUMN(AP1)-COLUMN($B$1))/5) -> 6.074979337 | BA36: x | BB36: =AW36+1 -> 10 | BD36: =OFFSET($B$30,0,(COLUMN(AU1)-COLUMN($B$1))/5) -> 2.801946453 | BF36: x | BG36: =BB36+1 -> 11 | BI36: =OFFSET($B$30,0,(COLUMN(AZ1)-COLUMN($B$1))/5) -> 2.524414187 | BK36: x | BL36: =BG36+1 -> 12 | BN36: =OFFSET($B$30,0,(COLUMN(BE1)-COLUMN($B$1))/5) -> 2.354619918 | BP36: x | BQ36: =BL36+1 -> 13 | BS36: =OFFSET($B$30,0,(COLUMN(BJ1)-COLUMN($B$1))/5) -> 2.234350286 | BU36: x | BV36: =BQ36+1 -> 14 | BX36: =OFFSET($B$30,0,(COLUMN(BO1)-COLUMN($B$1))/5) -> 2.147346698 | BZ36: x | CA36: =BV36+1 -> 15 | CC36: =OFFSET($B$30,0,(COLUMN(BT1)-COLUMN($B$1))/5) -> 2.084303669 | CE36: x | CF36: =CA36+1 -> 16 | CH36: =OFFSET($B$30,0,(COLUMN(BY1)-COLUMN($B$1))/5) -> 2.039771612 | CJ36: x | CK36: =CF36+1 -> 17 | CM36: =OFFSET($B$30,0,(COLUMN(CD1)-COLUMN($B$1))/5) -> 2.01321894 | CO36: x | CP36: =CK36+1 -> 18 | CR36: =OFFSET($B$30,0,(COLUMN(CI1)-COLUMN($B$1))/5) -> 1.999423415 | CT36: x | CU36: =CP36+1 -> 19 | CW36: =OFFSET($B$30,0,(COLUMN(CN1)-COLUMN($B$1))/5) -> 1.849103789e-12 | CY36: x | CZ36: =CU36+1 -> 20 | DB36: =OFFSET($B$30,0,(COLUMN(CS1)-COLUMN($B$1))/5) -> 38.6100333
A37: start of Dx(Sx) | K37: =OFFSET($B$32,0,(COLUMN(B1)-COLUMN($B$1))*5)&" ("&ROUND($V$30,0)&")" -> 0 (152) | P37: =OFFSET($B$32,0,(COLUMN(G1)-COLUMN($B$1))/5)&" ("&ROUND($V$30,0)&")" -> 36 (152) | U37: =OFFSET($B$32,0,(COLUMN(L1)-COLUMN($B$1))/5)&" ("&ROUND($V$30,0)&")" -> 53 (152) | Z37: =OFFSET($B$32,0,(COLUMN(Q1)-COLUMN($B$1))/5)&" ("&ROUND($V$30,0)&")" -> 63 (152) | AE37: =OFFSET($B$32,0,(COLUMN(V1)-COLUMN($B$1))/5)&" ("&ROUND($V$30,0)&")" -> 70 (152) | AJ37: =OFFSET($B$32,0,(COLUMN(AA1)-COLUMN($B$1))/5)&" ("&ROUND($V$30,0)&")" -> 75 (152) | AO37: =OFFSET($B$32,0,(COLUMN(AF1)-COLUMN($B$1))/5)&" ("&ROUND($V$30,0)&")" -> 80 (152) | AT37: =OFFSET($B$32,0,(COLUMN(AK1)-COLUMN($B$1))/5)&" ("&ROUND($V$30,0)&")" -> 84 (152) | AY37: =OFFSET($B$32,0,(COLUMN(AP1)-COLUMN($B$1))/5)&" ("&ROUND($V$30,0)&")" -> 87 (152) | BD37: =OFFSET($B$32,0,(COLUMN(AU1)-COLUMN($B$1))/5)&" ("&ROUND($V$30,0)&")" -> 93 (152) | BI37: =OFFSET($B$32,0,(COLUMN(AZ1)-COLUMN($B$1))/5)&" ("&ROUND($V$30,0)&")" -> 96 (152) | BN37: =OFFSET($B$32,0,(COLUMN(BE1)-COLUMN($B$1))/5)&" ("&ROUND($V$30,0)&")" -> 99 (152) | BS37: =OFFSET($B$32,0,(COLUMN(BJ1)-COLUMN($B$1))/5)&" ("&ROUND($V$30,0)&")" -> 101 (152) | BX37: =OFFSET($B$32,0,(COLUMN(BO1)-COLUMN($B$1))/5)&" ("&ROUND($V$30,0)&")" -> 103 (152) | CC37: =OFFSET($B$32,0,(COLUMN(BT1)-COLUMN($B$1))/5)&" ("&ROUND($V$30,0)&")" -> 105 (152) | CH37: =OFFSET($B$32,0,(COLUMN(BY1)-COLUMN($B$1))/5)&" ("&ROUND($V$30,0)&")" -> 108 (152) | CM37: =OFFSET($B$32,0,(COLUMN(CD1)-COLUMN($B$1))/5)&" ("&ROUND($V$30,0)&")" -> 110 (152) | CR37: =OFFSET($B$32,0,(COLUMN(CI1)-COLUMN($B$1))/5)&" ("&ROUND($V$30,0)&")" -> 112 (152) | CW37: =OFFSET($B$32,0,(COLUMN(CN1)-COLUMN($B$1))/5)&" ("&ROUND($V$30,0)&")" -> 114 (152) | DB37: =OFFSET($B$32,0,(COLUMN(CS1)-COLUMN($B$1))/5)&" ("&ROUND($V$30,0)&")" -> 114 (152)
A38: Z från slip surface | B38: to | C38: Density | D38: tel | E38: cu | F38: tmax | G38: t | H38: Dt | I38: t+Dt | J38: g(t) | K38: d (t) | L38: t | M38: Dt | N38: t+Dt | O38: g(t) | P38: d (t) | Q38: t | R38: Dt | S38: t+Dt | T38: g(t) | U38: d (t) | V38: t | W38: Dt | X38: t+Dt | Y38: g(t) | Z38: d (t) | AA38: t | AB38: Dt | AC38: t+Dt | AD38: g(t) | AE38: d (t) | AF38: t | AG38: Dt | AH38: t+Dt | AI38: g(t) | AJ38: d (t) | AK38: t | AL38: Dt | AM38: t+Dt | AN38: g(t) | AO38: d (t) | AP38: t | AQ38: Dt | AR38: t+Dt | AS38: g(t) | AT38: d (t) | AU38: t | AV38: Dt | AW38: t+Dt | AX38: g(t) | AY38: d (t) | AZ38: t | BA38: Dt | BB38: t+Dt | BC38: g(t) | BD38: d (t) | BE38: t | BF38: Dt | BG38: t+Dt | BH38: g(t) | BI38: d (t) | BJ38: t | BK38: Dt | BL38: t+Dt | BM38: g(t) | BN38: d (t) | BO38: t | BP38: Dt | BQ38: t+Dt | BR38: g(t) | BS38: d (t) | BT38: t | BU38: Dt | BV38: t+Dt | BW38: g(t) | BX38: d (t) | BY38: t | BZ38: Dt | CA38: t+Dt | CB38: g(t) | CC38: d (t) | CD38: t | CE38: Dt | CF38: t+Dt | CG38: g(t) | CH38: d (t) | CI38: t | CJ38: Dt | CK38: t+Dt | CL38: g(t) | CM38: d (t) | CN38: t | CO38: Dt | CP38: t+Dt | CQ38: g(t) | CR38: d (t) | CS38: t | CT38: Dt | CU38: t+Dt | CV38: g(t) | CW38: d (t) | CX38: t | CY38: Dt | CZ38: t+Dt | DA38: g(t) | DB38: d (t)
A39: 0 | B39: =Density*Height*SIN(ATAN(grad)) -> 22.34532086 | C39: =$C$12+$C$13*(Height-z) -> 16 | D39: =tel*cu/c_peak -> 16 | E39: =c_peak-(c_peak-cS)*z/Height -> 30.8 | F39: =c_peak -> 30.8 | G39: =to -> 22.34532086 | H39: =B31 -> 0.5 | I39: =t+dt_z -> 22.84532086 | J39: =IF(I39<t_el,(I39-t)*gel/t_el,(IF(to>t_el,(g_f-gel)*(SQRT(1-(to-t_el)/(cu-t_el))-SQRT(1-(I39-t_el)/(cu-t_el))),(t_el-to)*gel/t_el+(g_f-gel)*(1-SQRT(ABS(1-(I39-t_el)/(cu-t_el))))))) -> 0.0004418520693 | K39: 0 | L39: =t_Dt -> 22.84532086 | M39: =C31 -> 0.8454679136 | N39: =L39+M39 -> 23.69078878 | O39: =IF(N39<t_el,(N39-t)*gel/t_el,(IF(to>t_el,(g_f-gel)*(SQRT(1-(to-t_el)/(cu-t_el))-SQRT(1-(N39-t_el)/(cu-t_el))),(t_el-to)*gel/t_el+(g_f-gel)*(1-SQRT(ABS(1-(N39-t_el)/(cu-t_el))))))) -> 0.001221865417 | P39: 0 | Q39: =N39 -> 23.69078878 | R39: =D31 -> 0.8875017744 | S39: =Q39+R39 -> 24.57829055 | T39: =IF(S39<t_el,(S39-t)*gel/t_el,(IF(to>t_el,(g_f-gel)*(SQRT(1-(to-t_el)/(cu-t_el))-SQRT(1-(S39-t_el)/(cu-t_el))),(t_el-to)*gel/t_el+(g_f-gel)*(1-SQRT(ABS(1-(S39-t_el)/(cu-t_el))))))) -> 0.002092392798 | U39: 0 | V39: =S39 -> 24.57829055 | W39: =E31 -> 0.9130522229 | X39: =V39+W39 -> 25.49134277 | Y39: =IF(X39<t_el,(X39-t)*gel/t_el,(IF(to>t_el,(g_f-gel)*(SQRT(1-(to-t_el)/(cu-t_el))-SQRT(1-(X39-t_el)/(cu-t_el))),(t_el-to)*gel/t_el+(g_f-gel)*(1-SQRT(ABS(1-(X39-t_el)/(cu-t_el))))))) -> 0.003055595157 | Z39: 0 | AA39: =X39 -> 25.49134277 | AB39: =F31 -> 0.9316254193 | AC39: =AA39+AB39 -> 26.42296819 | AD39: =IF(AC39<t_el,(AC39-t)*gel/t_el,(IF(to>t_el,(g_f-gel)*(SQRT(1-(to-t_el)/(cu-t_el))-SQRT(1-(AC39-t_el)/(cu-t_el))),(t_el-to)*gel/t_el+(g_f-gel)*(1-SQRT(ABS(1-(AC39-t_el)/(cu-t_el))))))) -> 0.004128305167 | AE39: 0 | AF39: =AC39 -> 26.42296819 | AG39: =G31 -> 0.9462916994 | AH39: =AF39+AG39 -> 27.36925989 | AI39: =IF(AH39<t_el,(AH39-t)*gel/t_el,(IF(to>t_el,(g_f-gel)*(SQRT(1-(to-t_el)/(cu-t_el))-SQRT(1-(AH39-t_el)/(cu-t_el))),(t_el-to)*gel/t_el+(g_f-gel)*(1-SQRT(ABS(1-(AH39-t_el)/(cu-t_el))))))) -> 0.005342715891 | AJ39: 0 | AK39: =AH39 -> 27.36925989 | AL39: =H31 -> 0.9584461514 | AM39: =AK39+AL39 -> 28.32770605 | AN39: =IF(AM39<t_el,(AM39-t)*gel/t_el,(IF(to>t_el,(g_f-gel)*(SQRT(1-(to-t_el)/(cu-t_el))-SQRT(1-(AM39-t_el)/(cu-t_el))),(t_el-to)*gel/t_el+(g_f-gel)*(1-SQRT(ABS(1-(AM39-t_el)/(cu-t_el))))))) -> 0.006759415683 | AO39: 0 | AP39: =AM39 -> 28.32770605 | AQ39: =I31 -> 0.9688443102 | AR39: =AP39+AQ39 -> 29.29655036 | AS39: =IF(AR39<t_el,(AR39-t)*gel/t_el,(IF(to>t_el,(g_f-gel)*(SQRT(1-(to-t_el)/(cu-t_el))-SQRT(1-(AR39-t_el)/(cu-t_el))),(t_el-to)*gel/t_el+(g_f-gel)*(1-SQRT(ABS(1-(AR39-t_el)/(cu-t_el))))))) -> 0.008511863575 | AT39: 0 | AU39: =AR39 -> 29.29655036 | AV39: =J31 -> 1.502449645 | AW39: =AU39+AV39 -> 30.799 | AX39: =IF(AW39<t_el,(AW39-t)*gel/t_el,(IF(to>t_el,(g_f-gel)*(SQRT(1-(to-t_el)/(cu-t_el))-SQRT(1-(AW39-t_el)/(cu-t_el))),(t_el-to)*gel/t_el+(g_f-gel)*(1-SQRT(ABS(1-(AW39-t_el)/(cu-t_el))))))) -> 0.01455850452 | AY39: 0 | AZ39: =c_peak -> 30.8 | BA39: =K31 -> -0.9394087929 | BB39: =AZ39+BA39 -> 29.86059121 | BC39: =IF(to>t_el,(g_f-gel)*(SQRT(1-(to-t_el)/(cu-t_el))-SQRT(1-(ABS(tmax-t_el))/(cu-t_el)))-(tmax-BB39)*gel/t_el,(t_el-to)*gel/t_el+(g_f-gel)*(1-SQRT(1-(ABS(tmax-t_el))/(cu-t_el)))+(BB39-tmax)*gel/t_el) -> 0.01410054512 | BD39: 0 | BE39: =BB39 -> 29.86059121 | BF39: =L31 -> -0.9394087929 | BG39: =BE39+BF39 -> 28.92118241 | BH39: =IF(to>t_el,(g_f-gel)*(SQRT(1-(to-t_el)/(cu-t_el))-SQRT(1-(ABS(tmax-t_el))/(cu-t_el)))-(tmax-BG39)*gel/t_el,(t_el-to)*gel/t_el+(g_f-gel)*(1-SQRT(1-(ABS(tmax-t_el))/(cu-t_el)))+(BG39-tmax)*gel/t_el) -> 0.01348251301 | BI39: 0 | BJ39: =BG39 -> 28.92118241 | BK39: =M31 -> -0.9394087929 | BL39: =BJ39+BK39 -> 27.98177362 | BM39: =IF(to>t_el,(g_f-gel)*(SQRT(1-(to-t_el)/(cu-t_el))-SQRT(1-(ABS(tmax-t_el))/(cu-t_el)))-(tmax-BL39)*gel/t_el,(t_el-to)*gel/t_el+(g_f-gel)*(1-SQRT(1-(ABS(tmax-t_el))/(cu-t_el)))+(BL39-tmax)*gel/t_el) -> 0.01286448091 | BN39: 0 | BO39: =BL39 -> 27.98177362 | BP39: =N31 -> -0.9394087929 | BQ39: =BO39+BP39 -> 27.04236483 | BR39: =IF(to>t_el,(g_f-gel)*(SQRT(1-(to-t_el)/(cu-t_el))-SQRT(1-(ABS(tmax-t_el))/(cu-t_el)))-(tmax-BQ39)*gel/t_el,(t_el-to)*gel/t_el+(g_f-gel)*(1-SQRT(1-(ABS(tmax-t_el))/(cu-t_el)))+(BQ39-tmax)*gel/t_el) -> 0.01224644881 | BS39: 0 | BT39: =BQ39 -> 27.04236483 | BU39: =O31 -> -0.9394087929 | BV39: =BT39+BU39 -> 26.10295604 | BW39: =IF(to>t_el,(g_f-gel)*(SQRT(1-(ABS(to-t_el))/(cu-t_el))-SQRT(1-(ABS(tmax-t_el))/(cu-t_el)))-(tmax-BV39)*gel/t_el,(t_el-to)*gel/t_el+(g_f-gel)*(1-SQRT(1-(ABS(tmax-t_el))/(cu-t_el)))+(BV39-tmax)*gel/t_el) -> 0.01162841671 | BX39: 0 | BY39: =BV39 -> 26.10295604 | BZ39: =P31 -> -0.9394087929 | CA39: =BY39+BZ39 -> 25.16354724 | CB39: =IF(to>t_el,(g_f-gel)*(SQRT(1-(ABS(to-t_el))/(cu-t_el))-SQRT(1-(ABS(tmax-t_el))/(cu-t_el)))-(tmax-CA39)*gel/t_el,(t_el-to)*gel/t_el+(g_f-gel)*(1-SQRT(1-(ABS(tmax-t_el))/(cu-t_el)))+(CA39-tmax)*gel/t_el) -> 0.01101038461 | CC39: 0 | CD39: =CA39 -> 25.16354724 | CE39: =Q31 -> -0.9394087929 | CF39: =CD39+CE39 -> 24.22413845 | CG39: =IF(to>t_el,(g_f-gel)*(SQRT(1-(ABS(to-t_el))/(cu-t_el))-SQRT(1-(ABS(tmax-t_el))/(cu-t_el)))-(tmax-CF39)*gel/t_el,(t_el-to)*gel/t_el+(g_f-gel)*(1-SQRT(1-(ABS(tmax-t_el))/(cu-t_el)))+(CF39-tmax)*gel/t_el) -> 0.01039235251 | CH39: 0 | CI39: =CF39 -> 24.22413845 | CJ39: =R31 -> -0.9394087929 | CK39: =CI39+CJ39 -> 23.28472966 | CL39: =IF(to>t_el,(g_f-gel)*(SQRT(1-(ABS(to-t_el))/(cu-t_el))-SQRT(1-(ABS(tmax-t_el))/(cu-t_el)))-(tmax-CK39)*gel/t_el,(t_el-to)*gel/t_el+(g_f-gel)*(1-SQRT(1-(ABS(tmax-t_el))/(cu-t_el)))+(CK39-tmax)*gel/t_el) -> 0.009774320411 | CM39: 0 | CN39: =CK39 -> 23.28472966 | CO39: =S31 -> -0.9394087929 | CP39: =CN39+CO39 -> 22.34532086 | CQ39: =IF(to>t_el,(g_f-gel)*(SQRT(1-(ABS(to-t_el))/(cu-t_el))-SQRT(1-(ABS(tmax-t_el))/(cu-t_el)))-(tmax-CP39)*gel/t_el,(t_el-to)*gel/t_el+(g_f-gel)*(1-SQRT(1-(ABS(tmax-t_el))/(cu-t_el)))+(CP39-tmax)*gel/t_el) -> 0.009156288311 | CR39: 0 | CS39: =CP39 -> 22.34532086 | CT39: =T31 -> -7.345320864 | CU39: =CS39+CT39 -> 15 | CV39: =IF(to>t_el,(g_f-gel)*(SQRT(1-(ABS(to-t_el))/(cu-t_el))-SQRT(1-(ABS(tmax-t_el))/(cu-t_el)))-(tmax-CU39)*gel/t_el,(t_el-to)*gel/t_el+(g_f-gel)*(1-SQRT(1-(ABS(tmax-t_el))/(cu-t_el)))+(CU39-tmax)*gel/t_el) -> 0.004323840374 | CW39: 0 | CX39: =CU39 -> 15 | CY39: =U31 -> 0 | CZ39: =CX39+CY39 -> 15 | DA39: =IF(to>t_el,(g_f-gel)*(SQRT(1-(ABS(to-t_el))/(cu-t_el))-SQRT(1-(ABS(tmax-t_el))/(cu-t_el)))-(tmax-CZ39)*gel/t_el,(t_el-to)*gel/t_el+(g_f-gel)*(1-SQRT(1-(ABS(tmax-t_el))/(cu-t_el)))+(CZ39-tmax)*gel/t_el) -> 0.004323840374 | DB39: 0
A40: =IF(A39<Height/3,A39+1,"") -> 1 | B40: =$B$39*(1-(z-$A$39)/Height) -> 21.22805482 | C40: 16 | D40: 15.61558442 | E40: 30.06 | F40: =$F$39*(1-(z-$A$39)/Height) -> 29.26 | G40: =$G$39*(1-(z-$A$39)/Height) -> 21.22805482 | H40: =$H$39*(1-(z-$A$39)/Height) -> 0.475 | I40: 21.70305482 | J40: 0.000415139726 | K40: =(z-$A39)*AVERAGE(J39:J40) -> 0.0004284958977 | L40: =L$39*(1-(z-$A$39)/Height) -> 21.70305482 | M40: 0.8031945179 | N40: 22.50624934 | O40: 0.001144929481 | P40: =(z-$A39)*AVERAGE(O39:O40) -> 0.001183397449 | Q40: =Q$39*(1-(z-$A$39)/Height) -> 22.50624934 | R40: 0.8431266857 | S40: =Q40+R40 -> 23.34937602 | T40: 0.001954098997 | U40: =(z-$A39)*AVERAGE(T39:T40) -> 0.002023245897 | V40: =V$39*(1-(z-$A$39)/Height) -> 23.34937602 | W40: 0.8673996118 | X40: 24.21677564 | Y40: 0.002841609607 | Z40: =(z-$A39)*AVERAGE(Y39:Y40) -> 0.002948602382 | AA40: =AA$39*(1-(z-$A$39)/Height) -> 24.21677564 | AB40: 0.8850441483 | AC40: =AA40+AB40 -> 25.10181978 | AD40: 0.003818112083 | AE40: =(z-$A39)*AVERAGE(AD39:AD40) -> 0.003973208625 | AF40: =AF$39*(1-(z-$A$39)/Height) -> 25.10181978 | AG40: 0.8989771145 | AH40: 26.0007969 | AI40: 0.004904120219 | AJ40: =(z-$A39)*AVERAGE(AI39:AI40) -> 0.005123418055 | AK40: =AK$39*(1-(z-$A$39)/Height) -> 26.0007969 | AL40: 0.9105238438 | AM40: =AK40+AL40 -> 26.91132074 | AN40: 0.006135358565 | AO40: =(z-$A39)*AVERAGE(AN39:AN40) -> 0.006447387124 | AP40: =AP$39*(1-(z-$A$39)/Height) -> 26.91132074 | AQ40: 0.9204020947 | AR40: 27.83172284 | AS40: 0.007578805766 | AT40: =(z-$A39)*AVERAGE(AS39:AS40) -> 0.00804533467 | AU40: =AU$39*(1-(z-$A$39)/Height) -> 27.83172284 | AV40: 1.427327162 | AW40: =AU40+AV40 -> 29.25905 | AX40: 0.01064177039 | AY40: =(z-$A39)*AVERAGE(AX39:AX40) -> 0.01260013745 | AZ40: =AZ$39*(1-(z-$A$39)/Height) -> 29.26 | BA40: -0.8924383532 | BB40: =AZ40+BA40 -> 28.36756165 | BC40: 0.01004290656 | BD40: =(z-$A39)*AVERAGE(BC39:BC40) -> 0.01207172584 | BE40: =BE$39*(1-(z-$A$39)/Height) -> 28.36756165 | BF40: -0.8924383532 | BG40: 27.47512329 | BH40: 0.009441322416 | BI40: =(z-$A39)*AVERAGE(BH39:BH40) -> 0.01146191772 | BJ40: =BJ$39*(1-(z-$A$39)/Height) -> 27.47512329 | BK40: -0.8924383532 | BL40: =BJ40+BK40 -> 26.58268494 | BM40: 0.008839738276 | BN40: =(z-$A39)*AVERAGE(BM39:BM40) -> 0.01085210959 | BO40: =BO$39*(1-(z-$A$39)/Height) -> 26.58268494 | BP40: -0.8924383532 | BQ40: 25.69024659 | BR40: 0.008238154135 | BS40: =(z-$A39)*AVERAGE(BR39:BR40) -> 0.01024230147 | BT40: =BT$39*(1-(z-$A$39)/Height) -> 25.69024659 | BU40: -0.8924383532 | BV40: =BT40+BU40 -> 24.79780823 | BW40: 0.007636569995 | BX40: =(z-$A39)*AVERAGE(BW39:BW40) -> 0.009632493354 | BY40: =BY$39*(1-(z-$A$39)/Height) -> 24.79780823 | BZ40: -0.8924383532 | CA40: 23.90536988 | CB40: 0.007034985854 | CC40: =(z-$A39)*AVERAGE(CB39:CB40) -> 0.009022685233 | CD40: =CD$39*(1-(z-$A$39)/Height) -> 23.90536988 | CE40: -0.8924383532 | CF40: =CD40+CE40 -> 23.01293153 | CG40: 0.006433401714 | CH40: =(z-$A39)*AVERAGE(CG39:CG40) -> 0.008412877113 | CI40: =CI$39*(1-(z-$A$39)/Height) -> 23.01293153 | CJ40: -0.8924383532 | CK40: 22.12049317 | CL40: 0.005831817573 | CM40: =(z-$A39)*AVERAGE(CL39:CL40) -> 0.007803068992 | CN40: =CN$39*(1-(z-$A$39)/Height) -> 22.12049317 | CO40: -0.8924383532 | CP40: =CN40+CO40 -> 21.22805482 | CQ40: 0.005230233433 | CR40: =(z-$A39)*AVERAGE(CQ39:CQ40) -> 0.007193260872 | CS40: =CS$39*(1-(z-$A$39)/Height) -> 21.22805482 | CT40: -6.978054821 | CU40: =CS40+CT40 -> 14.25 | CV40: 0.0005263935581 | CW40: =(z-$A39)*AVERAGE(CV39:CV40) -> 0.002425116966 | CX40: =CX$39*(1-(z-$A$39)/Height) -> 14.25 | CY40: 0 | CZ40: =CX40+CY40 -> 14.25 | DA40: 0.0005263935581 | DB40: =(z-$A39)*AVERAGE(DA39:DA40) -> 0.002425116966
A41: 2 | B41: 20.11078878 | C41: 16 | D41: 15.23116883 | E41: 29.32 | F41: 27.72 | G41: 20.11078878 | H41: 0.45 | I41: 20.56078878 | J41: 0.0003894818628 | K41: 0.0004023107944 | L41: 20.56078878 | M41: 0.7609211222 | N41: 21.3217099 | O41: 0.001071573414 | P41: 0.001108251447 | Q41: 21.3217099 | R41: 0.7987515969 | S41: 22.1204615 | T41: 0.001823484901 | U41: 0.001888791949 | V41: 22.1204615 | W41: 0.8217470006 | X41: 22.9422085 | Y41: 0.002641998152 | Z41: 0.00274180388 | AA41: 22.9422085 | AB41: 0.8384628774 | AC41: 23.78067137 | AD41: 0.003533583773 | AE41: 0.003675847928 | AF41: 23.78067137 | AG41: 0.8516625295 | AH41: 24.6323339 | AI41: 0.004511421124 | AJ41: 0.004707770671 | AK41: 24.6323339 | AL41: 0.8626015363 | AM41: 25.49493544 | AN41: 0.00559742405 | AO41: 0.005866391308 | AP41: 25.49493544 | AQ41: 0.8719598792 | AR41: 26.36689532 | AS41: 0.006828656218 | AT41: 0.007203730992 | AU41: 26.36689532 | AV41: 1.35220468 | AW41: 27.7191 | AX41: 0.009179880339 | AY41: 0.009910825365 | AZ41: 27.72 | BA41: -0.8454679136 | BB41: 26.87453209 | BC41: 0.008597419859 | BD41: 0.009320163208 | BE41: 26.87453209 | BF41: -0.8454679136 | BG41: 26.02906417 | BH41: 0.008013113931 | BI41: 0.008727218173 | BJ41: 26.02906417 | BK41: -0.8454679136 | BL41: 25.18359626 | BM41: 0.007428808002 | BN41: 0.008134273139 | BO41: 25.18359626 | BP41: -0.8454679136 | BQ41: 24.33812835 | BR41: 0.006844502073 | BS41: 0.007541328104 | BT41: 24.33812835 | BU41: -0.8454679136 | BV41: 23.49266043 | BW41: 0.006260196145 | BX41: 0.00694838307 | BY41: 23.49266043 | BZ41: -0.8454679136 | CA41: 22.64719252 | CB41: 0.005675890216 | CC41: 0.006355438035 | CD41: 22.64719252 | CE41: -0.8454679136 | CF41: 21.8017246 | CG41: 0.005091584287 | CH41: 0.005762493 | CI41: 21.8017246 | CJ41: -0.8454679136 | CK41: 20.95625669 | CL41: 0.004507278359 | CM41: 0.005169547966 | CN41: 20.95625669 | CO41: -0.8454679136 | CP41: 20.11078878 | CQ41: 0.00392297243 | CR41: 0.004576602931 | CS41: 20.11078878 | CT41: -6.610788778 | CU41: 13.5 | CV41: -0.0006457675704 | CW41: -5.968700614e-05 | CX41: 13.5 | CY41: 0 | CZ41: 13.5 | DA41: -0.0006457675704 | DB41: -5.968700614e-05
A42: 3 | B42: 18.99352273 | C42: 16 | D42: 14.84675325 | E42: 28.58 | F42: 26.18 | G42: 18.99352273 | H42: 0.425 | I42: 19.41852273 | J42: 0.0003647425254 | K42: 0.0003771121941 | L42: 19.41852273 | M42: 0.7186477266 | N42: 20.13717046 | O42: 0.001001308804 | P42: 0.001036441109 | Q42: 20.13717046 | R42: 0.7543765082 | S42: 20.89154697 | T42: 0.001699411057 | U42: 0.001761447979 | V42: 20.89154697 | W42: 0.7760943895 | X42: 21.66764136 | Y42: 0.00245437481 | Z42: 0.002548186481 | AA42: 21.66764136 | AB42: 0.7918816064 | AC42: 22.45952297 | AD42: 0.003269807289 | AE42: 0.003401695531 | AF42: 22.45952297 | AG42: 0.8043479445 | AH42: 23.26387091 | AI42: 0.004154130276 | AJ42: 0.0043327757 | AK42: 23.26387091 | AL42: 0.8146792287 | AM42: 24.07855014 | AN42: 0.005121084114 | AO42: 0.005359254082 | AP42: 24.07855014 | AQ42: 0.8235176637 | AR42: 24.9020678 | AS42: 0.006192385307 | AT42: 0.006510520762 | AU42: 24.9020678 | AV42: 1.277082198 | AW42: 26.17915 | AX42: 0.008127888087 | AY42: 0.008653884213 | AZ42: 26.18 | BA42: -0.798497474 | BB42: 25.38150253 | BC42: 0.007563196586 | BD42: 0.008080308223 | BE42: 25.38150253 | BF42: -0.798497474 | BG42: 24.58300505 | BH42: 0.006997063612 | BI42: 0.007505088771 | BJ42: 24.58300505 | BK42: -0.798497474 | BL42: 23.78450758 | BM42: 0.006430930638 | BN42: 0.00692986932 | BO42: 23.78450758 | BP42: -0.798497474 | BQ42: 22.9860101 | BR42: 0.005864797664 | BS42: 0.006354649869 | BT42: 22.9860101 | BU42: -0.798497474 | BV42: 22.18751263 | BW42: 0.005298664691 | BX42: 0.005779430418 | BY42: 22.18751263 | BZ42: -0.798497474 | CA42: 21.38901516 | CB42: 0.004732531717 | CC42: 0.005204210966 | CD42: 21.38901516 | CE42: -0.798497474 | CF42: 20.59051768 | CG42: 0.004166398743 | CH42: 0.004628991515 | CI42: 20.59051768 | CJ42: -0.798497474 | CK42: 19.79202021 | CL42: 0.003600265769 | CM42: 0.004053772064 | CN42: 19.79202021 | CO42: -0.798497474 | CP42: 18.99352273 | CQ42: 0.003034132795 | CR42: 0.003478552612 | CS42: 18.99352273 | CT42: -6.243522734 | CU42: 12.75 | CV42: -0.001392511256 | CW42: -0.001019139413 | CX42: 12.75 | CY42: 0 | CZ42: 12.75 | DA42: -0.001392511256 | DB42: -0.001019139413
A43: 4 | B43: 17.87625669 | C43: 16 | D43: 14.46233766 | E43: 27.84 | F43: 24.64 | G43: 17.87625669 | H43: 0.4 | I43: 18.27625669 | J43: 0.0003408023723 | K43: 0.0003527724488 | L43: 18.27625669 | M43: 0.6763743309 | N43: 18.95263102 | O43: 0.000933716554 | P43: 0.0009675126789 | Q43: 18.95263102 | R43: 0.7100014195 | S43: 19.66263244 | T43: 0.001580928418 | U43: 0.001640169738 | V43: 19.66263244 | W43: 0.7304417783 | X43: 20.39307422 | Y43: 0.002276828953 | Z43: 0.002365601881 | AA43: 20.39307422 | AB43: 0.7453003354 | AC43: 21.13837456 | AD43: 0.003023052821 | AE43: 0.003146430055 | AF43: 21.13837456 | AG43: 0.7570333595 | AH43: 21.89540791 | AI43: 0.003824864731 | AJ43: 0.003989497504 | AK43: 21.89540791 | AL43: 0.7667569211 | AM43: 22.66216484 | AN43: 0.004690947472 | AO43: 0.004906015793 | AP43: 22.66216484 | AQ43: 0.7750754482 | AR43: 23.43724028 | AS43: 0.005634458388 | AT43: 0.005913421848 | AU43: 23.43724028 | AV43: 1.201959716 | AW43: 24.6392 | AX43: 0.007280701222 | AY43: 0.007704294655 | AZ43: 24.64 | BA43: -0.7515270343 | BB43: 23.88847297 | BC43: 0.006734897757 | BD43: 0.007149047172 | BE43: 23.88847297 | BF43: -0.7515270343 | BG43: 23.13694593 | BH43: 0.006187903829 | BI43: 0.006592483721 | BJ43: 23.13694593 | BK43: -0.7515270343 | BL43: 22.3854189 | BM43: 0.005640909901 | BN43: 0.00603592027 | BO43: 22.3854189 | BP43: -0.7515270343 | BQ43: 21.63389186 | BR43: 0.005093915973 | BS43: 0.005479356819 | BT43: 21.63389186 | BU43: -0.7515270343 | BV43: 20.88236483 | BW43: 0.004546922045 | BX43: 0.004922793368 | BY43: 20.88236483 | BZ43: -0.7515270343 | CA43: 20.13083779 | CB43: 0.003999928117 | CC43: 0.004366229917 | CD43: 20.13083779 | CE43: -0.7515270343 | CF43: 19.37931076 | CG43: 0.003452934188 | CH43: 0.003809666466 | CI43: 19.37931076 | CJ43: -0.7515270343 | CK43: 18.62778373 | CL43: 0.00290594026 | CM43: 0.003253103015 | CN43: 18.62778373 | CO43: -0.7515270343 | CP43: 17.87625669 | CQ43: 0.002358946332 | CR43: 0.002696539564 | CS43: 17.87625669 | CT43: -5.876256691 | CU43: 12 | CV43: -0.001918047819 | CW43: -0.001655279538 | CX43: 12 | CY43: 0 | CZ43: 12 | DA43: -0.001918047819 | DB43: -0.001655279538
A44: 5 | B44: 16.75899065 | C44: 16 | D44: 14.07792208 | E44: 27.1 | F44: 23.1 | G44: 16.75899065 | H44: 0.375 | I44: 17.13399065 | J44: 0.0003175555289 | K44: 0.0003291789506 | L44: 17.13399065 | M44: 0.6341009352 | N44: 17.76809158 | O44: 0.000868432712 | P44: 0.000901074633 | Q44: 17.76809158 | R44: 0.6656263308 | S44: 18.43371791 | T44: 0.001467234847 | U44: 0.001524081633 | V44: 18.43371791 | W44: 0.6847891672 | X44: 19.11850708 | Y44: 0.002107800539 | Z44: 0.002192314746 | AA44: 19.11850708 | AB44: 0.6987190645 | AC44: 19.81722615 | AD44: 0.00279040864 | AE44: 0.002906730731 | AF44: 19.81722615 | AG44: 0.7097187746 | AH44: 20.52694492 | AI44: 0.00351819781 | AJ44: 0.003671531271 | AK44: 20.52694492 | AL44: 0.7188346136 | AM44: 21.24577953 | AN44: 0.004296621172 | AO44: 0.004493784322 | AP44: 21.24577953 | AQ44: 0.7266332327 | AR44: 21.97241277 | AS44: 0.005133782932 | AT44: 0.00538412066 | AU44: 21.97241277 | AV44: 1.126837234 | AW44: 23.09925 | AX44: 0.006559687112 | AY44: 0.006920194167 | AZ44: 23.1 | BA44: -0.7045565947 | BB44: 22.39544341 | BC44: 0.006033889248 | BD44: 0.006384393503 | BE44: 22.39544341 | BF44: -0.7045565947 | BG44: 21.69088681 | BH44: 0.005507079598 | BI44: 0.005847491713 | BJ44: 21.69088681 | BK44: -0.7045565947 | BL44: 20.98633022 | BM44: 0.004980269947 | BN44: 0.005310589924 | BO44: 20.98633022 | BP44: -0.7045565947 | BQ44: 20.28177362 | BR44: 0.004453460297 | BS44: 0.004773688135 | BT44: 20.28177362 | BU44: -0.7045565947 | BV44: 19.57721703 | BW44: 0.003926650647 | BX44: 0.004236786346 | BY44: 19.57721703 | BZ44: -0.7045565947 | CA44: 18.87266043 | CB44: 0.003399840996 | CC44: 0.003699884556 | CD44: 18.87266043 | CE44: -0.7045565947 | CF44: 18.16810384 | CG44: 0.002873031346 | CH44: 0.003162982767 | CI44: 18.16810384 | CJ44: -0.7045565947 | CK44: 17.46354724 | CL44: 0.002346221696 | CM44: 0.002626080978 | CN44: 17.46354724 | CO44: -0.7045565947 | CP44: 16.75899065 | CQ44: 0.001819412045 | CR44: 0.002089179189 | CS44: 16.75899065 | CT44: -5.508990648 | CU44: 11.25 | CV44: -0.002299759443 | CW44: -0.002108903631 | CX44: 11.25 | CY44: 0 | CZ44: 11.25 | DA44: -0.002299759443 | DB44: -0.002108903631
A45: 6 | B45: 15.6417246 | C45: 16 | D45: 13.69350649 | E45: 26.36 | F45: 21.56 | G45: 15.6417246 | H45: 0.35 | I45: 15.9917246 | J45: 0.0002949070479 | K45: 0.0003062312884 | L45: 15.9917246 | M45: 0.5918275395 | N45: 16.58355214 | O45: 0.0008051374251 | P45: 0.0008367850686 | Q45: 16.58355214 | R45: 0.6212512421 | S45: 17.20480339 | T45: 0.001357642798 | U45: 0.001412438822 | V45: 17.20480339 | W45: 0.639136556 | X45: 17.84393994 | Y45: 0.001945993008 | Z45: 0.002026896774 | AA45: 17.84393994 | AB45: 0.6521377935 | AC45: 18.49607774 | AD45: 0.002569546447 | AE45: 0.002679977544 | AF45: 18.49607774 | AG45: 0.6624041896 | AH45: 19.15848193 | AI45: 0.00322999973 | AJ45: 0.00337409877 | AK45: 19.15848193 | AL45: 0.670912306 | AM45: 19.82939423 | AN45: 0.003930698774 | AO45: 0.004113659973 | AP45: 19.82939423 | AQ45: 0.6781910172 | AR45: 20.50758525 | AS45: 0.00467664355 | AT45: 0.004905213241 | AU45: 20.50758525 | AV45: 1.051714751 | AW45: 21.5593 | AX45: 0.005924876461 | AY45: 0.006242281787 | AZ45: 21.56 | BA45: -0.657586155 | BB45: 20.90241384 | BC45: 0.00542025843 | BD45: 0.005727073839 | BE45: 20.90241384 | BF45: -0.657586155 | BG45: 20.24482769 | BH45: 0.004914766317 | BI45: 0.005210922957 | BJ45: 20.24482769 | BK45: -0.657586155 | BL45: 19.58724153 | BM45: 0.004409274204 | BN45: 0.004694772076 | BO45: 19.58724153 | BP45: -0.657586155 | BQ45: 18.92965538 | BR45: 0.003903782092 | BS45: 0.004178621194 | BT45: 18.92965538 | BU45: -0.657586155 | BV45: 18.27206922 | BW45: 0.003398289979 | BX45: 0.003662470313 | BY45: 18.27206922 | BZ45: -0.657586155 | CA45: 17.61448307 | CB45: 0.002892797866 | CC45: 0.003146319431 | CD45: 17.61448307 | CE45: -0.657586155 | CF45: 16.95689691 | CG45: 0.002387305754 | CH45: 0.00263016855 | CI45: 16.95689691 | CJ45: -0.657586155 | CK45: 16.29931076 | CL45: 0.001881813641 | CM45: 0.002114017668 | CN45: 16.29931076 | CO45: -0.657586155 | CP45: 15.6417246 | CQ45: 0.001376321529 | CR45: 0.001597866787 | CS45: 15.6417246 | CT45: -5.141724605 | CU45: 10.5 | CV45: -0.002576166238 | CW45: -0.00243796284 | CX45: 10.5 | CY45: 0 | CZ45: 10.5 | DA45: -0.002576166238 | DB45: -0.00243796284
A46: 6.67 | B46: 14.89315636 | C46: 16 | D46: 13.43594805 | E46: 25.8642 | F46: 20.5282 | G46: 14.89315636 | H46: 0.33325 | I46: 15.22640636 | J46: 0.0002800241398 | K46: 0.0001926019479 | L46: 15.22640636 | M46: 0.5635043644 | N46: 15.78991072 | O46: 0.0007636991962 | P46: 0.0005255602681 | Q46: 15.78991072 | R46: 0.5915199326 | S46: 16.38143065 | T46: 0.001286210145 | U46: 0.0008856907358 | V46: 16.38143065 | W46: 0.6085493066 | X46: 16.98997996 | Y46: 0.001841069393 | Z46: 0.001268665904 | AA46: 16.98997996 | AB46: 0.620928342 | AC46: 17.6109083 | AD46: 0.002427199233 | AE46: 0.001673909803 | AF46: 17.6109083 | AG46: 0.6307034177 | AH46: 18.24161172 | AI46: 0.003045600129 | AJ46: 0.002102325953 | AK46: 18.24161172 | AL46: 0.6388043599 | AM46: 18.88041608 | AN46: 0.003698623464 | AO46: 0.00255582295 | AP46: 18.88041608 | AQ46: 0.6457347328 | AR46: 19.52615081 | AS46: 0.004389861957 | AT46: 0.003037279345 | AU46: 19.52615081 | AV46: 1.001382688 | AW46: 20.5275335 | AX46: 0.005535653267 | AY46: 0.003839277459 | AZ46: 20.5282 | BA46: -0.6261159605 | BB46: 19.90208404 | BC46: 0.005045923217 | BD46: 0.003506170852 | BE46: 19.90208404 | BF46: -0.6261159605 | BG46: 19.27596808 | BH46: 0.004555396289 | BI46: 0.003172504473 | BJ46: 19.27596808 | BK46: -0.6261159605 | BL46: 18.64985212 | BM46: 0.004064869361 | BN46: 0.002838838094 | BO46: 18.64985212 | BP46: -0.6261159605 | BQ46: 18.02373616 | BR46: 0.003574342433 | BS46: 0.002505171716 | BT46: 18.02373616 | BU46: -0.6261159605 | BV46: 17.3976202 | BW46: 0.003083815505 | BX46: 0.002171505337 | BY46: 17.3976202 | BZ46: -0.6261159605 | CA46: 16.77150424 | CB46: 0.002593288578 | CC46: 0.001837838959 | CD46: 16.77150424 | CE46: -0.6261159605 | CF46: 16.14538828 | CG46: 0.00210276165 | CH46: 0.00150417258 | CI46: 16.14538828 | CJ46: -0.6261159605 | CK46: 15.51927232 | CL46: 0.001612234722 | CM46: 0.001170506202 | CN46: 15.51927232 | CO46: -0.6261159605 | CP46: 14.89315636 | CQ46: 0.001121707794 | CR46: 0.0008368398231 | CS46: 14.89315636 | CT46: -4.895656356 | CU46: 9.9975 | CV46: -0.002713765862 | CW46: -0.001772127253 | CX46: 9.9975 | CY46: 0 | CZ46: 9.9975 | DA46: -0.002713765862 | DB46: -0.001772127253
BB48: d (x) | BC48: =def_cR*($E$39-BB$39)/($E$39-cR) -> 0.01189125054 | BG48: d (x) | BH48: =def_cR*($E$39-BG$39)/($E$39-cR) -> 0.02378250109 | BL48: d (x) | BM48: =def_cR*($E$39-BL$39)/($E$39-cR) -> 0.03567375163 | BQ48: d (x) | BR48: =def_cR*($E$39-BQ$39)/($E$39-cR) -> 0.04756500217 | BV48: d (x) | BW48: =def_cR*($E$39-BV$39)/($E$39-cR) -> 0.05945625271 | CA48: d (x) | CB48: =def_cR*($E$39-CA$39)/($E$39-cR) -> 0.07134750326 | CF48: d (x) | CG48: =def_cR*($E$39-CF$39)/($E$39-cR) -> 0.0832387538 | CK48: d (x) | CL48: =def_cR*($E$39-CK$39)/($E$39-cR) -> 0.09513000434 | CP48: d (x) | CQ48: =def_cR*($E$39-CP$39)/($E$39-cR) -> 0.1070212549 | CU48: d (x) | CV48: =def_cR*($E$39-CU$39)/($E$39-cR) -> 0.2 | CZ48: d (x) | DA48: =def_cR*($E$39-CZ$39)/($E$39-cR) -> 0.2
BB49: d (slip) | BC49: =IF((BB39-cR)<1,IF((BC53-BC48-SUM(BD39:BD46))<0,BC53-BC48-SUM(BD39:BD46),0),0) -> 0 | BG49: d (slip) | BH49: =IF((BG39-cR)<1,IF((BH53-BH48-SUM(BI39:BI46))<0,BH53-BH48-SUM(BI39:BI46),0),0) -> 0 | BL49: d (slip) | BM49: =IF((BL39-cR)<1,IF((BM53-BM48-SUM(BN39:BN46))<0,BM53-BM48-SUM(BN39:BN46),0),0) -> 0 | BQ49: d (slip) | BR49: =IF((BQ39-cR)<1,IF((BR53-BR48-SUM(BS39:BS46))<0,BR53-BR48-SUM(BS39:BS46),0),0) -> 0 | BV49: d (slip) | BW49: =IF((BV39-cR)<1,IF((BW53-BW48-SUM(BX39:BX46))<0,BW53-BW48-SUM(BX39:BX46),0),0) -> 0 | CA49: d (slip) | CB49: =IF((CA39-cR)<1,IF((CB53-CB48-SUM(CC39:CC46))<0,CB53-CB48-SUM(CC39:CC46),0),0) -> 0 | CF49: d (slip) | CG49: =IF((CF39-cR)<1,IF((CG53-CG48-SUM(CH39:CH46))<0,CG53-CG48-SUM(CH39:CH46),0),0) -> 0 | CK49: d (slip) | CL49: =IF((CK39-cR)<1,IF((CL53-CL48-SUM(CM39:CM46))<0,CL53-CL48-SUM(CM39:CM46),0),0) -> 0 | CP49: d (slip) | CQ49: =IF((CP39-cR)<1,IF((CQ53-CQ48-SUM(CR39:CR46))<0,CQ53-CQ48-SUM(CR39:CR46),0),0) -> 0 | CU49: d (slip) | CV49: =IF((CU39-cR)<=1,IF((CV53-CV48-SUM(CW39:CW46))<0,CV53-CV48-SUM(CW39:CW46),0),0) -> -0.06388172417 | CZ49: d (slip) | DA49: =DA53-SUM(DB39:DB46)-DA48 -> 0.01513570887
A50: D N | I50: D N | J50: =(((I39+G39)/2)-$B$39)*$B$30 -> 9.096456515 | N50: D N | O50: =(((N39+L39)/2)-$B$39)*C30 -> 15.72454655 | S50: D N | T50: =(((S39+Q39)/2)-$B$39)*D30 -> 17.02126089 | X50: D N | Y50: =(((X39+V39)/2)-$B$39)*E30 -> 18.1413565 | AC50: D N | AD50: =(((AC39+AA39)/2)-$B$39)*F30 -> 19.28619344 | AH50: D N | AI50: =(((AH39+AF39)/2)-$B$39)*G30 -> 20.57663236 | AM50: D N | AN50: =(((AM39+AK39)/2)-$B$39)*H30 -> 22.13586178 | AR50: D N | AS50: =(((AR39+AP39)/2)-$B$39)*I30 -> 24.2506487 | AW50: D N | AX50: =(((AW39+AU39)/2)-$B$39)*J30 -> 46.7922508 | BB50: D N | BC50: =(((BB39+AZ39)/2)-$B$39)*K30 -> 22.37347164 | BG50: D N | BH50: =(((BG39+BE39)/2)-$B$39)*L30 -> 17.78592663 | BL50: D N | BM50: =(((BL39+BJ39)/2)-$B$39)*M30 -> 14.37767926 | BQ50: D N | BR50: =(((BQ39+BO39)/2)-$B$39)*N30 -> 11.54432568 | BV50: D N | BW50: =(((BV39+BT39)/2)-$B$39)*O30 -> 9.077563662 | CA50: D N | CB50: =(((CA39+BY39)/2)-$B$39)*P30 -> 6.853046178 | CF50: D N | CG50: =(((CF39+CD39)/2)-$B$39)*Q30 -> 4.79044847 | CK50: D N | CL50: =(((CK39+CI39)/2)-$B$39)*R30 -> 2.836853361 | CP50: D N | CQ50: =(((CP39+CN39)/2)-$B$39)*S30 -> 0.9391379683 | CU50: D N | CV50: =(((CU39+CS39)/2)-$B$39)*T30 -> -6.791130319e-12 | CZ50: D N | DA50: =(((CZ39+CX39)/2)-$B$39)*U30 -> -283.6030832
A51: SD N | I51: SD N | J51: =J50 -> 9.096456515 | N51: SD N | O51: =O50+J51 -> 24.82100306 | S51: SD N | T51: =T50+O51 -> 41.84226395 | X51: SD N | Y51: =Y50+T51 -> 59.98362045 | AC51: SD N | AD51: =AD50+Y51 -> 79.26981389 | AH51: SD N | AI51: =AI50+AD51 -> 99.84644625 | AM51: SD N | AN51: =AN50+AI51 -> 121.982308 | AR51: SD N | AS51: =AS50+AN51 -> 146.2329567 | AW51: SD N | AX51: =AX50+AS51 -> 193.0252075 | BB51: SD N | BC51: =AX51+BC50 -> 215.3986792 | BG51: SD N | BH51: =BC51+BH50 -> 233.1846058 | BL51: SD N | BM51: =BM50+BH51 -> 247.5622851 | BQ51: SD N | BR51: =BR50+BM51 -> 259.1066107 | BV51: SD N | BW51: =BW50+BR51 -> 268.1841744 | CA51: SD N | CB51: =CB50+BW51 -> 275.0372206 | CF51: SD N | CG51: =CG50+CB51 -> 279.8276691 | CK51: SD N | CL51: =CL50+CG51 -> 282.6645224 | CP51: SD N | CQ51: =CQ50+CL51 -> 283.6036604 | CU51: SD N | CV51: =CV50+CQ51 -> 283.6036604 | CZ51: SD N | DA51: =DA50+CV51 -> 0.0005772127537
A52: d (N) | I52: d (N) | J52: =(J50+0)/2*B30/Emean/Height -> 0.002388440968 | N52: d (N) | O52: =(J51+O50/2)*C30/Emean/Height -> 0.004170949855 | S52: d (N) | T52: =(O51+T50/2)*D30/Emean/Height -> 0.004576409663 | X52: d (N) | Y52: =(T51+Y50/2)*E30/Emean/Height -> 0.004956408618 | AC52: d (N) | AD52: =(Y51+AD50/2)*F30/Emean/Height -> 0.00536580149 | AH52: d (N) | AI52: =(AD51+AI50/2)*G30/Emean/Height -> 0.005844296453 | AM52: d (N) | AN52: =(AI51+AN50/2)*H30/Emean/Height -> 0.006438904651 | AR52: d (N) | AS52: =(AN51+AS50/2)*I30/Emean/Height -> 0.00725816696 | AW52: d (N) | AX52: =(AS51+AX50/2)*J30/Emean/Height -> 0.01487253974 | BB52: d (N) | BC52: =(AX51+BC50/2)*K30/Emean/Height -> 0.008258116215 | BG52: d (N) | BH52: =(BC51+BH50/2)*L30/Emean/Height -> 0.008171724647 | BL52: d (N) | BM52: =(BH51+BM50/2)*M30/Emean/Height -> 0.00816859422 | BQ52: d (N) | BR52: =(BM51+BR50/2)*N30/Emean/Height -> 0.008169312866 | BV52: d (N) | BW52: =(BR51+BW50/2)*O30/Emean/Height -> 0.008170758522 | CA52: d (N) | CB52: =(BW51+CB50/2)*P30/Emean/Height -> 0.008170485895 | CF52: d (N) | CG52: =(CB51+CG50/2)*Q30/Emean/Height -> 0.008167305733 | CK52: d (N) | CL52: =(CG51+CL50/2)*R30/Emean/Height -> 0.008171796266 | CP52: d (N) | CQ52: =(CL51+CQ50/2)*S30/Emean/Height -> 0.008170280356 | CU52: d (N) | CV52: =(CQ51+CV50/2)*T30/Emean/Height -> 7.568557959e-15 | CZ52: d (N) | DA52: =(CV51+DA50/2)*U30/Emean/Height -> 0.07901743304
A53: S d (N) | I53: S d (N) | J53: =J52 -> 0.002388440968 | N53: S d (N) | O53: =O52+J53 -> 0.006559390823 | S53: S d (N) | T53: =T52+O53 -> 0.01113580049 | X53: S d (N) | Y53: =Y52+T53 -> 0.0160922091 | AC53: S d (N) | AD53: =AD52+Y53 -> 0.02145801059 | AH53: S d (N) | AI53: =AI52+AD53 -> 0.02730230705 | AM53: S d (N) | AN53: =AN52+AI53 -> 0.0337412117 | AR53: S d (N) | AS53: =AS52+AN53 -> 0.04099937866 | AW53: S d (N) | AX53: =AX52+AS53 -> 0.05587191839 | BB53: S d (N) | BC53: =BC52+AX53 -> 0.06413003461 | BG53: S d (N) | BH53: =BH52+BC53 -> 0.07230175926 | BL53: S d (N) | BM53: =BM52+BH53 -> 0.08047035348 | BQ53: S d (N) | BR53: =BR52+BM53 -> 0.08863966634 | BV53: S d (N) | BW53: =BW52+BR53 -> 0.09681042486 | CA53: S d (N) | CB53: =CB52+BW53 -> 0.1049809108 | CF53: S d (N) | CG53: =CG52+CB53 -> 0.1131482165 | CK53: S d (N) | CL53: =CL52+CG53 -> 0.1213200128 | CP53: S d (N) | CQ53: =CQ52+CL53 -> 0.1294902931 | CU53: S d (N) | CV53: =CV52+CQ53 -> 0.1294902931 | CZ53: S d (N) | DA53: =DA52+CV53 -> 0.2085077262
A54: S d (t) | I54: S d (t) | J54: =SUM(def) -> 0.002388703522 | N54: S d (t) | O54: =SUM(P39:P49) -> 0.006559022654 | S54: S d (t) | T54: =SUM(U39:U49) -> 0.01113586675 | X54: S d (t) | Y54: =SUM(Z39:Z49) -> 0.01609207205 | AC54: S d (t) | AD54: =SUM(AE39:AE49) -> 0.02145780022 | AH54: S d (t) | AI54: =SUM(AJ39:AJ49) -> 0.02730141792 | AM54: S d (t) | AN54: =SUM(AO39:AO49) -> 0.03374231555 | AR54: S d (t) | AS54: =SUM(AT39:AT49) -> 0.04099962152 | AW54: S d (t) | AX54: =SUM(AY39:AY49) -> 0.0558708951 | BB54: S d (t) | BC54: =SUM(BD39:BD47)+BC48+BC49 -> 0.06413013317 | BG54: S d (t) | BH54: =SUM(BI39:BI47)+BH48+BH49 -> 0.07230012861 | BL54: S d (t) | BM54: =SUM(BN39:BN47)+BM48+BM49 -> 0.08047012405 | BQ54: S d (t) | BR54: =SUM(BS39:BS47)+BR48+BR49 -> 0.08864011948 | BV54: S d (t) | BW54: =SUM(BX39:BX47)+BW48+BW49 -> 0.09681011492 | CA54: S d (t) | CB54: =SUM(CC39:CC47)+CB48+CB49 -> 0.1049801104 | CF54: S d (t) | CG54: =SUM(CH39:CH47)+CG48+CG49 -> 0.1131501058 | CK54: S d (t) | CL54: =SUM(CM39:CM47)+CL48+CL49 -> 0.1213201012 | CP54: S d (t) | CQ54: =SUM(CR39:CR47)+CQ48+CQ49 -> 0.1294900967 | CU54: S d (t) | CV54: =SUM(CW39:CW47)+CV48+CV49 -> 0.1294902931 | CZ54: S d (t) | DA54: =SUM(DB39:DB47)+DA48+DA49 -> 0.2085077262
A55: Difference | C55: sum stage I | D55: =SUM(I55:AX55) -> 0.04303557794 | J55: =ABS(J53-J54)*10000 -> 0.00262553743 | O55: =ABS(O53-O54)*10000 -> 0.003681695063 | T55: =ABS(T53-T54)*10000 -> 0.0006626794809 | Y55: =ABS(Y53-Y54)*10000 -> 0.001370555852 | AD55: =ABS(AD53-AD54)*10000 -> 0.002103783409 | AI55: =ABS(AI53-AI54)*10000 -> 0.00889123329 | AN55: =ABS(AN53-AN54)*10000 -> 0.01103853796 | AS55: =ABS(AS53-AS54)*10000 -> 0.00242860292 | AX55: =ABS(AX53-AX54)*10000 -> 0.01023295254 | BC55: =ABS(BC53-BC54)*10000 -> 0.0009856491898 | BH55: =ABS(BH53-BH54)*10000 -> 0.016306462 | BM55: =ABS(BM53-BM54)*10000 -> 0.002294299117 | BR55: =ABS(BR53-BR54)*10000 -> 0.004531400076 | BW55: =ABS(BW53-BW54)*10000 -> 0.003099451825 | CB55: =ABS(CB53-CB54)*10000 -> 0.008004042502 | CG55: =ABS(CG53-CG54)*10000 -> 0.01889299108 | CL55: =ABS(CL53-CL54)*10000 -> 0.0008846933421 | CQ55: =ABS(CQ53-CQ54)*10000 -> 0.001964499328 | CV55: =ABS(CV53-CV54)*10000 -> 0 | DA55: =ABS(DA53-DA54)*10000 -> 0
A56: Compatibility | C56: sum stage II | D56: =SUM(BC55:DA55) -> 0.05696348846 | J56: =IF(ABS(J55)<=0.5,"Ok","Not ok") -> Ok | O56: =IF(ABS(O55)<=0.5,"Ok","Not ok") -> Ok | T56: =IF(ABS(T55)<=0.5,"Ok","Not ok") -> Ok | Y56: =IF(ABS(Y55)<=0.5,"Ok","Not ok") -> Ok | AD56: =IF(ABS(AD55)<=0.5,"Ok","Not ok") -> Ok | AI56: =IF(ABS(AI55)<=0.5,"Ok","Not ok") -> Ok | AN56: =IF(ABS(AN55)<=0.5,"Ok","Not ok") -> Ok | AS56: =IF(ABS(AS55)<=0.5,"Ok","Not ok") -> Ok | AX56: =IF(ABS(AX55)<=0.5,"Ok","Not ok") -> Ok | BC56: =IF(ABS(BC55)<=0.5,"Ok","Not ok") -> Ok | BH56: =IF(ABS(BH55)<=0.5,"Ok","Not ok") -> Ok | BM56: =IF(ABS(BM55)<=0.5,"Ok","Not ok") -> Ok | BR56: =IF(ABS(BR55)<=0.5,"Ok","Not ok") -> Ok | BW56: =IF(ABS(BW55)<=0.5,"Ok","Not ok") -> Ok | CB56: =IF(ABS(CB55)<=0.5,"Ok","Not ok") -> Ok | CG56: =IF(ABS(CG55)<=0.5,"Ok","Not ok") -> Ok | CL56: =IF(ABS(CL55)<=0.5,"Ok","Not ok") -> Ok | CQ56: =IF(ABS(CQ55)<=0.5,"Ok","Not ok") -> Ok | CV56: =IF(ABS(CV55)<=0.5,"Ok","Not ok") -> Ok | DA56: =IF(ABS(DA55)<=0.5,"Ok","Not ok") -> Ok
C57: Both | D57: =D55+D56 -> 0.0999990664
A59: t(x,z)
C60: Stage I | L60: Stage II
B61: start value | C61: Dx1 | D61: Dx2 | E61: Dx3 | F61: Dx4 | G61: Dx5 | H61: Dx6 | I61: Dx7 | J61: Dx8 | K61: Dx9 | L61: Dx10 | M61: Dx11 | N61: Dx12 | O61: Dx13 | P61: Dx14 | Q61: Dx15 | R61: Dx16 | S61: Dx17 | T61: Dx18 | U61: Dx19 | V61: Dx20 | W61: SDx
A62: Distance from X=0 | B62: 0 | C62: =($B$32+$C$32)/2 -> 18 | D62: =($C$32+$D$32)/2 -> 44.5 | E62: =($D$32+$E$32)/2 -> 58 | F62: =($E$32+$F$32)/2 -> 66.5 | G62: =($F$32+$G$32)/2 -> 72.5 | H62: =($G$32+$H$32)/2 -> 77.5 | I62: =($H$32+$I$32)/2 -> 82 | J62: =($I$32+$J$32)/2 -> 85.5 | K62: =($J$32+$K$32)/2 -> 90 | L62: =($K$32+$L$32)/2 -> 94.5 | M62: =($L$32+$M$32)/2 -> 97.5 | N62: =($M$32+$N$32)/2 -> 100 | O62: =($N$32+$O$32)/2 -> 102 | P62: =($O$32+$P$32)/2 -> 104 | Q62: =($P$32+$Q$32)/2 -> 106.5 | R62: =($Q$32+$R$32)/2 -> 109 | S62: =($R$32+$S$32)/2 -> 111 | T62: =($S$32+$T$32)/2 -> 113 | U62: =($T$32+$U$32)/2 -> 114
A63: Z från slip surface
A64: 0 | B64: 0 | C64: =OFFSET($G39,0,(COLUMN(B1)-COLUMN($B$1))*5) -> 22.34532086 | D64: 22.84532086 | E64: 23.69078878 | F64: 24.57829055 | G64: 25.49134277 | H64: 26.42296819 | I64: 27.36925989 | J64: 28.32770605 | K64: 29.29655036 | L64: 30.8 | M64: 29.86059121 | N64: 28.92118241 | O64: 27.98177362 | P64: 27.04236483 | Q64: 26.10295604 | R64: 25.16354724 | S64: 24.22413845 | T64: 23.28472966 | U64: 22.34532086 | V64: 15
A65: =IF(A64<Height/3,A64+1,"") -> 1 | B65: 0 | C65: 21.22805482 | D65: =OFFSET($G40,0,(COLUMN(cS)-COLUMN($B$1))*5) -> 21.70305482 | E65: 22.50624934 | F65: 23.34937602 | G65: 24.21677564 | H65: 25.10181978 | I65: 26.0007969 | J65: 26.91132074 | K65: 27.83172284 | L65: 29.26 | M65: 28.36756165 | N65: 27.47512329 | O65: 26.58268494 | P65: 25.69024659 | Q65: 24.79780823 | R65: 23.90536988 | S65: 23.01293153 | T65: 22.12049317 | U65: 21.22805482 | V65: 14.25
A66: 2 | B66: 0 | C66: 20.11078878 | D66: =OFFSET($G41,0,(COLUMN(C3)-COLUMN($B$1))*5) -> 20.56078878 | E66: =OFFSET($G41,0,(COLUMN(D3)-COLUMN($B$1))*5) -> 21.3217099 | F66: =OFFSET($G41,0,(COLUMN(#REF!)-COLUMN($B$1))*5) ->  | G66: =OFFSET($G41,0,(COLUMN(#REF!)-COLUMN($B$1))*5) ->  | H66: =OFFSET($G41,0,(COLUMN(#REF!)-COLUMN($B$1))*5) ->  | I66: =OFFSET($G41,0,(COLUMN(#REF!)-COLUMN($B$1))*5) ->  | J66: 25.49493544 | K66: 26.36689532 | L66: 27.72 | M66: 26.87453209 | N66: 26.02906417 | O66: 25.18359626 | P66: 24.33812835 | Q66: 23.49266043 | R66: 22.64719252 | S66: 21.8017246 | T66: 20.95625669 | U66: 20.11078878 | V66: 13.5
A67: 3 | B67: 0 | C67: 18.99352273 | D67: =OFFSET($G42,0,(COLUMN(c_peak)-COLUMN($B$1))*5) -> 19.41852273 | E67: =OFFSET($G42,0,(COLUMN(D4)-COLUMN($B$1))*5) -> 20.13717046 | F67: 20.89154697 | G67: 21.66764136 | H67: 22.45952297 | I67: 23.26387091 | J67: 24.07855014 | K67: 24.9020678 | L67: 26.18 | M67: 25.38150253 | N67: 24.58300505 | O67: 23.78450758 | P67: 22.9860101 | Q67: 22.18751263 | R67: 21.38901516 | S67: 20.59051768 | T67: 19.79202021 | U67: 18.99352273 | V67: 12.75
A68: 4 | B68: 0 | C68: 17.87625669 | D68: =OFFSET($G43,0,(COLUMN(cR)-COLUMN($B$1))*5) -> 18.27625669 | E68: 18.95263102 | F68: 19.66263244 | G68: 20.39307422 | H68: 21.13837456 | I68: 21.89540791 | J68: 22.66216484 | K68: 23.43724028 | L68: 24.64 | M68: 23.88847297 | N68: 23.13694593 | O68: 22.3854189 | P68: 21.63389186 | Q68: 20.88236483 | R68: 20.13083779 | S68: 19.37931076 | T68: 18.62778373 | U68: 17.87625669 | V68: 12
A69: 5 | B69: 0 | C69: 16.75899065 | D69: =OFFSET($G44,0,(COLUMN(tel)-COLUMN($B$1))*5) -> 17.13399065 | E69: 17.76809158 | F69: 18.43371791 | G69: 19.11850708 | H69: 19.81722615 | I69: 20.52694492 | J69: 21.24577953 | K69: 21.97241277 | L69: 23.1 | M69: 22.39544341 | N69: 21.69088681 | O69: 20.98633022 | P69: 20.28177362 | Q69: 19.57721703 | R69: 18.87266043 | S69: 18.16810384 | T69: 17.46354724 | U69: 16.75899065 | V69: 11.25
A70: 6 | B70: 0 | C70: 15.6417246 | D70: =OFFSET($G45,0,(COLUMN(gel)-COLUMN($B$1))*5) -> 15.9917246 | E70: 16.58355214 | F70: 17.20480339 | G70: 17.84393994 | H70: 18.49607774 | I70: 19.15848193 | J70: 19.82939423 | K70: 20.50758525 | L70: 21.56 | M70: 20.90241384 | N70: 20.24482769 | O70: 19.58724153 | P70: 18.92965538 | Q70: 18.27206922 | R70: 17.61448307 | S70: 16.95689691 | T70: 16.29931076 | U70: 15.6417246 | V70: 10.5
A71: 7 | B71: 0 | C71: 14.89315636 | D71: =OFFSET($G46,0,(COLUMN(g_f)-COLUMN($B$1))*5) -> 15.22640636 | E71: 15.78991072 | F71: 16.38143065 | G71: 16.98997996 | H71: 17.6109083 | I71: 18.24161172 | J71: 18.88041608 | K71: 19.52615081 | L71: 20.5282 | M71: 19.90208404 | N71: 19.27596808 | O71: 18.64985212 | P71: 18.02373616 | Q71: 17.3976202 | R71: 16.77150424 | S71: 16.14538828 | T71: 15.51927232 | U71: 14.89315636 | V71: 9.9975
A75: Dt
C76: Stage I | L76: Stage II
B77: start value | C77: Dx1 | D77: Dx2 | E77: Dx3 | F77: Dx4 | G77: Dx5 | H77: Dx6 | I77: Dx7 | J77: Dx8 | K77: Dx9 | L77: Dx10 | M77: Dx11 | N77: Dx12 | O77: Dx13 | P77: Dx14 | Q77: Dx15 | R77: Dx16 | S77: Dx17 | T77: Dx18 | U77: Dx19 | V77: Dx20 | W77: SDx
A78: Distance from X=0 | B78: 0 | C78: =($B$32+$C$32)/2 -> 18 | D78: =($C$32+$D$32)/2 -> 44.5 | E78: =($D$32+$E$32)/2 -> 58 | F78: =($E$32+$F$32)/2 -> 66.5 | G78: =($F$32+$G$32)/2 -> 72.5 | H78: =($G$32+$H$32)/2 -> 77.5 | I78: =($H$32+$I$32)/2 -> 82 | J78: =($I$32+$J$32)/2 -> 85.5 | K78: =($J$32+$K$32)/2 -> 90 | L78: =($K$32+$L$32)/2 -> 94.5 | M78: =($L$32+$M$32)/2 -> 97.5 | N78: =($M$32+$N$32)/2 -> 100 | O78: =($N$32+$O$32)/2 -> 102 | P78: =($O$32+$P$32)/2 -> 104 | Q78: =($P$32+$Q$32)/2 -> 106.5 | R78: =($Q$32+$R$32)/2 -> 109 | S78: =($R$32+$S$32)/2 -> 111 | T78: =($S$32+$T$32)/2 -> 113 | U78: =($T$32+$U$32)/2 -> 114
A79: Z från slip surface
A80: 0 | B80: 0 | C80: =OFFSET($H39,0,(COLUMN(B$1)-COLUMN($B$1))*5) -> 0.5 | D80: 0.8454679136 | E80: 0.8875017744 | F80: 0.9130522229 | G80: 0.9316254193 | H80: 0.9462916994 | I80: 0.9584461514 | J80: 0.9688443102 | K80: 1.502449645 | L80: -0.9394087929 | M80: -0.9394087929 | N80: -0.9394087929 | O80: -0.9394087929 | P80: -0.9394087929 | Q80: -0.9394087929 | R80: -0.9394087929 | S80: -0.9394087929 | T80: -0.9394087929 | U80: -7.345320864 | V80: 0
A81: =IF(A80<Height/3,A80+1,"") -> 1 | B81: 0 | C81: 0.475 | D81: 0.8031945179 | E81: 0.8431266857 | F81: 0.8673996118 | G81: 0.8850441483 | H81: 0.8989771145 | I81: 0.9105238438 | J81: 0.9204020947 | K81: 1.427327162 | L81: -0.8924383532 | M81: -0.8924383532 | N81: -0.8924383532 | O81: -0.8924383532 | P81: -0.8924383532 | Q81: -0.8924383532 | R81: -0.8924383532 | S81: -0.8924383532 | T81: -0.8924383532 | U81: -6.978054821 | V81: 0
A82: 2 | B82: 0 | C82: 0.45 | D82: 0.7609211222 | E82: 0.7987515969 | F82: 0.8217470006 | G82: 0.8384628774 | H82: 0.8516625295 | I82: 0.8626015363 | J82: 0.8719598792 | K82: 1.35220468 | L82: -0.8454679136 | M82: -0.8454679136 | N82: -0.8454679136 | O82: -0.8454679136 | P82: -0.8454679136 | Q82: -0.8454679136 | R82: -0.8454679136 | S82: -0.8454679136 | T82: -0.8454679136 | U82: -6.610788778 | V82: 0
A83: 3 | B83: 0 | C83: 0.425 | D83: 0.7186477266 | E83: 0.7543765082 | F83: 0.7760943895 | G83: 0.7918816064 | H83: 0.8043479445 | I83: 0.8146792287 | J83: 0.8235176637 | K83: 1.277082198 | L83: -0.798497474 | M83: -0.798497474 | N83: -0.798497474 | O83: -0.798497474 | P83: -0.798497474 | Q83: -0.798497474 | R83: -0.798497474 | S83: -0.798497474 | T83: -0.798497474 | U83: -6.243522734 | V83: 0
A84: 4 | B84: 0 | C84: 0.4 | D84: 0.6763743309 | E84: 0.7100014195 | F84: 0.7304417783 | G84: 0.7453003354 | H84: 0.7570333595 | I84: 0.7667569211 | J84: 0.7750754482 | K84: 1.201959716 | L84: -0.7515270343 | M84: -0.7515270343 | N84: -0.7515270343 | O84: -0.7515270343 | P84: -0.7515270343 | Q84: -0.7515270343 | R84: -0.7515270343 | S84: -0.7515270343 | T84: -0.7515270343 | U84: -5.876256691 | V84: 0
A85: 5 | B85: 0 | C85: 0.375 | D85: 0.6341009352 | E85: 0.6656263308 | F85: 0.6847891672 | G85: 0.6987190645 | H85: 0.7097187746 | I85: 0.7188346136 | J85: 0.7266332327 | K85: 1.126837234 | L85: -0.7045565947 | M85: -0.7045565947 | N85: -0.7045565947 | O85: -0.7045565947 | P85: -0.7045565947 | Q85: -0.7045565947 | R85: -0.7045565947 | S85: -0.7045565947 | T85: -0.7045565947 | U85: -5.508990648 | V85: 0
A86: 6 | B86: 0 | C86: 0.35 | D86: 0.5918275395 | E86: 0.6212512421 | F86: 0.639136556 | G86: 0.6521377935 | H86: 0.6624041896 | I86: 0.670912306 | J86: 0.6781910172 | K86: 1.051714751 | L86: -0.657586155 | M86: -0.657586155 | N86: -0.657586155 | O86: -0.657586155 | P86: -0.657586155 | Q86: -0.657586155 | R86: -0.657586155 | S86: -0.657586155 | T86: -0.657586155 | U86: -5.141724605 | V86: 0
A87: 7 | B87: 0 | C87: 0.33325 | D87: 0.5635043644 | E87: 0.5915199326 | F87: 0.6085493066 | G87: 0.620928342 | H87: 0.6307034177 | I87: 0.6388043599 | J87: 0.6457347328 | K87: 1.001382688 | L87: -0.6261159605 | M87: -0.6261159605 | N87: -0.6261159605 | O87: -0.6261159605 | P87: -0.6261159605 | Q87: -0.6261159605 | R87: -0.6261159605 | S87: -0.6261159605 | T87: -0.6261159605 | U87: -4.895656356 | V87: 0
A91: t+Dt
C92: Stage I | L92: Stage II
C93: Dx1 | D93: Dx2 | E93: Dx3 | F93: Dx4 | G93: Dx5 | H93: Dx6 | I93: Dx7 | J93: Dx8 | K93: Dx9 | L93: Dx10 | M93: Dx11 | N93: Dx12 | O93: Dx13 | P93: Dx14 | Q93: Dx15 | R93: Dx16 | S93: Dx17 | T93: Dx18 | U93: Dx19 | V93: Dx20 | W93: SDx
A94: Distance from x=0 | C94: =($B$32+$C$32)/2 -> 18 | D94: =($C$32+$D$32)/2 -> 44.5 | E94: =($D$32+$E$32)/2 -> 58 | F94: =($E$32+$F$32)/2 -> 66.5 | G94: =($F$32+$G$32)/2 -> 72.5 | H94: =($G$32+$H$32)/2 -> 77.5 | I94: =($H$32+$I$32)/2 -> 82 | J94: =($I$32+$J$32)/2 -> 85.5 | K94: =($J$32+$K$32)/2 -> 90 | L94: =($K$32+$L$32)/2 -> 94.5 | M94: =($L$32+$M$32)/2 -> 97.5 | N94: =($M$32+$N$32)/2 -> 100 | O94: =($N$32+$O$32)/2 -> 102 | P94: =($O$32+$P$32)/2 -> 104 | Q94: =($P$32+$Q$32)/2 -> 106.5 | R94: =($Q$32+$R$32)/2 -> 109 | S94: =($R$32+$S$32)/2 -> 111 | T94: =($S$32+$T$32)/2 -> 113 | U94: =($T$32+$U$32)/2 -> 114
A95: Z från slip surface
A96: 0 | C96: =OFFSET($I39,0,(COLUMN(B$1)-COLUMN($B$1))*5) -> 22.84532086 | D96: 23.69078878 | E96: 24.57829055 | F96: 25.49134277 | G96: 26.42296819 | H96: 27.36925989 | I96: 28.32770605 | J96: 29.29655036 | K96: 30.799 | L96: 29.86059121 | M96: 28.92118241 | N96: 27.98177362 | O96: 27.04236483 | P96: 26.10295604 | Q96: 25.16354724 | R96: 24.22413845 | S96: 23.28472966 | T96: 22.34532086 | U96: 15 | V96: 15
A97: =IF(A96<Height/3,A96+1,"") -> 1 | C97: 21.70305482 | D97: 22.50624934 | E97: 23.34937602 | F97: 24.21677564 | G97: 25.10181978 | H97: 26.0007969 | I97: 26.91132074 | J97: 27.83172284 | K97: 29.25905 | L97: 28.36756165 | M97: 27.47512329 | N97: 26.58268494 | O97: 25.69024659 | P97: 24.79780823 | Q97: 23.90536988 | R97: 23.01293153 | S97: 22.12049317 | T97: 21.22805482 | U97: 14.25 | V97: 14.25
A98: 2 | C98: 20.56078878 | D98: 21.3217099 | E98: 22.1204615 | F98: 22.9422085 | G98: 23.78067137 | H98: 24.6323339 | I98: 25.49493544 | J98: 26.36689532 | K98: 27.7191 | L98: 26.87453209 | M98: 26.02906417 | N98: 25.18359626 | O98: 24.33812835 | P98: 23.49266043 | Q98: 22.64719252 | R98: 21.8017246 | S98: 20.95625669 | T98: 20.11078878 | U98: 13.5 | V98: 13.5
A99: 3 | C99: 19.41852273 | D99: 20.13717046 | E99: 20.89154697 | F99: 21.66764136 | G99: 22.45952297 | H99: 23.26387091 | I99: 24.07855014 | J99: 24.9020678 | K99: 26.17915 | L99: 25.38150253 | M99: 24.58300505 | N99: 23.78450758 | O99: 22.9860101 | P99: 22.18751263 | Q99: 21.38901516 | R99: 20.59051768 | S99: 19.79202021 | T99: 18.99352273 | U99: 12.75 | V99: 12.75
A100: 4 | C100: 18.27625669 | D100: 18.95263102 | E100: 19.66263244 | F100: 20.39307422 | G100: 21.13837456 | H100: 21.89540791 | I100: 22.66216484 | J100: 23.43724028 | K100: 24.6392 | L100: 23.88847297 | M100: 23.13694593 | N100: 22.3854189 | O100: 21.63389186 | P100: 20.88236483 | Q100: 20.13083779 | R100: 19.37931076 | S100: 18.62778373 | T100: 17.87625669 | U100: 12 | V100: 12
A101: 5 | C101: 17.13399065 | D101: 17.76809158 | E101: 18.43371791 | F101: 19.11850708 | G101: 19.81722615 | H101: 20.52694492 | I101: 21.24577953 | J101: 21.97241277 | K101: 23.09925 | L101: 22.39544341 | M101: 21.69088681 | N101: 20.98633022 | O101: 20.28177362 | P101: 19.57721703 | Q101: 18.87266043 | R101: 18.16810384 | S101: 17.46354724 | T101: 16.75899065 | U101: 11.25 | V101: 11.25
A102: 6 | C102: 15.9917246 | D102: 16.58355214 | E102: 17.20480339 | F102: 17.84393994 | G102: 18.49607774 | H102: 19.15848193 | I102: 19.82939423 | J102: 20.50758525 | K102: 21.5593 | L102: 20.90241384 | M102: 20.24482769 | N102: 19.58724153 | O102: 18.92965538 | P102: 18.27206922 | Q102: 17.61448307 | R102: 16.95689691 | S102: 16.29931076 | T102: 15.6417246 | U102: 10.5 | V102: 10.5
A103: 7 | C103: 15.22640636 | D103: 15.78991072 | E103: 16.38143065 | F103: 16.98997996 | G103: 17.6109083 | H103: 18.24161172 | I103: 18.88041608 | J103: 19.52615081 | K103: 20.5275335 | L103: 19.90208404 | M103: 19.27596808 | N103: 18.64985212 | O103: 18.02373616 | P103: 17.3976202 | Q103: 16.77150424 | R103: 16.14538828 | S103: 15.51927232 | T103: 14.89315636 | U103: 9.9975 | V103: 9.9975
A105: =IF(#REF!<Height/3,#REF!+1,"") -> 
A106: g(t)
C107: Stage I | L107: Stage II
B108: start value | C108: Dx1 | D108: Dx2 | E108: Dx3 | F108: Dx4 | G108: Dx5 | H108: Dx6 | I108: Dx7 | J108: Dx8 | K108: Dx9 | L108: Dx10 | M108: Dx11 | N108: Dx12 | O108: Dx13 | P108: Dx14 | Q108: Dx15 | R108: Dx16 | S108: Dx17 | T108: Dx18 | U108: Dx19 | V108: Dx20 | W108: SDx
A109: Distance from X=0 | C109: =($B$32+$C$32)/2 -> 18 | D109: =($C$32+$D$32)/2 -> 44.5 | E109: =($D$32+$E$32)/2 -> 58 | F109: =($E$32+$F$32)/2 -> 66.5 | G109: =($F$32+$G$32)/2 -> 72.5 | H109: =($G$32+$H$32)/2 -> 77.5 | I109: =($H$32+$I$32)/2 -> 82 | J109: =($I$32+$J$32)/2 -> 85.5 | K109: =($J$32+$K$32)/2 -> 90 | L109: =($K$32+$L$32)/2 -> 94.5 | M109: =($L$32+$M$32)/2 -> 97.5 | N109: =($M$32+$N$32)/2 -> 100 | O109: =($N$32+$O$32)/2 -> 102 | P109: =($O$32+$P$32)/2 -> 104 | Q109: =($P$32+$Q$32)/2 -> 106.5 | R109: =($Q$32+$R$32)/2 -> 109 | S109: =($R$32+$S$32)/2 -> 111 | T109: =($S$32+$T$32)/2 -> 113 | U109: =($T$32+$U$32)/2 -> 114
A110: Z från slip surface
A111: 0 | B111: 0 | C111: =OFFSET($J39,0,(COLUMN(B$1)-COLUMN($B$1))*5) -> 0.0004418520693 | D111: =OFFSET($J39,0,(COLUMN(C$1)-COLUMN($B$1))*5) -> 0.001221865417 | E111: 0.002092392798 | F111: 0.003055595157 | G111: 0.004128305167 | H111: 0.005342715891 | I111: 0.006759415683 | J111: 0.008511863575 | K111: 0.01455850452 | L111: 0.01410054512 | M111: 0.01348251301 | N111: 0.01286448091 | O111: 0.01224644881 | P111: 0.01162841671 | Q111: 0.01101038461 | R111: 0.01039235251 | S111: 0.009774320411 | T111: 0.009156288311 | U111: 0.004323840374 | V111: 0.004323840374
A112: =IF(A111<Height/3,A111+1,"") -> 1 | B112: 0 | C112: =OFFSET($J40,0,(COLUMN(B$1)-COLUMN($B$1))*5) -> 0.000415139726 | D112: 0.001144929481 | E112: 0.001954098997 | F112: 0.002841609607 | G112: 0.003818112083 | H112: 0.004904120219 | I112: 0.006135358565 | J112: 0.007578805766 | K112: 0.01064177039 | L112: 0.01004290656 | M112: 0.009441322416 | N112: 0.008839738276 | O112: 0.008238154135 | P112: 0.007636569995 | Q112: 0.007034985854 | R112: 0.006433401714 | S112: 0.005831817573 | T112: 0.005230233433 | U112: 0.0005263935581 | V112: 0.0005263935581
A113: 2 | B113: 0 | C113: 0.0003894818628 | D113: 0.001071573414 | E113: 0.001823484901 | F113: 0.002641998152 | G113: 0.003533583773 | H113: 0.004511421124 | I113: 0.00559742405 | J113: 0.006828656218 | K113: 0.009179880339 | L113: 0.008597419859 | M113: 0.008013113931 | N113: 0.007428808002 | O113: 0.006844502073 | P113: 0.006260196145 | Q113: 0.005675890216 | R113: 0.005091584287 | S113: 0.004507278359 | T113: 0.00392297243 | U113: -0.0006457675704 | V113: -0.0006457675704
A114: 3 | B114: 0 | C114: 0.0003647425254 | D114: 0.001001308804 | E114: 0.001699411057 | F114: 0.00245437481 | G114: 0.003269807289 | H114: 0.004154130276 | I114: 0.005121084114 | J114: 0.006192385307 | K114: 0.008127888087 | L114: 0.007563196586 | M114: 0.006997063612 | N114: 0.006430930638 | O114: 0.005864797664 | P114: 0.005298664691 | Q114: 0.004732531717 | R114: 0.004166398743 | S114: 0.003600265769 | T114: 0.003034132795 | U114: -0.001392511256 | V114: -0.001392511256
A115: 4 | B115: 0 | C115: 0.0003408023723 | D115: 0.000933716554 | E115: 0.001580928418 | F115: 0.002276828953 | G115: 0.003023052821 | H115: 0.003824864731 | I115: 0.004690947472 | J115: 0.005634458388 | K115: 0.007280701222 | L115: 0.006734897757 | M115: 0.006187903829 | N115: 0.005640909901 | O115: 0.005093915973 | P115: 0.004546922045 | Q115: 0.003999928117 | R115: 0.003452934188 | S115: 0.00290594026 | T115: 0.002358946332 | U115: -0.001918047819 | V115: -0.001918047819
A116: 5 | B116: 0 | C116: 0.0003175555289 | D116: 0.000868432712 | E116: 0.001467234847 | F116: 0.002107800539 | G116: 0.00279040864 | H116: 0.00351819781 | I116: 0.004296621172 | J116: 0.005133782932 | K116: 0.006559687112 | L116: 0.006033889248 | M116: 0.005507079598 | N116: 0.004980269947 | O116: 0.004453460297 | P116: 0.003926650647 | Q116: 0.003399840996 | R116: 0.002873031346 | S116: 0.002346221696 | T116: 0.001819412045 | U116: -0.002299759443 | V116: -0.002299759443
A117: 6 | B117: 0 | C117: 0.0002949070479 | D117: 0.0008051374251 | E117: 0.001357642798 | F117: 0.001945993008 | G117: 0.002569546447 | H117: 0.00322999973 | I117: 0.003930698774 | J117: 0.00467664355 | K117: 0.005924876461 | L117: 0.00542025843 | M117: 0.004914766317 | N117: 0.004409274204 | O117: 0.003903782092 | P117: 0.003398289979 | Q117: 0.002892797866 | R117: 0.002387305754 | S117: 0.001881813641 | T117: 0.001376321529 | U117: -0.002576166238 | V117: -0.002576166238
A118: 7 | B118: 0 | C118: 0.0002800241398 | D118: 0.0007636991962 | E118: 0.001286210145 | F118: 0.001841069393 | G118: 0.002427199233 | H118: 0.003045600129 | I118: 0.003698623464 | J118: 0.004389861957 | K118: 0.005535653267 | L118: 0.005045923217 | M118: 0.004555396289 | N118: 0.004064869361 | O118: 0.003574342433 | P118: 0.003083815505 | Q118: 0.002593288578 | R118: 0.00210276165 | S118: 0.001612234722 | T118: 0.001121707794 | U118: -0.002713765862 | V118: -0.002713765862
A121: d (t)
C122: Stage I | L122: Stage II
B123: start value | C123: Dx1 | D123: Dx2 | E123: Dx3 | F123: Dx4 | G123: Dx5 | H123: Dx6 | I123: Dx7 | J123: Dx8 | K123: Dx9 | L123: Dx10 | M123: Dx11 | N123: Dx12 | O123: Dx13 | P123: Dx14 | Q123: Dx15 | R123: Dx16 | S123: Dx17 | T123: Dx18 | U123: Dx19 | V123: Dx20 | W123: SDx
A124: Distance from X=0 | C124: =($B$32+$C$32)/2 -> 18 | D124: =($C$32+$D$32)/2 -> 44.5 | E124: =($D$32+$E$32)/2 -> 58 | F124: =($E$32+$F$32)/2 -> 66.5 | G124: =($F$32+$G$32)/2 -> 72.5 | H124: =($G$32+$H$32)/2 -> 77.5 | I124: =($H$32+$I$32)/2 -> 82 | J124: =($I$32+$J$32)/2 -> 85.5 | K124: =($J$32+$K$32)/2 -> 90 | L124: =($K$32+$L$32)/2 -> 94.5 | M124: =($L$32+$M$32)/2 -> 97.5 | N124: =($M$32+$N$32)/2 -> 100 | O124: =(N14+O14)/2 -> 0 | P124: =($O$32+$P$32)/2 -> 104 | Q124: =($P$32+$Q$32)/2 -> 106.5 | R124: =($Q$32+$R$32)/2 -> 109 | S124: =($R$32+$S$32)/2 -> 111 | T124: =($S$32+$T$32)/2 -> 113 | U124: =($T$32+$U$32)/2 -> 114
A125: Z från slip surface
A126: 0 | B126: 0 | C126: =OFFSET($K39,0,(COLUMN(B$1)-COLUMN($B$1))*5) -> 0 | D126: 0 | E126: 0 | F126: 0 | G126: 0 | H126: 0 | I126: 0 | J126: 0 | K126: 0 | L126: 0 | M126: 0 | N126: 0 | O126: 0 | P126: 0 | Q126: 0 | R126: 0 | S126: 0 | T126: 0 | U126: 0 | V126: 0
A127: =IF(A126<Height/3,A126+1,"") -> 1 | B127: 0 | C127: 0.0004284958977 | D127: 0.001183397449 | E127: 0.002023245897 | F127: 0.002948602382 | G127: 0.003973208625 | H127: 0.005123418055 | I127: 0.006447387124 | J127: 0.00804533467 | K127: 0.01260013745 | L127: 0.01207172584 | M127: 0.01146191772 | N127: 0.01085210959 | O127: 0.01024230147 | P127: 0.009632493354 | Q127: 0.009022685233 | R127: 0.008412877113 | S127: 0.007803068992 | T127: 0.007193260872 | U127: 0.002425116966 | V127: 0.002425116966
A128: 2 | B128: 0 | C128: 0.0004023107944 | D128: 0.001108251447 | E128: 0.001888791949 | F128: 0.00274180388 | G128: 0.003675847928 | H128: 0.004707770671 | I128: 0.005866391308 | J128: 0.007203730992 | K128: 0.009910825365 | L128: 0.009320163208 | M128: 0.008727218173 | N128: 0.008134273139 | O128: 0.007541328104 | P128: 0.00694838307 | Q128: 0.006355438035 | R128: 0.005762493 | S128: 0.005169547966 | T128: 0.004576602931 | U128: -5.968700614e-05 | V128: -5.968700614e-05
A129: 3 | B129: 0 | C129: 0.0003771121941 | D129: 0.001036441109 | E129: 0.001761447979 | F129: 0.002548186481 | G129: 0.003401695531 | H129: 0.0043327757 | I129: 0.005359254082 | J129: 0.006510520762 | K129: 0.008653884213 | L129: 0.008080308223 | M129: 0.007505088771 | N129: 0.00692986932 | O129: 0.006354649869 | P129: 0.005779430418 | Q129: 0.005204210966 | R129: 0.004628991515 | S129: 0.004053772064 | T129: 0.003478552612 | U129: -0.001019139413 | V129: -0.001019139413
A130: 4 | B130: 0 | C130: 0.0003527724488 | D130: 0.0009675126789 | E130: 0.001640169738 | F130: 0.002365601881 | G130: 0.003146430055 | H130: 0.003989497504 | I130: 0.004906015793 | J130: 0.005913421848 | K130: 0.007704294655 | L130: 0.007149047172 | M130: 0.006592483721 | N130: 0.00603592027 | O130: 0.005479356819 | P130: 0.004922793368 | Q130: 0.004366229917 | R130: 0.003809666466 | S130: 0.003253103015 | T130: 0.002696539564 | U130: -0.001655279538 | V130: -0.001655279538
A131: 5 | B131: 0 | C131: 0.0003291789506 | D131: 0.000901074633 | E131: 0.001524081633 | F131: 0.002192314746 | G131: 0.002906730731 | H131: 0.003671531271 | I131: 0.004493784322 | J131: 0.00538412066 | K131: 0.006920194167 | L131: 0.006384393503 | M131: 0.005847491713 | N131: 0.005310589924 | O131: 0.004773688135 | P131: 0.004236786346 | Q131: 0.003699884556 | R131: 0.003162982767 | S131: 0.002626080978 | T131: 0.002089179189 | U131: -0.002108903631 | V131: -0.002108903631
A132: 6 | B132: 0 | C132: 0.0003062312884 | D132: 0.0008367850686 | E132: 0.001412438822 | F132: 0.002026896774 | G132: 0.002679977544 | H132: 0.00337409877 | I132: 0.004113659973 | J132: 0.004905213241 | K132: 0.006242281787 | L132: 0.005727073839 | M132: 0.005210922957 | N132: 0.004694772076 | O132: 0.004178621194 | P132: 0.003662470313 | Q132: 0.003146319431 | R132: 0.00263016855 | S132: 0.002114017668 | T132: 0.001597866787 | U132: -0.00243796284 | V132: -0.00243796284
A133: 7 | B133: 0 | C133: 0.0001926019479 | D133: 0.0005255602681 | E133: 0.0008856907358 | F133: 0.001268665904 | G133: 0.001673909803 | H133: 0.002102325953 | I133: 0.00255582295 | J133: 0.003037279345 | K133: 0.003839277459 | L133: 0.003506170852 | M133: 0.003172504473 | N133: 0.002838838094 | O133: 0.002505171716 | P133: 0.002171505337 | Q133: 0.001837838959 | R133: 0.00150417258 | S133: 0.001170506202 | T133: 0.0008368398231 | U133: -0.001772127253 | V133: -0.001772127253
A136: Summary
C137: Stage I | L137: Stage II
B138: start value | C138: Dx1 | D138: Dx2 | E138: Dx3 | F138: Dx4 | G138: Dx5 | H138: Dx6 | I138: Dx7 | J138: Dx8 | K138: Dx9 | L138: Dx10 | M138: Dx11 | N138: Dx12 | O138: Dx13 | P138: Dx14 | Q138: Dx15 | R138: Dx16 | S138: Dx17 | T138: Dx18 | U138: Dx19 | V138: Dx20
A139: Distance from foot of slope where x=0 | C139: =B32&" ("&ROUND($V$30,0)&")" -> 0 (152) | D139: 36 (152) | E139: 53 (152) | F139: 63 (152) | G139: 70 (152) | H139: 75 (152) | I139: 80 (152) | J139: 84 (152) | K139: 87 (152) | L139: 93 (152) | M139: 96 (152) | N139: 99 (152) | O139: 101 (152) | P139: 103 (152) | Q139: 105 (152) | R139: 108 (152) | S139: 110 (152) | T139: 112 (152) | U139: 114 (152) | V139: 114 (152)
B140: 0 | C140: =($B$32+$C$32)/2 -> 18 | D140: =($C$32+$D$32)/2 -> 44.5 | E140: =($D$32+$E$32)/2 -> 58 | F140: =($E$32+$F$32)/2 -> 66.5 | G140: =($F$32+$G$32)/2 -> 72.5 | H140: =($G$32+$H$32)/2 -> 77.5 | I140: =($H$32+$I$32)/2 -> 82 | J140: =($I$32+$J$32)/2 -> 85.5 | K140: =($J$32+$K$32)/2 -> 90 | L140: =($K$32+$L$32)/2 -> 94.5 | M140: =($L$32+$M$32)/2 -> 97.5 | N140: =($M$32+$N$32)/2 -> 100 | O140: =($N$32+$O$32)/2 -> 102 | P140: =($O$32+$P$32)/2 -> 104 | Q140: =($P$32+$Q$32)/2 -> 106.5 | R140: =($Q$32+$R$32)/2 -> 109 | S140: =($R$32+$S$32)/2 -> 111 | T140: =($S$32+$T$32)/2 -> 113 | U140: =($T$32+$U$32)/2 -> 114 | V140: =($T$32+V30)/2 -> 133.1018345
A141: D N | B141: 0 | C141: =OFFSET($J50,0,(COLUMN(B$1)-COLUMN($B$1))*5) -> 9.096456515 | D141: 15.72454655 | E141: 17.02126089 | F141: 18.1413565 | G141: 19.28619344 | H141: 20.57663236 | I141: 22.13586178 | J141: 24.2506487 | K141: 46.7922508 | L141: 22.37347164 | M141: 17.78592663 | N141: 14.37767926 | O141: 11.54432568 | P141: 9.077563662 | Q141: 6.853046178 | R141: 4.79044847 | S141: 2.836853361 | T141: 0.9391379683 | U141: -6.791130319e-12 | V141: -283.6030832 | W141: D N
A142: SD N | B142: 0 | C142: 9.096456515 | D142: 24.82100306 | E142: 41.84226395 | F142: 59.98362045 | G142: 79.26981389 | H142: 99.84644625 | I142: 121.982308 | J142: 146.2329567 | K142: 193.0252075 | L142: 215.3986792 | M142: 233.1846058 | N142: 247.5622851 | O142: 259.1066107 | P142: 268.1841744 | Q142: 275.0372206 | R142: 279.8276691 | S142: 282.6645224 | T142: 283.6036604 | U142: 283.6036604 | V142: 0.0005772127537 | W142: SD N
A143: d (N) | B143: 0 | C143: 0.002388440968 | D143: 0.004170949855 | E143: 0.004576409663 | F143: 0.004956408618 | G143: 0.00536580149 | H143: 0.005844296453 | I143: 0.006438904651 | J143: 0.00725816696 | K143: 0.01487253974 | L143: 0.008258116215 | M143: 0.008171724647 | N143: 0.00816859422 | O143: 0.008169312866 | P143: 0.008170758522 | Q143: 0.008170485895 | R143: 0.008167305733 | S143: 0.008171796266 | T143: 0.008170280356 | U143: 7.568557959e-15 | V143: 0.07901743304 | W143: d (N)
A144: S d (N) | B144: 0 | C144: 0.002388440968 | D144: 0.006559390823 | E144: 0.01113580049 | F144: 0.0160922091 | G144: 0.02145801059 | H144: 0.02730230705 | I144: 0.0337412117 | J144: 0.04099937866 | K144: 0.05587191839 | L144: 0.06413003461 | M144: 0.07230175926 | N144: 0.08047035348 | O144: 0.08863966634 | P144: 0.09681042486 | Q144: 0.1049809108 | R144: 0.1131482165 | S144: 0.1213200128 | T144: 0.1294902931 | U144: 0.1294902931 | V144: 0.2085077262 | W144: S d (N)
A145: S d (t) | B145: 0 | C145: 0.002388703522 | D145: 0.006559022654 | E145: 0.01113586675 | F145: 0.01609207205 | G145: 0.02145780022 | H145: 0.02730141792 | I145: 0.03374231555 | J145: 0.04099962152 | K145: 0.0558708951 | L145: 0.06413013317 | M145: 0.07230012861 | N145: 0.08047012405 | O145: 0.08864011948 | P145: 0.09681011492 | Q145: 0.1049801104 | R145: 0.1131501058 | S145: 0.1213201012 | T145: 0.1294900967 | U145: 0.1294902931 | V145: 0.2085077262 | W145: S d (t)
A146: =IF(A145<Height/3,A145+1,"") -> 
A149: End of Stage I | B149: N | C149: =K142 -> 193.0252075 | D149: kN/m3
A150: End of stageI | B150: x | C150: =K32 -> 93 | D150: m
A151: Critical Load | B151: Ncrit [kN/m3] | C151: =MAX(C142:V142) -> 283.6036604 | D151: kN/m3
A152: Critical lenght | B152: Lcrit [m] | C152: =T32 -> 114 | D152: m
B153: Linstab | C153: =U30 -> 38.6100333 | D153: m
B154: q | C154: =C151/Height -> 14.18018302 | D154: kN/m2
A155: Critical deformation | B155: dcrit | C155: =$T$145 -> 0.1294900967 | D155: m
A156: Momentarily def | B156: dinstab | C156: =$V$145 -> 0.2085077262 | D156: m

Sheet Explanation

Sheet Calculation template empty (hidden)
A2: Shear strength at surface | B2: cs | D2: kN/m2
A3: Peak value for shear strength evaluated in lab | B3: clab | D3: kN/m2 | E3: Factor for increasing shear strength peak | H3: %
A4: Peak value for shear strength | B4: c | C4: =C3*(1+G3/100) -> 0 | D4: kN/m2
A5: Residual value for shear strength | B5: cR | D5: kN/m2 | E5: =IF(cR<=t0,"Ok","cR too high") -> Ok
A6: Shear stress at elastic limit | B6: tel | D6: kN/m2 | G6: t | H6: 0 | I6: =tel -> 0 | J6: =I6+($AB$6-$I$6)/19 -> 0 | K6: =J6+($AB$6-$I$6)/19 -> 0 | L6: =K6+($AB$6-$I$6)/19 -> 0 | M6: 0 | N6: 0 | O6: 0 | P6: 0 | Q6: 0 | R6: 0 | S6: 0 | T6: 0 | U6: 0 | V6: 0 | W6: 0 | X6: 0 | Y6: 0 | Z6: 0 | AA6: 0 | AB6: =c_peak -> 0 | AC6: =cR -> 0 | AD6: =AC6 -> 0
A7: Deviator strain at elastic limit | B7: gel | C7: =g_f*tel/(2*c_peak-tel) ->  | G7: g | H7: 0 | I7: =gel ->  | J7: =g_f-(g_f-gel)*(1-(J6-tel)/(c_peak-tel))^0.5 ->  | AB7: =g_f -> 0 | AC7: =def_cR -> 0 | AD7: =def_cR+0.05 -> 0.05
A8: Deviator strain at failure limit | B8: gf | G8: t0 | H8: =t0 -> 0 | I8: 0 | J8: 0 | K8: 0 | L8: 0 | M8: 0 | N8: 0 | O8: 0 | P8: 0 | Q8: 0 | R8: 0 | S8: 0 | T8: 0 | U8: 0 | V8: 0 | W8: 0 | X8: 0 | Y8: 0 | Z8: 0 | AA8: 0 | AB8: 0 | AC8: 0 | AD8: 0
A9: Elastic modulus at shear | B9: G | C9: =tel/gel ->  | AB9: =F9 -> 0
A10: Elastic modulus | B10: Emean | C10: =G/c_peak*2*(1+0.5)*(cS+c_peak)/2 -> 
A11: Post peak slip at z=0 when cR is reached | B11: dcR | D11: m
A12: Density: | B12: dstart
B13: dgain
A14: Depth to slip surface | B14: H | D14: m
A15: Gradient | B15: dy/dx
A16: Sensitivity ratio | B16: cR/cu | C16: =cR/c_peak -> 
A18: Colour indication:
A19: Cells that require input
A20: to<tel
A21: to>tel
A22: t+Dt<tel | C22: Stage I
A23: tel<t+Dt<cu
A24: cu<t+Dt<cR | C24: Stage IIa
A25: t+Dt=cR | C25: Stage IIb
K26: c | S26: to | T26: cR
B28: Stage I | K28: Stage II
B29: Dx1 | C29: Dx2 | D29: Dx3 | E29: Dx4 | F29: Dx5 | G29: Dx6 | H29: Dx7 | I29: Dx8 | J29: Dx9 | K29: Dx10 | L29: Dx11 | M29: Dx12 | N29: Dx13 | O29: Dx14 | P29: Dx15 | Q29: Dx16 | R29: Dx17 | S29: Dx18 | T29: Dx19 | U29: Dx20 | V29: SDx
A30: length of Dx | B30: 36.38582606 | C30: 17.04125705 | D30: 9.5132361 | E30: 6.745262999 | F30: 5.339722181 | G30: 4.521548562 | H30: 4.022389557 | I30: 3.75001874 | J30: 6.074979337 | K30: 2.801946453 | L30: 2.524414187 | M30: 2.354619918 | N30: 2.234350286 | O30: 2.147346698 | P30: 2.084303669 | Q30: 2.039771612 | R30: 2.01321894 | S30: 1.999423415 | T30: 1.849103789e-12 | U30: 38.6100333 | V30: =SUM(Dx) -> 152.2036691
A31: Dt | B31: =0.5+((COLUMN(A1)-COLUMN($A$1))^grad)*((c_peak-$B$39)/10) ->  | C31: =((COLUMN(B1)-COLUMN($A$1))^grad)*((c_peak-$B$39)/10) -> 0 | D31: 0 | E31: 0 | F31: 0 | G31: 0 | H31: 0 | I31: 0 | J31: =E39-0.001-AR39 ->  | K31: =IF(t0>cR,-(c_peak-t0)/9,-(c_peak-cR)/9) -> 0 | L31: 0 | M31: 0 | N31: 0 | O31: 0 | P31: 0 | Q31: 0 | R31: 0 | S31: 0 | T31: =cR-CP39 -> 0 | U31: 0
A32: Start (length from x=0) | B32: 0 | C32: =ROUND(SUM($B$30:B30),0) -> 36 | D32: =ROUND(SUM($B$30:C30),0) -> 53 | E32: =ROUND(SUM($B$30:D30),0) -> 63 | F32: =ROUND(SUM($B$30:E30),0) -> 70 | G32: =ROUND(SUM($B$30:F30),0) -> 75 | H32: =ROUND(SUM($B$30:G30),0) -> 80 | I32: =ROUND(SUM($B$30:H30),0) -> 84 | J32: =ROUND(SUM($B$30:I30),0) -> 87 | K32: =ROUND(SUM($B$30:J30),0) -> 93 | L32: =ROUND(SUM($B$30:K30),0) -> 96 | M32: =ROUND(SUM($B$30:L30),0) -> 99 | N32: =ROUND(SUM($B$30:M30),0) -> 101 | O32: =ROUND(SUM($B$30:N30),0) -> 103 | P32: =ROUND(SUM($B$30:O30),0) -> 105 | Q32: =ROUND(SUM($B$30:P30),0) -> 108 | R32: =ROUND(SUM($B$30:Q30),0) -> 110 | S32: =ROUND(SUM($B$30:R30),0) -> 112 | T32: =ROUND(SUM($B$30:S30),0) -> 114 | U32: =ROUND(SUM($B$30:T30),0) -> 114
G35: STAGE I | AZ35: STAGE II
B36: In situ | F36: Stage II | H36: x | I36: 1 | K36: =OFFSET($B$30,0,(COLUMN(B1)-COLUMN($B$1))/5) -> 36.38582606 | M36: x | N36: =I36+1 -> 2 | P36: =OFFSET($B$30,0,(COLUMN(G1)-COLUMN($B$1))/5) -> 17.04125705 | R36: x | S36: =N36+1 -> 3 | U36: =OFFSET($B$30,0,(COLUMN(L1)-COLUMN($B$1))/5) -> 9.5132361 | W36: x | X36: =S36+1 -> 4 | Z36: =OFFSET($B$30,0,(COLUMN(Q1)-COLUMN($B$1))/5) -> 6.745262999 | AB36: x | AC36: =X36+1 -> 5 | AE36: =OFFSET($B$30,0,(COLUMN(V1)-COLUMN($B$1))/5) -> 5.339722181 | AG36: x | AH36: =AC36+1 -> 6 | AJ36: =OFFSET($B$30,0,(COLUMN(AA1)-COLUMN($B$1))/5) -> 4.521548562 | AL36: x | AM36: =AH36+1 -> 7 | AO36: =OFFSET($B$30,0,(COLUMN(AF1)-COLUMN($B$1))/5) -> 4.022389557 | AQ36: x | AR36: =AM36+1 -> 8 | AT36: =OFFSET($B$30,0,(COLUMN(AK1)-COLUMN($B$1))/5) -> 3.75001874 | AV36: x | AW36: =AR36+1 -> 9 | AY36: =OFFSET($B$30,0,(COLUMN(AP1)-COLUMN($B$1))/5) -> 6.074979337 | BA36: x | BB36: =AW36+1 -> 10 | BD36: =OFFSET($B$30,0,(COLUMN(AU1)-COLUMN($B$1))/5) -> 2.801946453 | BF36: x | BG36: =BB36+1 -> 11 | BI36: =OFFSET($B$30,0,(COLUMN(AZ1)-COLUMN($B$1))/5) -> 2.524414187 | BK36: x | BL36: =BG36+1 -> 12 | BN36: =OFFSET($B$30,0,(COLUMN(BE1)-COLUMN($B$1))/5) -> 2.354619918 | BP36: x | BQ36: =BL36+1 -> 13 | BS36: =OFFSET($B$30,0,(COLUMN(BJ1)-COLUMN($B$1))/5) -> 2.234350286 | BU36: x | BV36: =BQ36+1 -> 14 | BX36: =OFFSET($B$30,0,(COLUMN(BO1)-COLUMN($B$1))/5) -> 2.147346698 | BZ36: x | CA36: =BV36+1 -> 15 | CC36: =OFFSET($B$30,0,(COLUMN(BT1)-COLUMN($B$1))/5) -> 2.084303669 | CE36: x | CF36: =CA36+1 -> 16 | CH36: =OFFSET($B$30,0,(COLUMN(BY1)-COLUMN($B$1))/5) -> 2.039771612 | CJ36: x | CK36: =CF36+1 -> 17 | CM36: =OFFSET($B$30,0,(COLUMN(CD1)-COLUMN($B$1))/5) -> 2.01321894 | CO36: x | CP36: =CK36+1 -> 18 | CR36: =OFFSET($B$30,0,(COLUMN(CI1)-COLUMN($B$1))/5) -> 1.999423415 | CT36: x | CU36: =CP36+1 -> 19 | CW36: =OFFSET($B$30,0,(COLUMN(CN1)-COLUMN($B$1))/5) -> 1.849103789e-12 | CY36: x | CZ36: =CU36+1 -> 20 | DB36: =OFFSET($B$30,0,(COLUMN(CS1)-COLUMN($B$1))/5) -> 38.6100333
A37: start of Dx(Sx) | K37: =OFFSET($B$32,0,(COLUMN(B1)-COLUMN($B$1))*5)&" ("&ROUND($V$30,0)&")" -> 0 (152) | P37: =OFFSET($B$32,0,(COLUMN(G1)-COLUMN($B$1))/5)&" ("&ROUND($V$30,0)&")" -> 36 (152) | U37: =OFFSET($B$32,0,(COLUMN(L1)-COLUMN($B$1))/5)&" ("&ROUND($V$30,0)&")" -> 53 (152) | Z37: =OFFSET($B$32,0,(COLUMN(Q1)-COLUMN($B$1))/5)&" ("&ROUND($V$30,0)&")" -> 63 (152) | AE37: =OFFSET($B$32,0,(COLUMN(V1)-COLUMN($B$1))/5)&" ("&ROUND($V$30,0)&")" -> 70 (152) | AJ37: =OFFSET($B$32,0,(COLUMN(AA1)-COLUMN($B$1))/5)&" ("&ROUND($V$30,0)&")" -> 75 (152) | AO37: =OFFSET($B$32,0,(COLUMN(AF1)-COLUMN($B$1))/5)&" ("&ROUND($V$30,0)&")" -> 80 (152) | AT37: =OFFSET($B$32,0,(COLUMN(AK1)-COLUMN($B$1))/5)&" ("&ROUND($V$30,0)&")" -> 84 (152) | AY37: =OFFSET($B$32,0,(COLUMN(AP1)-COLUMN($B$1))/5)&" ("&ROUND($V$30,0)&")" -> 87 (152) | BD37: =OFFSET($B$32,0,(COLUMN(AU1)-COLUMN($B$1))/5)&" ("&ROUND($V$30,0)&")" -> 93 (152) | BI37: =OFFSET($B$32,0,(COLUMN(AZ1)-COLUMN($B$1))/5)&" ("&ROUND($V$30,0)&")" -> 96 (152) | BN37: =OFFSET($B$32,0,(COLUMN(BE1)-COLUMN($B$1))/5)&" ("&ROUND($V$30,0)&")" -> 99 (152) | BS37: =OFFSET($B$32,0,(COLUMN(BJ1)-COLUMN($B$1))/5)&" ("&ROUND($V$30,0)&")" -> 101 (152) | BX37: =OFFSET($B$32,0,(COLUMN(BO1)-COLUMN($B$1))/5)&" ("&ROUND($V$30,0)&")" -> 103 (152) | CC37: =OFFSET($B$32,0,(COLUMN(BT1)-COLUMN($B$1))/5)&" ("&ROUND($V$30,0)&")" -> 105 (152) | CH37: =OFFSET($B$32,0,(COLUMN(BY1)-COLUMN($B$1))/5)&" ("&ROUND($V$30,0)&")" -> 108 (152) | CM37: =OFFSET($B$32,0,(COLUMN(CD1)-COLUMN($B$1))/5)&" ("&ROUND($V$30,0)&")" -> 110 (152) | CR37: =OFFSET($B$32,0,(COLUMN(CI1)-COLUMN($B$1))/5)&" ("&ROUND($V$30,0)&")" -> 112 (152) | CW37: =OFFSET($B$32,0,(COLUMN(CN1)-COLUMN($B$1))/5)&" ("&ROUND($V$30,0)&")" -> 114 (152) | DB37: =OFFSET($B$32,0,(COLUMN(CS1)-COLUMN($B$1))/5)&" ("&ROUND($V$30,0)&")" -> 114 (152)
A38: Z från slip surface | B38: to | C38: Density | D38: tel | E38: cu | F38: tmax | G38: t | H38: Dt | I38: t+Dt | J38: g(t) | K38: d (t) | L38: t | M38: Dt | N38: t+Dt | O38: g(t) | P38: d (t) | Q38: t | R38: Dt | S38: t+Dt | T38: g(t) | U38: d (t) | V38: t | W38: Dt | X38: t+Dt | Y38: g(t) | Z38: d (t) | AA38: t | AB38: Dt | AC38: t+Dt | AD38: g(t) | AE38: d (t) | AF38: t | AG38: Dt | AH38: t+Dt | AI38: g(t) | AJ38: d (t) | AK38: t | AL38: Dt | AM38: t+Dt | AN38: g(t) | AO38: d (t) | AP38: t | AQ38: Dt | AR38: t+Dt | AS38: g(t) | AT38: d (t) | AU38: t | AV38: Dt | AW38: t+Dt | AX38: g(t) | AY38: d (t) | AZ38: t | BA38: Dt | BB38: t+Dt | BC38: g(t) | BD38: d (t) | BE38: t | BF38: Dt | BG38: t+Dt | BH38: g(t) | BI38: d (t) | BJ38: t | BK38: Dt | BL38: t+Dt | BM38: g(t) | BN38: d (t) | BO38: t | BP38: Dt | BQ38: t+Dt | BR38: g(t) | BS38: d (t) | BT38: t | BU38: Dt | BV38: t+Dt | BW38: g(t) | BX38: d (t) | BY38: t | BZ38: Dt | CA38: t+Dt | CB38: g(t) | CC38: d (t) | CD38: t | CE38: Dt | CF38: t+Dt | CG38: g(t) | CH38: d (t) | CI38: t | CJ38: Dt | CK38: t+Dt | CL38: g(t) | CM38: d (t) | CN38: t | CO38: Dt | CP38: t+Dt | CQ38: g(t) | CR38: d (t) | CS38: t | CT38: Dt | CU38: t+Dt | CV38: g(t) | CW38: d (t) | CX38: t | CY38: Dt | CZ38: t+Dt | DA38: g(t) | DB38: d (t)
A39: 0 | B39: =Density*Height*SIN(ATAN(grad)) -> 0 | C39: =$C$12+$C$13*(Height-z) -> 0 | D39: =tel*cu/c_peak ->  | E39: =c_peak-(c_peak-cS)*z/Height ->  | F39: =c_peak -> 0 | G39: =to -> 0 | H39: =B31 ->  | I39: =t+dt_z ->  | J39: =IF(I39<t_el,(I39-t)*gel/t_el,(IF(to>t_el,(g_f-gel)*(SQRT(1-(to-t_el)/(cu-t_el))-SQRT(1-(I39-t_el)/(cu-t_el))),(t_el-to)*gel/t_el+(g_f-gel)*(1-SQRT(ABS(1-(I39-t_el)/(cu-t_el))))))) ->  | K39: 0 | L39: =t_Dt ->  | M39: =C31 -> 0 | N39: =L39+M39 ->  | O39: =IF(N39<t_el,(N39-t)*gel/t_el,(IF(to>t_el,(g_f-gel)*(SQRT(1-(to-t_el)/(cu-t_el))-SQRT(1-(N39-t_el)/(cu-t_el))),(t_el-to)*gel/t_el+(g_f-gel)*(1-SQRT(ABS(1-(N39-t_el)/(cu-t_el))))))) ->  | P39: 0 | Q39: =N39 ->  | R39: =D31 -> 0 | S39: =Q39+R39 ->  | T39: =IF(S39<t_el,(S39-t)*gel/t_el,(IF(to>t_el,(g_f-gel)*(SQRT(1-(to-t_el)/(cu-t_el))-SQRT(1-(S39-t_el)/(cu-t_el))),(t_el-to)*gel/t_el+(g_f-gel)*(1-SQRT(ABS(1-(S39-t_el)/(cu-t_el))))))) ->  | U39: 0 | V39: =S39 ->  | W39: =E31 -> 0 | X39: =V39+W39 ->  | Y39: =IF(X39<t_el,(X39-t)*gel/t_el,(IF(to>t_el,(g_f-gel)*(SQRT(1-(to-t_el)/(cu-t_el))-SQRT(1-(X39-t_el)/(cu-t_el))),(t_el-to)*gel/t_el+(g_f-gel)*(1-SQRT(ABS(1-(X39-t_el)/(cu-t_el))))))) ->  | Z39: 0 | AA39: =X39 ->  | AB39: =F31 -> 0 | AC39: =AA39+AB39 ->  | AD39: =IF(AC39<t_el,(AC39-t)*gel/t_el,(IF(to>t_el,(g_f-gel)*(SQRT(1-(to-t_el)/(cu-t_el))-SQRT(1-(AC39-t_el)/(cu-t_el))),(t_el-to)*gel/t_el+(g_f-gel)*(1-SQRT(ABS(1-(AC39-t_el)/(cu-t_el))))))) ->  | AE39: 0 | AF39: =AC39 ->  | AG39: =G31 -> 0 | AH39: =AF39+AG39 ->  | AI39: =IF(AH39<t_el,(AH39-t)*gel/t_el,(IF(to>t_el,(g_f-gel)*(SQRT(1-(to-t_el)/(cu-t_el))-SQRT(1-(AH39-t_el)/(cu-t_el))),(t_el-to)*gel/t_el+(g_f-gel)*(1-SQRT(ABS(1-(AH39-t_el)/(cu-t_el))))))) ->  | AJ39: 0 | AK39: =AH39 ->  | AL39: =H31 -> 0 | AM39: =AK39+AL39 ->  | AN39: =IF(AM39<t_el,(AM39-t)*gel/t_el,(IF(to>t_el,(g_f-gel)*(SQRT(1-(to-t_el)/(cu-t_el))-SQRT(1-(AM39-t_el)/(cu-t_el))),(t_el-to)*gel/t_el+(g_f-gel)*(1-SQRT(ABS(1-(AM39-t_el)/(cu-t_el))))))) ->  | AO39: 0 | AP39: =AM39 ->  | AQ39: =I31 -> 0 | AR39: =AP39+AQ39 ->  | AS39: =IF(AR39<t_el,(AR39-t)*gel/t_el,(IF(to>t_el,(g_f-gel)*(SQRT(1-(to-t_el)/(cu-t_el))-SQRT(1-(AR39-t_el)/(cu-t_el))),(t_el-to)*gel/t_el+(g_f-gel)*(1-SQRT(ABS(1-(AR39-t_el)/(cu-t_el))))))) ->  | AT39: 0 | AU39: =AR39 ->  | AV39: =J31 ->  | AW39: =AU39+AV39 ->  | AX39: =IF(AW39<t_el,(AW39-t)*gel/t_el,(IF(to>t_el,(g_f-gel)*(SQRT(1-(to-t_el)/(cu-t_el))-SQRT(1-(AW39-t_el)/(cu-t_el))),(t_el-to)*gel/t_el+(g_f-gel)*(1-SQRT(ABS(1-(AW39-t_el)/(cu-t_el))))))) ->  | AY39: 0 | AZ39: =c_peak -> 0 | BA39: =K31 -> 0 | BB39: =AZ39+BA39 -> 0 | BC39: =IF(to>t_el,(g_f-gel)*(SQRT(1-(to-t_el)/(cu-t_el))-SQRT(1-(ABS(tmax-t_el))/(cu-t_el)))-(tmax-BB39)*gel/t_el,(t_el-to)*gel/t_el+(g_f-gel)*(1-SQRT(1-(ABS(tmax-t_el))/(cu-t_el)))+(BB39-tmax)*gel/t_el) ->  | BD39: 0 | BE39: =BB39 -> 0 | BF39: =L31 -> 0 | BG39: =BE39+BF39 -> 0 | BH39: =IF(to>t_el,(g_f-gel)*(SQRT(1-(to-t_el)/(cu-t_el))-SQRT(1-(ABS(tmax-t_el))/(cu-t_el)))-(tmax-BG39)*gel/t_el,(t_el-to)*gel/t_el+(g_f-gel)*(1-SQRT(1-(ABS(tmax-t_el))/(cu-t_el)))+(BG39-tmax)*gel/t_el) ->  | BI39: 0 | BJ39: =BG39 -> 0 | BK39: =M31 -> 0 | BL39: =BJ39+BK39 -> 0 | BM39: =IF(to>t_el,(g_f-gel)*(SQRT(1-(to-t_el)/(cu-t_el))-SQRT(1-(ABS(tmax-t_el))/(cu-t_el)))-(tmax-BL39)*gel/t_el,(t_el-to)*gel/t_el+(g_f-gel)*(1-SQRT(1-(ABS(tmax-t_el))/(cu-t_el)))+(BL39-tmax)*gel/t_el) ->  | BN39: 0 | BO39: =BL39 -> 0 | BP39: =N31 -> 0 | BQ39: =BO39+BP39 -> 0 | BR39: =IF(to>t_el,(g_f-gel)*(SQRT(1-(to-t_el)/(cu-t_el))-SQRT(1-(ABS(tmax-t_el))/(cu-t_el)))-(tmax-BQ39)*gel/t_el,(t_el-to)*gel/t_el+(g_f-gel)*(1-SQRT(1-(ABS(tmax-t_el))/(cu-t_el)))+(BQ39-tmax)*gel/t_el) ->  | BS39: 0 | BT39: =BQ39 -> 0 | BU39: =O31 -> 0 | BV39: =BT39+BU39 -> 0 | BW39: =IF(to>t_el,(g_f-gel)*(SQRT(1-(ABS(to-t_el))/(cu-t_el))-SQRT(1-(ABS(tmax-t_el))/(cu-t_el)))-(tmax-BV39)*gel/t_el,(t_el-to)*gel/t_el+(g_f-gel)*(1-SQRT(1-(ABS(tmax-t_el))/(cu-t_el)))+(BV39-tmax)*gel/t_el) ->  | BX39: 0 | BY39: =BV39 -> 0 | BZ39: =P31 -> 0 | CA39: =BY39+BZ39 -> 0 | CB39: =IF(to>t_el,(g_f-gel)*(SQRT(1-(ABS(to-t_el))/(cu-t_el))-SQRT(1-(ABS(tmax-t_el))/(cu-t_el)))-(tmax-CA39)*gel/t_el,(t_el-to)*gel/t_el+(g_f-gel)*(1-SQRT(1-(ABS(tmax-t_el))/(cu-t_el)))+(CA39-tmax)*gel/t_el) ->  | CC39: 0 | CD39: =CA39 -> 0 | CE39: =Q31 -> 0 | CF39: =CD39+CE39 -> 0 | CG39: =IF(to>t_el,(g_f-gel)*(SQRT(1-(ABS(to-t_el))/(cu-t_el))-SQRT(1-(ABS(tmax-t_el))/(cu-t_el)))-(tmax-CF39)*gel/t_el,(t_el-to)*gel/t_el+(g_f-gel)*(1-SQRT(1-(ABS(tmax-t_el))/(cu-t_el)))+(CF39-tmax)*gel/t_el) ->  | CH39: 0 | CI39: =CF39 -> 0 | CJ39: =R31 -> 0 | CK39: =CI39+CJ39 -> 0 | CL39: =IF(to>t_el,(g_f-gel)*(SQRT(1-(ABS(to-t_el))/(cu-t_el))-SQRT(1-(ABS(tmax-t_el))/(cu-t_el)))-(tmax-CK39)*gel/t_el,(t_el-to)*gel/t_el+(g_f-gel)*(1-SQRT(1-(ABS(tmax-t_el))/(cu-t_el)))+(CK39-tmax)*gel/t_el) ->  | CM39: 0 | CN39: =CK39 -> 0 | CO39: =S31 -> 0 | CP39: =CN39+CO39 -> 0 | CQ39: =IF(to>t_el,(g_f-gel)*(SQRT(1-(ABS(to-t_el))/(cu-t_el))-SQRT(1-(ABS(tmax-t_el))/(cu-t_el)))-(tmax-CP39)*gel/t_el,(t_el-to)*gel/t_el+(g_f-gel)*(1-SQRT(1-(ABS(tmax-t_el))/(cu-t_el)))+(CP39-tmax)*gel/t_el) ->  | CR39: 0 | CS39: =CP39 -> 0 | CT39: =T31 -> 0 | CU39: =CS39+CT39 -> 0 | CV39: =IF(to>t_el,(g_f-gel)*(SQRT(1-(ABS(to-t_el))/(cu-t_el))-SQRT(1-(ABS(tmax-t_el))/(cu-t_el)))-(tmax-CU39)*gel/t_el,(t_el-to)*gel/t_el+(g_f-gel)*(1-SQRT(1-(ABS(tmax-t_el))/(cu-t_el)))+(CU39-tmax)*gel/t_el) ->  | CW39: 0 | CX39: =CU39 -> 0 | CY39: =U31 -> 0 | CZ39: =CX39+CY39 -> 0 | DA39: =IF(to>t_el,(g_f-gel)*(SQRT(1-(ABS(to-t_el))/(cu-t_el))-SQRT(1-(ABS(tmax-t_el))/(cu-t_el)))-(tmax-CZ39)*gel/t_el,(t_el-to)*gel/t_el+(g_f-gel)*(1-SQRT(1-(ABS(tmax-t_el))/(cu-t_el)))+(CZ39-tmax)*gel/t_el) ->  | DB39: 0
A40: =IF(A39<Height/3,A39+1,"") ->  | B40: =$B$39*(1-(z-$A$39)/Height) ->  | F40: =$F$39*(1-(z-$A$39)/Height) ->  | G40: =$G$39*(1-(z-$A$39)/Height) ->  | H40: =$H$39*(1-(z-$A$39)/Height) ->  | K40: =(z-$A39)*AVERAGE(J39:J40) ->  | L40: =L$39*(1-(z-$A$39)/Height) ->  | P40: =(z-$A39)*AVERAGE(O39:O40) ->  | Q40: =Q$39*(1-(z-$A$39)/Height) ->  | S40: =Q40+R40 ->  | U40: =(z-$A39)*AVERAGE(T39:T40) ->  | V40: =V$39*(1-(z-$A$39)/Height) ->  | Z40: =(z-$A39)*AVERAGE(Y39:Y40) ->  | AA40: =AA$39*(1-(z-$A$39)/Height) ->  | AC40: =AA40+AB40 ->  | AE40: =(z-$A39)*AVERAGE(AD39:AD40) ->  | AF40: =AF$39*(1-(z-$A$39)/Height) ->  | AJ40: =(z-$A39)*AVERAGE(AI39:AI40) ->  | AK40: =AK$39*(1-(z-$A$39)/Height) ->  | AM40: =AK40+AL40 ->  | AO40: =(z-$A39)*AVERAGE(AN39:AN40) ->  | AP40: =AP$39*(1-(z-$A$39)/Height) ->  | AT40: =(z-$A39)*AVERAGE(AS39:AS40) ->  | AU40: =AU$39*(1-(z-$A$39)/Height) ->  | AW40: =AU40+AV40 ->  | AY40: =(z-$A39)*AVERAGE(AX39:AX40) ->  | AZ40: =AZ$39*(1-(z-$A$39)/Height) ->  | BB40: =AZ40+BA40 ->  | BD40: =(z-$A39)*AVERAGE(BC39:BC40) ->  | BE40: =BE$39*(1-(z-$A$39)/Height) ->  | BI40: =(z-$A39)*AVERAGE(BH39:BH40) ->  | BJ40: =BJ$39*(1-(z-$A$39)/Height) ->  | BL40: =BJ40+BK40 ->  | BN40: =(z-$A39)*AVERAGE(BM39:BM40) ->  | BO40: =BO$39*(1-(z-$A$39)/Height) ->  | BS40: =(z-$A39)*AVERAGE(BR39:BR40) ->  | BT40: =BT$39*(1-(z-$A$39)/Height) ->  | BV40: =BT40+BU40 ->  | BX40: =(z-$A39)*AVERAGE(BW39:BW40) ->  | BY40: =BY$39*(1-(z-$A$39)/Height) ->  | CC40: =(z-$A39)*AVERAGE(CB39:CB40) ->  | CD40: =CD$39*(1-(z-$A$39)/Height) ->  | CF40: =CD40+CE40 ->  | CH40: =(z-$A39)*AVERAGE(CG39:CG40) ->  | CI40: =CI$39*(1-(z-$A$39)/Height) ->  | CM40: =(z-$A39)*AVERAGE(CL39:CL40) ->  | CN40: =CN$39*(1-(z-$A$39)/Height) ->  | CP40: =CN40+CO40 ->  | CR40: =(z-$A39)*AVERAGE(CQ39:CQ40) ->  | CS40: =CS$39*(1-(z-$A$39)/Height) ->  | CU40: =CS40+CT40 ->  | CW40: =(z-$A39)*AVERAGE(CV39:CV40) ->  | CX40: =CX$39*(1-(z-$A$39)/Height) ->  | CZ40: =CX40+CY40 ->  | DB40: =(z-$A39)*AVERAGE(DA39:DA40) -> 
A46: 6.67 | C46: 0
BB48: d (x) | BC48: =def_cR*($E$39-BB$39)/($E$39-cR) ->  | BG48: d (x) | BH48: =def_cR*($E$39-BG$39)/($E$39-cR) ->  | BL48: d (x) | BM48: =def_cR*($E$39-BL$39)/($E$39-cR) ->  | BQ48: d (x) | BR48: =def_cR*($E$39-BQ$39)/($E$39-cR) ->  | BV48: d (x) | BW48: =def_cR*($E$39-BV$39)/($E$39-cR) ->  | CA48: d (x) | CB48: =def_cR*($E$39-CA$39)/($E$39-cR) ->  | CF48: d (x) | CG48: =def_cR*($E$39-CF$39)/($E$39-cR) ->  | CK48: d (x) | CL48: =def_cR*($E$39-CK$39)/($E$39-cR) ->  | CP48: d (x) | CQ48: =def_cR*($E$39-CP$39)/($E$39-cR) ->  | CU48: d (x) | CV48: =def_cR*($E$39-CU$39)/($E$39-cR) ->  | CZ48: d (x) | DA48: =def_cR*($E$39-CZ$39)/($E$39-cR) -> 
BB49: d (slip) | BC49: =IF((BB39-cR)<1,IF((BC53-BC48-SUM(BD39:BD46))<0,BC53-BC48-SUM(BD39:BD46),0),0) ->  | BG49: d (slip) | BH49: =IF((BG39-cR)<1,IF((BH53-BH48-SUM(BI39:BI46))<0,BH53-BH48-SUM(BI39:BI46),0),0) ->  | BL49: d (slip) | BM49: =IF((BL39-cR)<1,IF((BM53-BM48-SUM(BN39:BN46))<0,BM53-BM48-SUM(BN39:BN46),0),0) ->  | BQ49: d (slip) | BR49: =IF((BQ39-cR)<1,IF((BR53-BR48-SUM(BS39:BS46))<0,BR53-BR48-SUM(BS39:BS46),0),0) ->  | BV49: d (slip) | BW49: =IF((BV39-cR)<1,IF((BW53-BW48-SUM(BX39:BX46))<0,BW53-BW48-SUM(BX39:BX46),0),0) ->  | CA49: d (slip) | CB49: =IF((CA39-cR)<1,IF((CB53-CB48-SUM(CC39:CC46))<0,CB53-CB48-SUM(CC39:CC46),0),0) ->  | CF49: d (slip) | CG49: =IF((CF39-cR)<1,IF((CG53-CG48-SUM(CH39:CH46))<0,CG53-CG48-SUM(CH39:CH46),0),0) ->  | CK49: d (slip) | CL49: =IF((CK39-cR)<1,IF((CL53-CL48-SUM(CM39:CM46))<0,CL53-CL48-SUM(CM39:CM46),0),0) ->  | CP49: d (slip) | CQ49: =IF((CP39-cR)<1,IF((CQ53-CQ48-SUM(CR39:CR46))<0,CQ53-CQ48-SUM(CR39:CR46),0),0) ->  | CU49: d (slip) | CV49: =IF((CU39-cR)<=1,IF((CV53-CV48-SUM(CW39:CW46))<0,CV53-CV48-SUM(CW39:CW46),0),0) ->  | CZ49: d (slip) | DA49: =DA53-SUM(DB39:DB46)-DA48 -> 
A50: D N | I50: D N | J50: =(((I39+G39)/2)-$B$39)*$B$30 ->  | N50: D N | O50: =(((N39+L39)/2)-$B$39)*C30 ->  | S50: D N | T50: =(((S39+Q39)/2)-$B$39)*D30 ->  | X50: D N | Y50: =(((X39+V39)/2)-$B$39)*E30 ->  | AC50: D N | AD50: =(((AC39+AA39)/2)-$B$39)*F30 ->  | AH50: D N | AI50: =(((AH39+AF39)/2)-$B$39)*G30 ->  | AM50: D N | AN50: =(((AM39+AK39)/2)-$B$39)*H30 ->  | AR50: D N | AS50: =(((AR39+AP39)/2)-$B$39)*I30 ->  | AW50: D N | AX50: =(((AW39+AU39)/2)-$B$39)*J30 ->  | BB50: D N | BC50: =(((BB39+AZ39)/2)-$B$39)*K30 -> 0 | BG50: D N | BH50: =(((BG39+BE39)/2)-$B$39)*L30 -> 0 | BL50: D N | BM50: =(((BL39+BJ39)/2)-$B$39)*M30 -> 0 | BQ50: D N | BR50: =(((BQ39+BO39)/2)-$B$39)*N30 -> 0 | BV50: D N | BW50: =(((BV39+BT39)/2)-$B$39)*O30 -> 0 | CA50: D N | CB50: =(((CA39+BY39)/2)-$B$39)*P30 -> 0 | CF50: D N | CG50: =(((CF39+CD39)/2)-$B$39)*Q30 -> 0 | CK50: D N | CL50: =(((CK39+CI39)/2)-$B$39)*R30 -> 0 | CP50: D N | CQ50: =(((CP39+CN39)/2)-$B$39)*S30 -> 0 | CU50: D N | CV50: =(((CU39+CS39)/2)-$B$39)*T30 -> 0 | CZ50: D N | DA50: =(((CZ39+CX39)/2)-$B$39)*U30 -> 0
A51: SD N | I51: SD N | J51: =J50 ->  | N51: SD N | O51: =O50+J51 ->  | S51: SD N | T51: =T50+O51 ->  | X51: SD N | Y51: =Y50+T51 ->  | AC51: SD N | AD51: =AD50+Y51 ->  | AH51: SD N | AI51: =AI50+AD51 ->  | AM51: SD N | AN51: =AN50+AI51 ->  | AR51: SD N | AS51: =AS50+AN51 ->  | AW51: SD N | AX51: =AX50+AS51 ->  | BB51: SD N | BC51: =AX51+BC50 ->  | BG51: SD N | BH51: =BC51+BH50 ->  | BL51: SD N | BM51: =BM50+BH51 ->  | BQ51: SD N | BR51: =BR50+BM51 ->  | BV51: SD N | BW51: =BW50+BR51 ->  | CA51: SD N | CB51: =CB50+BW51 ->  | CF51: SD N | CG51: =CG50+CB51 ->  | CK51: SD N | CL51: =CL50+CG51 ->  | CP51: SD N | CQ51: =CQ50+CL51 ->  | CU51: SD N | CV51: =CV50+CQ51 ->  | CZ51: SD N | DA51: =DA50+CV51 -> 
A52: d (N) | I52: d (N) | J52: =(J50+0)/2*B30/Emean/Height ->  | N52: d (N) | O52: =(J51+O50/2)*C30/Emean/Height ->  | S52: d (N) | T52: =(O51+T50/2)*D30/Emean/Height ->  | X52: d (N) | Y52: =(T51+Y50/2)*E30/Emean/Height ->  | AC52: d (N) | AD52: =(Y51+AD50/2)*F30/Emean/Height ->  | AH52: d (N) | AI52: =(AD51+AI50/2)*G30/Emean/Height ->  | AM52: d (N) | AN52: =(AI51+AN50/2)*H30/Emean/Height ->  | AR52: d (N) | AS52: =(AN51+AS50/2)*I30/Emean/Height ->  | AW52: d (N) | AX52: =(AS51+AX50/2)*J30/Emean/Height ->  | BB52: d (N) | BC52: =(AX51+BC50/2)*K30/Emean/Height ->  | BG52: d (N) | BH52: =(BC51+BH50/2)*L30/Emean/Height ->  | BL52: d (N) | BM52: =(BH51+BM50/2)*M30/Emean/Height ->  | BQ52: d (N) | BR52: =(BM51+BR50/2)*N30/Emean/Height ->  | BV52: d (N) | BW52: =(BR51+BW50/2)*O30/Emean/Height ->  | CA52: d (N) | CB52: =(BW51+CB50/2)*P30/Emean/Height ->  | CF52: d (N) | CG52: =(CB51+CG50/2)*Q30/Emean/Height ->  | CK52: d (N) | CL52: =(CG51+CL50/2)*R30/Emean/Height ->  | CP52: d (N) | CQ52: =(CL51+CQ50/2)*S30/Emean/Height ->  | CU52: d (N) | CV52: =(CQ51+CV50/2)*T30/Emean/Height ->  | CZ52: d (N) | DA52: =(CV51+DA50/2)*U30/Emean/Height -> 
A53: S d (N) | I53: S d (N) | J53: =J52 ->  | N53: S d (N) | O53: =O52+J53 ->  | S53: S d (N) | T53: =T52+O53 ->  | X53: S d (N) | Y53: =Y52+T53 ->  | AC53: S d (N) | AD53: =AD52+Y53 ->  | AH53: S d (N) | AI53: =AI52+AD53 ->  | AM53: S d (N) | AN53: =AN52+AI53 ->  | AR53: S d (N) | AS53: =AS52+AN53 ->  | AW53: S d (N) | AX53: =AX52+AS53 ->  | BB53: S d (N) | BC53: =BC52+AX53 ->  | BG53: S d (N) | BH53: =BH52+BC53 ->  | BL53: S d (N) | BM53: =BM52+BH53 ->  | BQ53: S d (N) | BR53: =BR52+BM53 ->  | BV53: S d (N) | BW53: =BW52+BR53 ->  | CA53: S d (N) | CB53: =CB52+BW53 ->  | CF53: S d (N) | CG53: =CG52+CB53 ->  | CK53: S d (N) | CL53: =CL52+CG53 ->  | CP53: S d (N) | CQ53: =CQ52+CL53 ->  | CU53: S d (N) | CV53: =CV52+CQ53 ->  | CZ53: S d (N) | DA53: =DA52+CV53 -> 
A54: S d (t) | I54: S d (t) | J54: =SUM(def) ->  | N54: S d (t) | O54: =SUM(P39:P49) ->  | S54: S d (t) | T54: =SUM(U39:U49) ->  | X54: S d (t) | Y54: =SUM(Z39:Z49) ->  | AC54: S d (t) | AD54: =SUM(AE39:AE49) ->  | AH54: S d (t) | AI54: =SUM(AJ39:AJ49) ->  | AM54: S d (t) | AN54: =SUM(AO39:AO49) ->  | AR54: S d (t) | AS54: =SUM(AT39:AT49) ->  | AW54: S d (t) | AX54: =SUM(AY39:AY49) ->  | BB54: S d (t) | BC54: =SUM(BD39:BD47)+BC48+BC49 ->  | BG54: S d (t) | BH54: =SUM(BI39:BI47)+BH48+BH49 ->  | BL54: S d (t) | BM54: =SUM(BN39:BN47)+BM48+BM49 ->  | BQ54: S d (t) | BR54: =SUM(BS39:BS47)+BR48+BR49 ->  | BV54: S d (t) | BW54: =SUM(BX39:BX47)+BW48+BW49 ->  | CA54: S d (t) | CB54: =SUM(CC39:CC47)+CB48+CB49 ->  | CF54: S d (t) | CG54: =SUM(CH39:CH47)+CG48+CG49 ->  | CK54: S d (t) | CL54: =SUM(CM39:CM47)+CL48+CL49 ->  | CP54: S d (t) | CQ54: =SUM(CR39:CR47)+CQ48+CQ49 ->  | CU54: S d (t) | CV54: =SUM(CW39:CW47)+CV48+CV49 ->  | CZ54: S d (t) | DA54: =SUM(DB39:DB47)+DA48+DA49 -> 
A55: Difference | C55: sum stage I | D55: =SUM(I55:AX55) ->  | J55: =ABS(J53-J54)*10000 ->  | O55: =ABS(O53-O54)*10000 ->  | T55: =ABS(T53-T54)*10000 ->  | Y55: =ABS(Y53-Y54)*10000 ->  | AD55: =ABS(AD53-AD54)*10000 ->  | AI55: =ABS(AI53-AI54)*10000 ->  | AN55: =ABS(AN53-AN54)*10000 ->  | AS55: =ABS(AS53-AS54)*10000 ->  | AX55: =ABS(AX53-AX54)*10000 ->  | BC55: =ABS(BC53-BC54)*10000 ->  | BH55: =ABS(BH53-BH54)*10000 ->  | BM55: =ABS(BM53-BM54)*10000 ->  | BR55: =ABS(BR53-BR54)*10000 ->  | BW55: =ABS(BW53-BW54)*10000 ->  | CB55: =ABS(CB53-CB54)*10000 ->  | CG55: =ABS(CG53-CG54)*10000 ->  | CL55: =ABS(CL53-CL54)*10000 ->  | CQ55: =ABS(CQ53-CQ54)*10000 ->  | CV55: =ABS(CV53-CV54)*10000 ->  | DA55: =ABS(DA53-DA54)*10000 -> 
A56: Compatibility | C56: sum stage II | D56: =SUM(BC55:DA55) ->  | J56: =IF(ABS(J55)<=0.5,"Ok","Not ok") ->  | O56: =IF(ABS(O55)<=0.5,"Ok","Not ok") ->  | T56: =IF(ABS(T55)<=0.5,"Ok","Not ok") ->  | Y56: =IF(ABS(Y55)<=0.5,"Ok","Not ok") ->  | AD56: =IF(ABS(AD55)<=0.5,"Ok","Not ok") ->  | AI56: =IF(ABS(AI55)<=0.5,"Ok","Not ok") ->  | AN56: =IF(ABS(AN55)<=0.5,"Ok","Not ok") ->  | AS56: =IF(ABS(AS55)<=0.5,"Ok","Not ok") ->  | AX56: =IF(ABS(AX55)<=0.5,"Ok","Not ok") ->  | BC56: =IF(ABS(BC55)<=0.5,"Ok","Not ok") ->  | BH56: =IF(ABS(BH55)<=0.5,"Ok","Not ok") ->  | BM56: =IF(ABS(BM55)<=0.5,"Ok","Not ok") ->  | BR56: =IF(ABS(BR55)<=0.5,"Ok","Not ok") ->  | BW56: =IF(ABS(BW55)<=0.5,"Ok","Not ok") ->  | CB56: =IF(ABS(CB55)<=0.5,"Ok","Not ok") ->  | CG56: =IF(ABS(CG55)<=0.5,"Ok","Not ok") ->  | CL56: =IF(ABS(CL55)<=0.5,"Ok","Not ok") ->  | CQ56: =IF(ABS(CQ55)<=0.5,"Ok","Not ok") ->  | CV56: =IF(ABS(CV55)<=0.5,"Ok","Not ok") ->  | DA56: =IF(ABS(DA55)<=0.5,"Ok","Not ok") -> 
C57: Both | D57: =D55+D56 -> 
A59: t(x,z)
C60: Stage I | L60: Stage II
B61: start value | C61: Dx1 | D61: Dx2 | E61: Dx3 | F61: Dx4 | G61: Dx5 | H61: Dx6 | I61: Dx7 | J61: Dx8 | K61: Dx9 | L61: Dx10 | M61: Dx11 | N61: Dx12 | O61: Dx13 | P61: Dx14 | Q61: Dx15 | R61: Dx16 | S61: Dx17 | T61: Dx18 | U61: Dx19 | V61: Dx20 | W61: SDx
A62: Distance from X=0 | B62: 0 | C62: =($B$32+$C$32)/2 -> 18 | D62: =($C$32+$D$32)/2 -> 44.5 | E62: =($D$32+$E$32)/2 -> 58 | F62: =($E$32+$F$32)/2 -> 66.5 | G62: =($F$32+$G$32)/2 -> 72.5 | H62: =($G$32+$H$32)/2 -> 77.5 | I62: =($H$32+$I$32)/2 -> 82 | J62: =($I$32+$J$32)/2 -> 85.5 | K62: =($J$32+$K$32)/2 -> 90 | L62: =($K$32+$L$32)/2 -> 94.5 | M62: =($L$32+$M$32)/2 -> 97.5 | N62: =($M$32+$N$32)/2 -> 100 | O62: =($N$32+$O$32)/2 -> 102 | P62: =($O$32+$P$32)/2 -> 104 | Q62: =($P$32+$Q$32)/2 -> 106.5 | R62: =($Q$32+$R$32)/2 -> 109 | S62: =($R$32+$S$32)/2 -> 111 | T62: =($S$32+$T$32)/2 -> 113 | U62: =($T$32+$U$32)/2 -> 114
A63: Z från slip surface
A64: 0 | B64: 0 | C64: =OFFSET($G39,0,(COLUMN(B1)-COLUMN($B$1))*5) -> 0 | L64: 0 | M64: 0 | N64: 0 | O64: 0 | P64: 0 | Q64: 0 | R64: 0 | S64: 0 | T64: 0 | U64: 0 | V64: 0
A65: =IF(A64<Height/3,A64+1,"") ->  | B65: 0 | D65: =OFFSET($G40,0,(COLUMN(cS)-COLUMN($B$1))*5) -> 
B66: 0 | D66: =OFFSET($G41,0,(COLUMN(C3)-COLUMN($B$1))*5) ->  | E66: =OFFSET($G41,0,(COLUMN(D3)-COLUMN($B$1))*5) ->  | F66: =OFFSET($G41,0,(COLUMN(#REF!)-COLUMN($B$1))*5) ->  | G66: =OFFSET($G41,0,(COLUMN(#REF!)-COLUMN($B$1))*5) ->  | H66: =OFFSET($G41,0,(COLUMN(#REF!)-COLUMN($B$1))*5) ->  | I66: =OFFSET($G41,0,(COLUMN(#REF!)-COLUMN($B$1))*5) -> 
B67: 0 | D67: =OFFSET($G42,0,(COLUMN(c_peak)-COLUMN($B$1))*5) ->  | E67: =OFFSET($G42,0,(COLUMN(D4)-COLUMN($B$1))*5) -> 
B68: 0 | D68: =OFFSET($G43,0,(COLUMN(cR)-COLUMN($B$1))*5) -> 
B69: 0 | D69: =OFFSET($G44,0,(COLUMN(tel)-COLUMN($B$1))*5) -> 
B70: 0 | D70: =OFFSET($G45,0,(COLUMN(gel)-COLUMN($B$1))*5) -> 
B71: 0 | D71: =OFFSET($G46,0,(COLUMN(g_f)-COLUMN($B$1))*5) -> 
A75: Dt
C76: Stage I | L76: Stage II
B77: start value | C77: Dx1 | D77: Dx2 | E77: Dx3 | F77: Dx4 | G77: Dx5 | H77: Dx6 | I77: Dx7 | J77: Dx8 | K77: Dx9 | L77: Dx10 | M77: Dx11 | N77: Dx12 | O77: Dx13 | P77: Dx14 | Q77: Dx15 | R77: Dx16 | S77: Dx17 | T77: Dx18 | U77: Dx19 | V77: Dx20 | W77: SDx
A78: Distance from X=0 | B78: 0 | C78: =($B$32+$C$32)/2 -> 18 | D78: =($C$32+$D$32)/2 -> 44.5 | E78: =($D$32+$E$32)/2 -> 58 | F78: =($E$32+$F$32)/2 -> 66.5 | G78: =($F$32+$G$32)/2 -> 72.5 | H78: =($G$32+$H$32)/2 -> 77.5 | I78: =($H$32+$I$32)/2 -> 82 | J78: =($I$32+$J$32)/2 -> 85.5 | K78: =($J$32+$K$32)/2 -> 90 | L78: =($K$32+$L$32)/2 -> 94.5 | M78: =($L$32+$M$32)/2 -> 97.5 | N78: =($M$32+$N$32)/2 -> 100 | O78: =($N$32+$O$32)/2 -> 102 | P78: =($O$32+$P$32)/2 -> 104 | Q78: =($P$32+$Q$32)/2 -> 106.5 | R78: =($Q$32+$R$32)/2 -> 109 | S78: =($R$32+$S$32)/2 -> 111 | T78: =($S$32+$T$32)/2 -> 113 | U78: =($T$32+$U$32)/2 -> 114
A79: Z från slip surface
A80: 0 | B80: 0 | C80: =OFFSET($H39,0,(COLUMN(B$1)-COLUMN($B$1))*5) ->  | D80: 0 | E80: 0 | F80: 0 | G80: 0 | H80: 0 | I80: 0 | J80: 0 | L80: 0 | M80: 0 | N80: 0 | O80: 0 | P80: 0 | Q80: 0 | R80: 0 | S80: 0 | T80: 0 | U80: 0 | V80: 0
A81: =IF(A80<Height/3,A80+1,"") ->  | B81: 0
B82: 0
B83: 0
B84: 0
B85: 0
B86: 0
B87: 0
A91: t+Dt
C92: Stage I | L92: Stage II
C93: Dx1 | D93: Dx2 | E93: Dx3 | F93: Dx4 | G93: Dx5 | H93: Dx6 | I93: Dx7 | J93: Dx8 | K93: Dx9 | L93: Dx10 | M93: Dx11 | N93: Dx12 | O93: Dx13 | P93: Dx14 | Q93: Dx15 | R93: Dx16 | S93: Dx17 | T93: Dx18 | U93: Dx19 | V93: Dx20 | W93: SDx
A94: Distance from x=0 | C94: =($B$32+$C$32)/2 -> 18 | D94: =($C$32+$D$32)/2 -> 44.5 | E94: =($D$32+$E$32)/2 -> 58 | F94: =($E$32+$F$32)/2 -> 66.5 | G94: =($F$32+$G$32)/2 -> 72.5 | H94: =($G$32+$H$32)/2 -> 77.5 | I94: =($H$32+$I$32)/2 -> 82 | J94: =($I$32+$J$32)/2 -> 85.5 | K94: =($J$32+$K$32)/2 -> 90 | L94: =($K$32+$L$32)/2 -> 94.5 | M94: =($L$32+$M$32)/2 -> 97.5 | N94: =($M$32+$N$32)/2 -> 100 | O94: =($N$32+$O$32)/2 -> 102 | P94: =($O$32+$P$32)/2 -> 104 | Q94: =($P$32+$Q$32)/2 -> 106.5 | R94: =($Q$32+$R$32)/2 -> 109 | S94: =($R$32+$S$32)/2 -> 111 | T94: =($S$32+$T$32)/2 -> 113 | U94: =($T$32+$U$32)/2 -> 114
A95: Z från slip surface
A96: 0 | C96: =OFFSET($I39,0,(COLUMN(B$1)-COLUMN($B$1))*5) ->  | L96: 0 | M96: 0 | N96: 0 | O96: 0 | P96: 0 | Q96: 0 | R96: 0 | S96: 0 | T96: 0 | U96: 0 | V96: 0
A97: =IF(A96<Height/3,A96+1,"") -> 
A105: =IF(#REF!<Height/3,#REF!+1,"") -> 
A106: g(t)
C107: Stage I | L107: Stage II
B108: start value | C108: Dx1 | D108: Dx2 | E108: Dx3 | F108: Dx4 | G108: Dx5 | H108: Dx6 | I108: Dx7 | J108: Dx8 | K108: Dx9 | L108: Dx10 | M108: Dx11 | N108: Dx12 | O108: Dx13 | P108: Dx14 | Q108: Dx15 | R108: Dx16 | S108: Dx17 | T108: Dx18 | U108: Dx19 | V108: Dx20 | W108: SDx
A109: Distance from X=0 | C109: =($B$32+$C$32)/2 -> 18 | D109: =($C$32+$D$32)/2 -> 44.5 | E109: =($D$32+$E$32)/2 -> 58 | F109: =($E$32+$F$32)/2 -> 66.5 | G109: =($F$32+$G$32)/2 -> 72.5 | H109: =($G$32+$H$32)/2 -> 77.5 | I109: =($H$32+$I$32)/2 -> 82 | J109: =($I$32+$J$32)/2 -> 85.5 | K109: =($J$32+$K$32)/2 -> 90 | L109: =($K$32+$L$32)/2 -> 94.5 | M109: =($L$32+$M$32)/2 -> 97.5 | N109: =($M$32+$N$32)/2 -> 100 | O109: =($N$32+$O$32)/2 -> 102 | P109: =($O$32+$P$32)/2 -> 104 | Q109: =($P$32+$Q$32)/2 -> 106.5 | R109: =($Q$32+$R$32)/2 -> 109 | S109: =($R$32+$S$32)/2 -> 111 | T109: =($S$32+$T$32)/2 -> 113 | U109: =($T$32+$U$32)/2 -> 114
A110: Z från slip surface
A111: 0 | B111: 0 | C111: =OFFSET($J39,0,(COLUMN(B$1)-COLUMN($B$1))*5) ->  | D111: =OFFSET($J39,0,(COLUMN(C$1)-COLUMN($B$1))*5) -> 
A112: =IF(A111<Height/3,A111+1,"") ->  | B112: 0 | C112: =OFFSET($J40,0,(COLUMN(B$1)-COLUMN($B$1))*5) -> 
B113: 0
B114: 0
B115: 0
B116: 0
B117: 0
B118: 0
A121: d (t)
C122: Stage I | L122: Stage II
B123: start value | C123: Dx1 | D123: Dx2 | E123: Dx3 | F123: Dx4 | G123: Dx5 | H123: Dx6 | I123: Dx7 | J123: Dx8 | K123: Dx9 | L123: Dx10 | M123: Dx11 | N123: Dx12 | O123: Dx13 | P123: Dx14 | Q123: Dx15 | R123: Dx16 | S123: Dx17 | T123: Dx18 | U123: Dx19 | V123: Dx20 | W123: SDx
A124: Distance from X=0 | C124: =($B$32+$C$32)/2 -> 18 | D124: =($C$32+$D$32)/2 -> 44.5 | E124: =($D$32+$E$32)/2 -> 58 | F124: =($E$32+$F$32)/2 -> 66.5 | G124: =($F$32+$G$32)/2 -> 72.5 | H124: =($G$32+$H$32)/2 -> 77.5 | I124: =($H$32+$I$32)/2 -> 82 | J124: =($I$32+$J$32)/2 -> 85.5 | K124: =($J$32+$K$32)/2 -> 90 | L124: =($K$32+$L$32)/2 -> 94.5 | M124: =($L$32+$M$32)/2 -> 97.5 | N124: =($M$32+$N$32)/2 -> 100 | O124: =(N14+O14)/2 -> 0 | P124: =($O$32+$P$32)/2 -> 104 | Q124: =($P$32+$Q$32)/2 -> 106.5 | R124: =($Q$32+$R$32)/2 -> 109 | S124: =($R$32+$S$32)/2 -> 111 | T124: =($S$32+$T$32)/2 -> 113 | U124: =($T$32+$U$32)/2 -> 114
A125: Z från slip surface
A126: 0 | B126: 0 | C126: =OFFSET($K39,0,(COLUMN(B$1)-COLUMN($B$1))*5) -> 0 | D126: 0 | E126: 0 | F126: 0 | G126: 0 | H126: 0 | I126: 0 | J126: 0 | K126: 0 | L126: 0 | M126: 0 | N126: 0 | O126: 0 | P126: 0 | Q126: 0 | R126: 0 | S126: 0 | T126: 0 | U126: 0 | V126: 0
A127: =IF(A126<Height/3,A126+1,"") ->  | B127: 0
B128: 0
B129: 0
B130: 0
B131: 0
B132: 0
B133: 0
A136: Summary
C137: Stage I | L137: Stage II
B138: start value | C138: Dx1 | D138: Dx2 | E138: Dx3 | F138: Dx4 | G138: Dx5 | H138: Dx6 | I138: Dx7 | J138: Dx8 | K138: Dx9 | L138: Dx10 | M138: Dx11 | N138: Dx12 | O138: Dx13 | P138: Dx14 | Q138: Dx15 | R138: Dx16 | S138: Dx17 | T138: Dx18 | U138: Dx19 | V138: Dx20
A139: Distance from foot of slope where x=0 | C139: =B32&" ("&ROUND($V$30,0)&")" -> 0 (152) | D139: 36 (152) | E139: 53 (152) | F139: 63 (152) | G139: 70 (152) | H139: 75 (152) | I139: 80 (152) | J139: 84 (152) | K139: 87 (152) | L139: 93 (152) | M139: 96 (152) | N139: 99 (152) | O139: 101 (152) | P139: 103 (152) | Q139: 105 (152) | R139: 108 (152) | S139: 110 (152) | T139: 112 (152) | U139: 114 (152) | V139: 114 (152)
B140: 0 | C140: =($B$32+$C$32)/2 -> 18 | D140: =($C$32+$D$32)/2 -> 44.5 | E140: =($D$32+$E$32)/2 -> 58 | F140: =($E$32+$F$32)/2 -> 66.5 | G140: =($F$32+$G$32)/2 -> 72.5 | H140: =($G$32+$H$32)/2 -> 77.5 | I140: =($H$32+$I$32)/2 -> 82 | J140: =($I$32+$J$32)/2 -> 85.5 | K140: =($J$32+$K$32)/2 -> 90 | L140: =($K$32+$L$32)/2 -> 94.5 | M140: =($L$32+$M$32)/2 -> 97.5 | N140: =($M$32+$N$32)/2 -> 100 | O140: =($N$32+$O$32)/2 -> 102 | P140: =($O$32+$P$32)/2 -> 104 | Q140: =($P$32+$Q$32)/2 -> 106.5 | R140: =($Q$32+$R$32)/2 -> 109 | S140: =($R$32+$S$32)/2 -> 111 | T140: =($S$32+$T$32)/2 -> 113 | U140: =($T$32+$U$32)/2 -> 114 | V140: =($T$32+V30)/2 -> 133.1018345
A141: D N | B141: 0 | C141: =OFFSET($J50,0,(COLUMN(B$1)-COLUMN($B$1))*5) ->  | L141: 0 | M141: 0 | N141: 0 | O141: 0 | P141: 0 | Q141: 0 | R141: 0 | S141: 0 | T141: 0 | U141: 0 | V141: 0 | W141: D N
A142: SD N | B142: 0 | W142: SD N
A143: d (N) | B143: 0 | W143: d (N)
A144: S d (N) | B144: 0 | W144: S d (N)
A145: S d (t) | B145: 0 | W145: S d (t)
A146: =IF(A145<Height/3,A145+1,"") -> 
A149: End of Stage I | B149: N | C149: =K142 ->  | D149: kN/m3
A150: End of stageI | B150: x | C150: =K32 -> 93 | D150: m
A151: Critical Load | B151: Ncrit [kN/m3] | C151: =MAX(C142:V142) ->  | D151: kN/m3
A152: Critical lenght | B152: Lcrit [m] | C152: =T32 -> 114 | D152: m
B153: Linstab | C153: =U30 -> 38.6100333 | D153: m
B154: q | C154: =C151/Height ->  | D154: kN/m2
A155: Critical deformation | B155: dcrit | C155: =$T$145 ->  | D155: m
A156: Momentarily def | B156: dinstab | C156: =$V$145 ->  | D156: m

Sheet Calculation template (hidden)
A2: Shear strength at surface | B2: cs | C2: 16 | D2: kN/m2
A3: Peak value for shear strength evaluated in lab | B3: clab | C3: 28 | D3: kN/m2 | E3: Factor for increasing shear strength peak | G3: 10 | H3: %
A4: Peak value for shear strength | B4: c | C4: =C3*(1+G3/100) -> 30.8 | D4: kN/m2
A5: Residual value for shear strength | B5: cR | C5: 15 | D5: kN/m2 | E5: =IF(cR<=t0,"Ok","cR too high") -> Ok
A6: Shear stress at elastic limit | B6: tel | C6: 16 | D6: kN/m2 | G6: t | H6: 0 | I6: =tel -> 16 | J6: =I6+($AB$6-$I$6)/19 -> 16.77894737 | K6: =J6+($AB$6-$I$6)/19 -> 17.55789474 | L6: =K6+($AB$6-$I$6)/19 -> 18.33684211 | M6: 19.11578947 | N6: 19.89473684 | O6: 20.67368421 | P6: 21.45263158 | Q6: 22.23157895 | R6: 23.01052632 | S6: 23.78947368 | T6: 24.56842105 | U6: 25.34736842 | V6: 26.12631579 | W6: 26.90526316 | X6: 27.68421053 | Y6: 28.46315789 | Z6: 29.24210526 | AA6: 30.02105263 | AB6: =c_peak -> 30.8 | AC6: =cR -> 15 | AD6: =AC6 -> 15
A7: Deviator strain at elastic limit | B7: gel | C7: =g_f*tel/(2*c_peak-tel) -> 0.01052631579 | G7: g | H7: 0 | I7: =gel -> 0.01052631579 | J7: =g_f-(g_f-gel)*(1-(J6-tel)/(c_peak-tel))^0.5 -> 0.01104570764 | K7: 0.01157973884 | L7: 0.01212972178 | M7: 0.01269717752 | N7: 0.01328388538 | O7: 0.0138919489 | P7: 0.01452388509 | Q7: 0.01518274806 | R7: 0.0158723046 | S7: 0.01659729134 | T7: 0.01736380509 | U7: 0.01817992199 | V7: 0.0190567342 | W7: 0.02001021078 | X7: 0.02106486089 | Y7: 0.02226194255 | Z7: 0.02368190255 | AA7: 0.02553243045 | AB7: =g_f -> 0.03 | AC7: =def_cR -> 0.2 | AD7: =def_cR+0.05 -> 0.25
A8: Deviator strain at failure limit | B8: gf | C8: 0.03 | G8: t0 | H8: =t0 -> 22.34532086 | I8: 22.34532086 | J8: 22.34532086 | K8: 22.34532086 | L8: 22.34532086 | M8: 22.34532086 | N8: 22.34532086 | O8: 22.34532086 | P8: 22.34532086 | Q8: 22.34532086 | R8: 22.34532086 | S8: 22.34532086 | T8: 22.34532086 | U8: 22.34532086 | V8: 22.34532086 | W8: 22.34532086 | X8: 22.34532086 | Y8: 22.34532086 | Z8: 22.34532086 | AA8: 22.34532086 | AB8: 22.34532086 | AC8: 22.34532086 | AD8: 22.34532086
A9: Elastic modulus at shear | B9: G | C9: =tel/gel -> 1520 | AB9: =F9 -> 0
A10: Elastic modulus | B10: Emean | C10: =G/c_peak*2*(1+0.5)*(cS+c_peak)/2 -> 3464.415584
A11: Post peak slip at z=0 when cR is reached | B11: dcR | C11: 0.2 | D11: m
A12: Density: | B12: dstart | C12: 16
B13: dgain | C13: 0
A14: Depth to slip surface | B14: H | C14: 20 | D14: m
A15: Gradient | B15: dy/dx | C15: 0.07
A16: Sensitivity ratio | B16: cR/cu | C16: =cR/c_peak -> 0.487012987
A18: Colour indication:
A19: Cells that require input
A20: to<tel
A21: to>tel
A22: t+Dt<tel | C22: Stage I
A23: tel<t+Dt<cu
A24: cu<t+Dt<cR | C24: Stage IIa
A25: t+Dt=cR | C25: Stage IIb
K26: c | S26: to | T26: cR
B28: Stage I | K28: Stage II
B29: Dx1 | C29: Dx2 | D29: Dx3 | E29: Dx4 | F29: Dx5 | G29: Dx6 | H29: Dx7 | I29: Dx8 | J29: Dx9 | K29: Dx10 | L29: Dx11 | M29: Dx12 | N29: Dx13 | O29: Dx14 | P29: Dx15 | Q29: Dx16 | R29: Dx17 | S29: Dx18 | T29: Dx19 | U29: Dx20 | V29: SDx
A30: length of Dx | B30: 36.38582606 | C30: 17.04125705 | D30: 9.5132361 | E30: 6.745262999 | F30: 5.339722181 | G30: 4.521548562 | H30: 4.022389557 | I30: 3.75001874 | J30: 6.074979337 | K30: 2.801946453 | L30: 2.524414187 | M30: 2.354619918 | N30: 2.234350286 | O30: 2.147346698 | P30: 2.084303669 | Q30: 2.039771612 | R30: 2.01321894 | S30: 1.999423415 | T30: 1.849103789e-12 | U30: 38.6100333 | V30: =SUM(Dx) -> 152.2036691
A31: Dt | B31: =0.5+((COLUMN(A1)-COLUMN($A$1))^grad)*((c_peak-$B$39)/10) -> 0.5 | C31: =((COLUMN(B1)-COLUMN($A$1))^grad)*((c_peak-$B$39)/10) -> 0.8454679136 | D31: 0.8875017744 | E31: 0.9130522229 | F31: 0.9316254193 | G31: 0.9462916994 | H31: 0.9584461514 | I31: 0.9688443102 | J31: =E39-0.001-AR39 -> 1.502449645 | K31: =IF(t0>cR,-(c_peak-t0)/9,-(c_peak-cR)/9) -> -0.9394087929 | L31: -0.9394087929 | M31: -0.9394087929 | N31: -0.9394087929 | O31: -0.9394087929 | P31: -0.9394087929 | Q31: -0.9394087929 | R31: -0.9394087929 | S31: -0.9394087929 | T31: =cR-CP39 -> -7.345320864 | U31: 0
A32: Start (length from x=0) | B32: 0 | C32: =ROUND(SUM($B$30:B30),0) -> 36 | D32: =ROUND(SUM($B$30:C30),0) -> 53 | E32: =ROUND(SUM($B$30:D30),0) -> 63 | F32: =ROUND(SUM($B$30:E30),0) -> 70 | G32: =ROUND(SUM($B$30:F30),0) -> 75 | H32: =ROUND(SUM($B$30:G30),0) -> 80 | I32: =ROUND(SUM($B$30:H30),0) -> 84 | J32: =ROUND(SUM($B$30:I30),0) -> 87 | K32: =ROUND(SUM($B$30:J30),0) -> 93 | L32: =ROUND(SUM($B$30:K30),0) -> 96 | M32: =ROUND(SUM($B$30:L30),0) -> 99 | N32: =ROUND(SUM($B$30:M30),0) -> 101 | O32: =ROUND(SUM($B$30:N30),0) -> 103 | P32: =ROUND(SUM($B$30:O30),0) -> 105 | Q32: =ROUND(SUM($B$30:P30),0) -> 108 | R32: =ROUND(SUM($B$30:Q30),0) -> 110 | S32: =ROUND(SUM($B$30:R30),0) -> 112 | T32: =ROUND(SUM($B$30:S30),0) -> 114 | U32: =ROUND(SUM($B$30:T30),0) -> 114
G35: STAGE I | AZ35: STAGE II
B36: In situ | F36: Stage II | H36: x | I36: 1 | K36: =OFFSET($B$30,0,(COLUMN(B1)-COLUMN($B$1))/5) -> 36.38582606 | M36: x | N36: =I36+1 -> 2 | P36: =OFFSET($B$30,0,(COLUMN(G1)-COLUMN($B$1))/5) -> 17.04125705 | R36: x | S36: =N36+1 -> 3 | U36: =OFFSET($B$30,0,(COLUMN(L1)-COLUMN($B$1))/5) -> 9.5132361 | W36: x | X36: =S36+1 -> 4 | Z36: =OFFSET($B$30,0,(COLUMN(Q1)-COLUMN($B$1))/5) -> 6.745262999 | AB36: x | AC36: =X36+1 -> 5 | AE36: =OFFSET($B$30,0,(COLUMN(V1)-COLUMN($B$1))/5) -> 5.339722181 | AG36: x | AH36: =AC36+1 -> 6 | AJ36: =OFFSET($B$30,0,(COLUMN(AA1)-COLUMN($B$1))/5) -> 4.521548562 | AL36: x | AM36: =AH36+1 -> 7 | AO36: =OFFSET($B$30,0,(COLUMN(AF1)-COLUMN($B$1))/5) -> 4.022389557 | AQ36: x | AR36: =AM36+1 -> 8 | AT36: =OFFSET($B$30,0,(COLUMN(AK1)-COLUMN($B$1))/5) -> 3.75001874 | AV36: x | AW36: =AR36+1 -> 9 | AY36: =OFFSET($B$30,0,(COLUMN(AP1)-COLUMN($B$1))/5) -> 6.074979337 | BA36: x | BB36: =AW36+1 -> 10 | BD36: =OFFSET($B$30,0,(COLUMN(AU1)-COLUMN($B$1))/5) -> 2.801946453 | BF36: x | BG36: =BB36+1 -> 11 | BI36: =OFFSET($B$30,0,(COLUMN(AZ1)-COLUMN($B$1))/5) -> 2.524414187 | BK36: x | BL36: =BG36+1 -> 12 | BN36: =OFFSET($B$30,0,(COLUMN(BE1)-COLUMN($B$1))/5) -> 2.354619918 | BP36: x | BQ36: =BL36+1 -> 13 | BS36: =OFFSET($B$30,0,(COLUMN(BJ1)-COLUMN($B$1))/5) -> 2.234350286 | BU36: x | BV36: =BQ36+1 -> 14 | BX36: =OFFSET($B$30,0,(COLUMN(BO1)-COLUMN($B$1))/5) -> 2.147346698 | BZ36: x | CA36: =BV36+1 -> 15 | CC36: =OFFSET($B$30,0,(COLUMN(BT1)-COLUMN($B$1))/5) -> 2.084303669 | CE36: x | CF36: =CA36+1 -> 16 | CH36: =OFFSET($B$30,0,(COLUMN(BY1)-COLUMN($B$1))/5) -> 2.039771612 | CJ36: x | CK36: =CF36+1 -> 17 | CM36: =OFFSET($B$30,0,(COLUMN(CD1)-COLUMN($B$1))/5) -> 2.01321894 | CO36: x | CP36: =CK36+1 -> 18 | CR36: =OFFSET($B$30,0,(COLUMN(CI1)-COLUMN($B$1))/5) -> 1.999423415 | CT36: x | CU36: =CP36+1 -> 19 | CW36: =OFFSET($B$30,0,(COLUMN(CN1)-COLUMN($B$1))/5) -> 1.849103789e-12 | CY36: x | CZ36: =CU36+1 -> 20 | DB36: =OFFSET($B$30,0,(COLUMN(CS1)-COLUMN($B$1))/5) -> 38.6100333
A37: start of Dx(Sx) | K37: =OFFSET($B$32,0,(COLUMN(B1)-COLUMN($B$1))*5)&" ("&ROUND($V$30,0)&")" -> 0 (152) | P37: =OFFSET($B$32,0,(COLUMN(G1)-COLUMN($B$1))/5)&" ("&ROUND($V$30,0)&")" -> 36 (152) | U37: =OFFSET($B$32,0,(COLUMN(L1)-COLUMN($B$1))/5)&" ("&ROUND($V$30,0)&")" -> 53 (152) | Z37: =OFFSET($B$32,0,(COLUMN(Q1)-COLUMN($B$1))/5)&" ("&ROUND($V$30,0)&")" -> 63 (152) | AE37: =OFFSET($B$32,0,(COLUMN(V1)-COLUMN($B$1))/5)&" ("&ROUND($V$30,0)&")" -> 70 (152) | AJ37: =OFFSET($B$32,0,(COLUMN(AA1)-COLUMN($B$1))/5)&" ("&ROUND($V$30,0)&")" -> 75 (152) | AO37: =OFFSET($B$32,0,(COLUMN(AF1)-COLUMN($B$1))/5)&" ("&ROUND($V$30,0)&")" -> 80 (152) | AT37: =OFFSET($B$32,0,(COLUMN(AK1)-COLUMN($B$1))/5)&" ("&ROUND($V$30,0)&")" -> 84 (152) | AY37: =OFFSET($B$32,0,(COLUMN(AP1)-COLUMN($B$1))/5)&" ("&ROUND($V$30,0)&")" -> 87 (152) | BD37: =OFFSET($B$32,0,(COLUMN(AU1)-COLUMN($B$1))/5)&" ("&ROUND($V$30,0)&")" -> 93 (152) | BI37: =OFFSET($B$32,0,(COLUMN(AZ1)-COLUMN($B$1))/5)&" ("&ROUND($V$30,0)&")" -> 96 (152) | BN37: =OFFSET($B$32,0,(COLUMN(BE1)-COLUMN($B$1))/5)&" ("&ROUND($V$30,0)&")" -> 99 (152) | BS37: =OFFSET($B$32,0,(COLUMN(BJ1)-COLUMN($B$1))/5)&" ("&ROUND($V$30,0)&")" -> 101 (152) | BX37: =OFFSET($B$32,0,(COLUMN(BO1)-COLUMN($B$1))/5)&" ("&ROUND($V$30,0)&")" -> 103 (152) | CC37: =OFFSET($B$32,0,(COLUMN(BT1)-COLUMN($B$1))/5)&" ("&ROUND($V$30,0)&")" -> 105 (152) | CH37: =OFFSET($B$32,0,(COLUMN(BY1)-COLUMN($B$1))/5)&" ("&ROUND($V$30,0)&")" -> 108 (152) | CM37: =OFFSET($B$32,0,(COLUMN(CD1)-COLUMN($B$1))/5)&" ("&ROUND($V$30,0)&")" -> 110 (152) | CR37: =OFFSET($B$32,0,(COLUMN(CI1)-COLUMN($B$1))/5)&" ("&ROUND($V$30,0)&")" -> 112 (152) | CW37: =OFFSET($B$32,0,(COLUMN(CN1)-COLUMN($B$1))/5)&" ("&ROUND($V$30,0)&")" -> 114 (152) | DB37: =OFFSET($B$32,0,(COLUMN(CS1)-COLUMN($B$1))/5)&" ("&ROUND($V$30,0)&")" -> 114 (152)
A38: Z från slip surface | B38: to | C38: Density | D38: tel | E38: cu | F38: tmax | G38: t | H38: Dt | I38: t+Dt | J38: g(t) | K38: d (t) | L38: t | M38: Dt | N38: t+Dt | O38: g(t) | P38: d (t) | Q38: t | R38: Dt | S38: t+Dt | T38: g(t) | U38: d (t) | V38: t | W38: Dt | X38: t+Dt | Y38: g(t) | Z38: d (t) | AA38: t | AB38: Dt | AC38: t+Dt | AD38: g(t) | AE38: d (t) | AF38: t | AG38: Dt | AH38: t+Dt | AI38: g(t) | AJ38: d (t) | AK38: t | AL38: Dt | AM38: t+Dt | AN38: g(t) | AO38: d (t) | AP38: t | AQ38: Dt | AR38: t+Dt | AS38: g(t) | AT38: d (t) | AU38: t | AV38: Dt | AW38: t+Dt | AX38: g(t) | AY38: d (t) | AZ38: t | BA38: Dt | BB38: t+Dt | BC38: g(t) | BD38: d (t) | BE38: t | BF38: Dt | BG38: t+Dt | BH38: g(t) | BI38: d (t) | BJ38: t | BK38: Dt | BL38: t+Dt | BM38: g(t) | BN38: d (t) | BO38: t | BP38: Dt | BQ38: t+Dt | BR38: g(t) | BS38: d (t) | BT38: t | BU38: Dt | BV38: t+Dt | BW38: g(t) | BX38: d (t) | BY38: t | BZ38: Dt | CA38: t+Dt | CB38: g(t) | CC38: d (t) | CD38: t | CE38: Dt | CF38: t+Dt | CG38: g(t) | CH38: d (t) | CI38: t | CJ38: Dt | CK38: t+Dt | CL38: g(t) | CM38: d (t) | CN38: t | CO38: Dt | CP38: t+Dt | CQ38: g(t) | CR38: d (t) | CS38: t | CT38: Dt | CU38: t+Dt | CV38: g(t) | CW38: d (t) | CX38: t | CY38: Dt | CZ38: t+Dt | DA38: g(t) | DB38: d (t)
A39: 0 | B39: =Density*Height*SIN(ATAN(grad)) -> 22.34532086 | C39: =$C$12+$C$13*(Height-z) -> 16 | D39: =tel*cu/c_peak -> 16 | E39: =c_peak-(c_peak-cS)*z/Height -> 30.8 | F39: =c_peak -> 30.8 | G39: =to -> 22.34532086 | H39: =B31 -> 0.5 | I39: =t+dt_z -> 22.84532086 | J39: =IF(I39<t_el,(I39-t)*gel/t_el,(IF(to>t_el,(g_f-gel)*(SQRT(1-(to-t_el)/(cu-t_el))-SQRT(1-(I39-t_el)/(cu-t_el))),(t_el-to)*gel/t_el+(g_f-gel)*(1-SQRT(ABS(1-(I39-t_el)/(cu-t_el))))))) -> 0.0004418520693 | K39: 0 | L39: =t_Dt -> 22.84532086 | M39: =C31 -> 0.8454679136 | N39: =L39+M39 -> 23.69078878 | O39: =IF(N39<t_el,(N39-t)*gel/t_el,(IF(to>t_el,(g_f-gel)*(SQRT(1-(to-t_el)/(cu-t_el))-SQRT(1-(N39-t_el)/(cu-t_el))),(t_el-to)*gel/t_el+(g_f-gel)*(1-SQRT(ABS(1-(N39-t_el)/(cu-t_el))))))) -> 0.001221865417 | P39: 0 | Q39: =N39 -> 23.69078878 | R39: =D31 -> 0.8875017744 | S39: =Q39+R39 -> 24.57829055 | T39: =IF(S39<t_el,(S39-t)*gel/t_el,(IF(to>t_el,(g_f-gel)*(SQRT(1-(to-t_el)/(cu-t_el))-SQRT(1-(S39-t_el)/(cu-t_el))),(t_el-to)*gel/t_el+(g_f-gel)*(1-SQRT(ABS(1-(S39-t_el)/(cu-t_el))))))) -> 0.002092392798 | U39: 0 | V39: =S39 -> 24.57829055 | W39: =E31 -> 0.9130522229 | X39: =V39+W39 -> 25.49134277 | Y39: =IF(X39<t_el,(X39-t)*gel/t_el,(IF(to>t_el,(g_f-gel)*(SQRT(1-(to-t_el)/(cu-t_el))-SQRT(1-(X39-t_el)/(cu-t_el))),(t_el-to)*gel/t_el+(g_f-gel)*(1-SQRT(ABS(1-(X39-t_el)/(cu-t_el))))))) -> 0.003055595157 | Z39: 0 | AA39: =X39 -> 25.49134277 | AB39: =F31 -> 0.9316254193 | AC39: =AA39+AB39 -> 26.42296819 | AD39: =IF(AC39<t_el,(AC39-t)*gel/t_el,(IF(to>t_el,(g_f-gel)*(SQRT(1-(to-t_el)/(cu-t_el))-SQRT(1-(AC39-t_el)/(cu-t_el))),(t_el-to)*gel/t_el+(g_f-gel)*(1-SQRT(ABS(1-(AC39-t_el)/(cu-t_el))))))) -> 0.004128305167 | AE39: 0 | AF39: =AC39 -> 26.42296819 | AG39: =G31 -> 0.9462916994 | AH39: =AF39+AG39 -> 27.36925989 | AI39: =IF(AH39<t_el,(AH39-t)*gel/t_el,(IF(to>t_el,(g_f-gel)*(SQRT(1-(to-t_el)/(cu-t_el))-SQRT(1-(AH39-t_el)/(cu-t_el))),(t_el-to)*gel/t_el+(g_f-gel)*(1-SQRT(ABS(1-(AH39-t_el)/(cu-t_el))))))) -> 0.005342715891 | AJ39: 0 | AK39: =AH39 -> 27.36925989 | AL39: =H31 -> 0.9584461514 | AM39: =AK39+AL39 -> 28.32770605 | AN39: =IF(AM39<t_el,(AM39-t)*gel/t_el,(IF(to>t_el,(g_f-gel)*(SQRT(1-(to-t_el)/(cu-t_el))-SQRT(1-(AM39-t_el)/(cu-t_el))),(t_el-to)*gel/t_el+(g_f-gel)*(1-SQRT(ABS(1-(AM39-t_el)/(cu-t_el))))))) -> 0.006759415683 | AO39: 0 | AP39: =AM39 -> 28.32770605 | AQ39: =I31 -> 0.9688443102 | AR39: =AP39+AQ39 -> 29.29655036 | AS39: =IF(AR39<t_el,(AR39-t)*gel/t_el,(IF(to>t_el,(g_f-gel)*(SQRT(1-(to-t_el)/(cu-t_el))-SQRT(1-(AR39-t_el)/(cu-t_el))),(t_el-to)*gel/t_el+(g_f-gel)*(1-SQRT(ABS(1-(AR39-t_el)/(cu-t_el))))))) -> 0.008511863575 | AT39: 0 | AU39: =AR39 -> 29.29655036 | AV39: =J31 -> 1.502449645 | AW39: =AU39+AV39 -> 30.799 | AX39: =IF(AW39<t_el,(AW39-t)*gel/t_el,(IF(to>t_el,(g_f-gel)*(SQRT(1-(to-t_el)/(cu-t_el))-SQRT(1-(AW39-t_el)/(cu-t_el))),(t_el-to)*gel/t_el+(g_f-gel)*(1-SQRT(ABS(1-(AW39-t_el)/(cu-t_el))))))) -> 0.01455850452 | AY39: 0 | AZ39: =c_peak -> 30.8 | BA39: =K31 -> -0.9394087929 | BB39: =AZ39+BA39 -> 29.86059121 | BC39: =IF(to>t_el,(g_f-gel)*(SQRT(1-(to-t_el)/(cu-t_el))-SQRT(1-(ABS(tmax-t_el))/(cu-t_el)))-(tmax-BB39)*gel/t_el,(t_el-to)*gel/t_el+(g_f-gel)*(1-SQRT(1-(ABS(tmax-t_el))/(cu-t_el)))+(BB39-tmax)*gel/t_el) -> 0.01410054512 | BD39: 0 | BE39: =BB39 -> 29.86059121 | BF39: =L31 -> -0.9394087929 | BG39: =BE39+BF39 -> 28.92118241 | BH39: =IF(to>t_el,(g_f-gel)*(SQRT(1-(to-t_el)/(cu-t_el))-SQRT(1-(ABS(tmax-t_el))/(cu-t_el)))-(tmax-BG39)*gel/t_el,(t_el-to)*gel/t_el+(g_f-gel)*(1-SQRT(1-(ABS(tmax-t_el))/(cu-t_el)))+(BG39-tmax)*gel/t_el) -> 0.01348251301 | BI39: 0 | BJ39: =BG39 -> 28.92118241 | BK39: =M31 -> -0.9394087929 | BL39: =BJ39+BK39 -> 27.98177362 | BM39: =IF(to>t_el,(g_f-gel)*(SQRT(1-(to-t_el)/(cu-t_el))-SQRT(1-(ABS(tmax-t_el))/(cu-t_el)))-(tmax-BL39)*gel/t_el,(t_el-to)*gel/t_el+(g_f-gel)*(1-SQRT(1-(ABS(tmax-t_el))/(cu-t_el)))+(BL39-tmax)*gel/t_el) -> 0.01286448091 | BN39: 0 | BO39: =BL39 -> 27.98177362 | BP39: =N31 -> -0.9394087929 | BQ39: =BO39+BP39 -> 27.04236483 | BR39: =IF(to>t_el,(g_f-gel)*(SQRT(1-(to-t_el)/(cu-t_el))-SQRT(1-(ABS(tmax-t_el))/(cu-t_el)))-(tmax-BQ39)*gel/t_el,(t_el-to)*gel/t_el+(g_f-gel)*(1-SQRT(1-(ABS(tmax-t_el))/(cu-t_el)))+(BQ39-tmax)*gel/t_el) -> 0.01224644881 | BS39: 0 | BT39: =BQ39 -> 27.04236483 | BU39: =O31 -> -0.9394087929 | BV39: =BT39+BU39 -> 26.10295604 | BW39: =IF(to>t_el,(g_f-gel)*(SQRT(1-(ABS(to-t_el))/(cu-t_el))-SQRT(1-(ABS(tmax-t_el))/(cu-t_el)))-(tmax-BV39)*gel/t_el,(t_el-to)*gel/t_el+(g_f-gel)*(1-SQRT(1-(ABS(tmax-t_el))/(cu-t_el)))+(BV39-tmax)*gel/t_el) -> 0.01162841671 | BX39: 0 | BY39: =BV39 -> 26.10295604 | BZ39: =P31 -> -0.9394087929 | CA39: =BY39+BZ39 -> 25.16354724 | CB39: =IF(to>t_el,(g_f-gel)*(SQRT(1-(ABS(to-t_el))/(cu-t_el))-SQRT(1-(ABS(tmax-t_el))/(cu-t_el)))-(tmax-CA39)*gel/t_el,(t_el-to)*gel/t_el+(g_f-gel)*(1-SQRT(1-(ABS(tmax-t_el))/(cu-t_el)))+(CA39-tmax)*gel/t_el) -> 0.01101038461 | CC39: 0 | CD39: =CA39 -> 25.16354724 | CE39: =Q31 -> -0.9394087929 | CF39: =CD39+CE39 -> 24.22413845 | CG39: =IF(to>t_el,(g_f-gel)*(SQRT(1-(ABS(to-t_el))/(cu-t_el))-SQRT(1-(ABS(tmax-t_el))/(cu-t_el)))-(tmax-CF39)*gel/t_el,(t_el-to)*gel/t_el+(g_f-gel)*(1-SQRT(1-(ABS(tmax-t_el))/(cu-t_el)))+(CF39-tmax)*gel/t_el) -> 0.01039235251 | CH39: 0 | CI39: =CF39 -> 24.22413845 | CJ39: =R31 -> -0.9394087929 | CK39: =CI39+CJ39 -> 23.28472966 | CL39: =IF(to>t_el,(g_f-gel)*(SQRT(1-(ABS(to-t_el))/(cu-t_el))-SQRT(1-(ABS(tmax-t_el))/(cu-t_el)))-(tmax-CK39)*gel/t_el,(t_el-to)*gel/t_el+(g_f-gel)*(1-SQRT(1-(ABS(tmax-t_el))/(cu-t_el)))+(CK39-tmax)*gel/t_el) -> 0.009774320411 | CM39: 0 | CN39: =CK39 -> 23.28472966 | CO39: =S31 -> -0.9394087929 | CP39: =CN39+CO39 -> 22.34532086 | CQ39: =IF(to>t_el,(g_f-gel)*(SQRT(1-(ABS(to-t_el))/(cu-t_el))-SQRT(1-(ABS(tmax-t_el))/(cu-t_el)))-(tmax-CP39)*gel/t_el,(t_el-to)*gel/t_el+(g_f-gel)*(1-SQRT(1-(ABS(tmax-t_el))/(cu-t_el)))+(CP39-tmax)*gel/t_el) -> 0.009156288311 | CR39: 0 | CS39: =CP39 -> 22.34532086 | CT39: =T31 -> -7.345320864 | CU39: =CS39+CT39 -> 15 | CV39: =IF(to>t_el,(g_f-gel)*(SQRT(1-(ABS(to-t_el))/(cu-t_el))-SQRT(1-(ABS(tmax-t_el))/(cu-t_el)))-(tmax-CU39)*gel/t_el,(t_el-to)*gel/t_el+(g_f-gel)*(1-SQRT(1-(ABS(tmax-t_el))/(cu-t_el)))+(CU39-tmax)*gel/t_el) -> 0.004323840374 | CW39: 0 | CX39: =CU39 -> 15 | CY39: =U31 -> 0 | CZ39: =CX39+CY39 -> 15 | DA39: =IF(to>t_el,(g_f-gel)*(SQRT(1-(ABS(to-t_el))/(cu-t_el))-SQRT(1-(ABS(tmax-t_el))/(cu-t_el)))-(tmax-CZ39)*gel/t_el,(t_el-to)*gel/t_el+(g_f-gel)*(1-SQRT(1-(ABS(tmax-t_el))/(cu-t_el)))+(CZ39-tmax)*gel/t_el) -> 0.004323840374 | DB39: 0
A40: =IF(A39<Height/3,A39+1,"") -> 1 | B40: =$B$39*(1-(z-$A$39)/Height) -> 21.22805482 | C40: 16 | D40: 15.61558442 | E40: 30.06 | F40: =$F$39*(1-(z-$A$39)/Height) -> 29.26 | G40: =$G$39*(1-(z-$A$39)/Height) -> 21.22805482 | H40: =$H$39*(1-(z-$A$39)/Height) -> 0.475 | I40: 21.70305482 | J40: 0.000415139726 | K40: =(z-$A39)*AVERAGE(J39:J40) -> 0.0004284958977 | L40: =L$39*(1-(z-$A$39)/Height) -> 21.70305482 | M40: 0.8031945179 | N40: 22.50624934 | O40: 0.001144929481 | P40: =(z-$A39)*AVERAGE(O39:O40) -> 0.001183397449 | Q40: =Q$39*(1-(z-$A$39)/Height) -> 22.50624934 | R40: 0.8431266857 | S40: =Q40+R40 -> 23.34937602 | T40: 0.001954098997 | U40: =(z-$A39)*AVERAGE(T39:T40) -> 0.002023245897 | V40: =V$39*(1-(z-$A$39)/Height) -> 23.34937602 | W40: 0.8673996118 | X40: 24.21677564 | Y40: 0.002841609607 | Z40: =(z-$A39)*AVERAGE(Y39:Y40) -> 0.002948602382 | AA40: =AA$39*(1-(z-$A$39)/Height) -> 24.21677564 | AB40: 0.8850441483 | AC40: =AA40+AB40 -> 25.10181978 | AD40: 0.003818112083 | AE40: =(z-$A39)*AVERAGE(AD39:AD40) -> 0.003973208625 | AF40: =AF$39*(1-(z-$A$39)/Height) -> 25.10181978 | AG40: 0.8989771145 | AH40: 26.0007969 | AI40: 0.004904120219 | AJ40: =(z-$A39)*AVERAGE(AI39:AI40) -> 0.005123418055 | AK40: =AK$39*(1-(z-$A$39)/Height) -> 26.0007969 | AL40: 0.9105238438 | AM40: =AK40+AL40 -> 26.91132074 | AN40: 0.006135358565 | AO40: =(z-$A39)*AVERAGE(AN39:AN40) -> 0.006447387124 | AP40: =AP$39*(1-(z-$A$39)/Height) -> 26.91132074 | AQ40: 0.9204020947 | AR40: 27.83172284 | AS40: 0.007578805766 | AT40: =(z-$A39)*AVERAGE(AS39:AS40) -> 0.00804533467 | AU40: =AU$39*(1-(z-$A$39)/Height) -> 27.83172284 | AV40: 1.427327162 | AW40: =AU40+AV40 -> 29.25905 | AX40: 0.01064177039 | AY40: =(z-$A39)*AVERAGE(AX39:AX40) -> 0.01260013745 | AZ40: =AZ$39*(1-(z-$A$39)/Height) -> 29.26 | BA40: -0.8924383532 | BB40: =AZ40+BA40 -> 28.36756165 | BC40: 0.01004290656 | BD40: =(z-$A39)*AVERAGE(BC39:BC40) -> 0.01207172584 | BE40: =BE$39*(1-(z-$A$39)/Height) -> 28.36756165 | BF40: -0.8924383532 | BG40: 27.47512329 | BH40: 0.009441322416 | BI40: =(z-$A39)*AVERAGE(BH39:BH40) -> 0.01146191772 | BJ40: =BJ$39*(1-(z-$A$39)/Height) -> 27.47512329 | BK40: -0.8924383532 | BL40: =BJ40+BK40 -> 26.58268494 | BM40: 0.008839738276 | BN40: =(z-$A39)*AVERAGE(BM39:BM40) -> 0.01085210959 | BO40: =BO$39*(1-(z-$A$39)/Height) -> 26.58268494 | BP40: -0.8924383532 | BQ40: 25.69024659 | BR40: 0.008238154135 | BS40: =(z-$A39)*AVERAGE(BR39:BR40) -> 0.01024230147 | BT40: =BT$39*(1-(z-$A$39)/Height) -> 25.69024659 | BU40: -0.8924383532 | BV40: =BT40+BU40 -> 24.79780823 | BW40: 0.007636569995 | BX40: =(z-$A39)*AVERAGE(BW39:BW40) -> 0.009632493354 | BY40: =BY$39*(1-(z-$A$39)/Height) -> 24.79780823 | BZ40: -0.8924383532 | CA40: 23.90536988 | CB40: 0.007034985854 | CC40: =(z-$A39)*AVERAGE(CB39:CB40) -> 0.009022685233 | CD40: =CD$39*(1-(z-$A$39)/Height) -> 23.90536988 | CE40: -0.8924383532 | CF40: =CD40+CE40 -> 23.01293153 | CG40: 0.006433401714 | CH40: =(z-$A39)*AVERAGE(CG39:CG40) -> 0.008412877113 | CI40: =CI$39*(1-(z-$A$39)/Height) -> 23.01293153 | CJ40: -0.8924383532 | CK40: 22.12049317 | CL40: 0.005831817573 | CM40: =(z-$A39)*AVERAGE(CL39:CL40) -> 0.007803068992 | CN40: =CN$39*(1-(z-$A$39)/Height) -> 22.12049317 | CO40: -0.8924383532 | CP40: =CN40+CO40 -> 21.22805482 | CQ40: 0.005230233433 | CR40: =(z-$A39)*AVERAGE(CQ39:CQ40) -> 0.007193260872 | CS40: =CS$39*(1-(z-$A$39)/Height) -> 21.22805482 | CT40: -6.978054821 | CU40: =CS40+CT40 -> 14.25 | CV40: 0.0005263935581 | CW40: =(z-$A39)*AVERAGE(CV39:CV40) -> 0.002425116966 | CX40: =CX$39*(1-(z-$A$39)/Height) -> 14.25 | CY40: 0 | CZ40: =CX40+CY40 -> 14.25 | DA40: 0.0005263935581 | DB40: =(z-$A39)*AVERAGE(DA39:DA40) -> 0.002425116966
A41: 2 | B41: 20.11078878 | C41: 16 | D41: 15.23116883 | E41: 29.32 | F41: 27.72 | G41: 20.11078878 | H41: 0.45 | I41: 20.56078878 | J41: 0.0003894818628 | K41: 0.0004023107944 | L41: 20.56078878 | M41: 0.7609211222 | N41: 21.3217099 | O41: 0.001071573414 | P41: 0.001108251447 | Q41: 21.3217099 | R41: 0.7987515969 | S41: 22.1204615 | T41: 0.001823484901 | U41: 0.001888791949 | V41: 22.1204615 | W41: 0.8217470006 | X41: 22.9422085 | Y41: 0.002641998152 | Z41: 0.00274180388 | AA41: 22.9422085 | AB41: 0.8384628774 | AC41: 23.78067137 | AD41: 0.003533583773 | AE41: 0.003675847928 | AF41: 23.78067137 | AG41: 0.8516625295 | AH41: 24.6323339 | AI41: 0.004511421124 | AJ41: 0.004707770671 | AK41: 24.6323339 | AL41: 0.8626015363 | AM41: 25.49493544 | AN41: 0.00559742405 | AO41: 0.005866391308 | AP41: 25.49493544 | AQ41: 0.8719598792 | AR41: 26.36689532 | AS41: 0.006828656218 | AT41: 0.007203730992 | AU41: 26.36689532 | AV41: 1.35220468 | AW41: 27.7191 | AX41: 0.009179880339 | AY41: 0.009910825365 | AZ41: 27.72 | BA41: -0.8454679136 | BB41: 26.87453209 | BC41: 0.008597419859 | BD41: 0.009320163208 | BE41: 26.87453209 | BF41: -0.8454679136 | BG41: 26.02906417 | BH41: 0.008013113931 | BI41: 0.008727218173 | BJ41: 26.02906417 | BK41: -0.8454679136 | BL41: 25.18359626 | BM41: 0.007428808002 | BN41: 0.008134273139 | BO41: 25.18359626 | BP41: -0.8454679136 | BQ41: 24.33812835 | BR41: 0.006844502073 | BS41: 0.007541328104 | BT41: 24.33812835 | BU41: -0.8454679136 | BV41: 23.49266043 | BW41: 0.006260196145 | BX41: 0.00694838307 | BY41: 23.49266043 | BZ41: -0.8454679136 | CA41: 22.64719252 | CB41: 0.005675890216 | CC41: 0.006355438035 | CD41: 22.64719252 | CE41: -0.8454679136 | CF41: 21.8017246 | CG41: 0.005091584287 | CH41: 0.005762493 | CI41: 21.8017246 | CJ41: -0.8454679136 | CK41: 20.95625669 | CL41: 0.004507278359 | CM41: 0.005169547966 | CN41: 20.95625669 | CO41: -0.8454679136 | CP41: 20.11078878 | CQ41: 0.00392297243 | CR41: 0.004576602931 | CS41: 20.11078878 | CT41: -6.610788778 | CU41: 13.5 | CV41: -0.0006457675704 | CW41: -5.968700614e-05 | CX41: 13.5 | CY41: 0 | CZ41: 13.5 | DA41: -0.0006457675704 | DB41: -5.968700614e-05
A42: 3 | B42: 18.99352273 | C42: 16 | D42: 14.84675325 | E42: 28.58 | F42: 26.18 | G42: 18.99352273 | H42: 0.425 | I42: 19.41852273 | J42: 0.0003647425254 | K42: 0.0003771121941 | L42: 19.41852273 | M42: 0.7186477266 | N42: 20.13717046 | O42: 0.001001308804 | P42: 0.001036441109 | Q42: 20.13717046 | R42: 0.7543765082 | S42: 20.89154697 | T42: 0.001699411057 | U42: 0.001761447979 | V42: 20.89154697 | W42: 0.7760943895 | X42: 21.66764136 | Y42: 0.00245437481 | Z42: 0.002548186481 | AA42: 21.66764136 | AB42: 0.7918816064 | AC42: 22.45952297 | AD42: 0.003269807289 | AE42: 0.003401695531 | AF42: 22.45952297 | AG42: 0.8043479445 | AH42: 23.26387091 | AI42: 0.004154130276 | AJ42: 0.0043327757 | AK42: 23.26387091 | AL42: 0.8146792287 | AM42: 24.07855014 | AN42: 0.005121084114 | AO42: 0.005359254082 | AP42: 24.07855014 | AQ42: 0.8235176637 | AR42: 24.9020678 | AS42: 0.006192385307 | AT42: 0.006510520762 | AU42: 24.9020678 | AV42: 1.277082198 | AW42: 26.17915 | AX42: 0.008127888087 | AY42: 0.008653884213 | AZ42: 26.18 | BA42: -0.798497474 | BB42: 25.38150253 | BC42: 0.007563196586 | BD42: 0.008080308223 | BE42: 25.38150253 | BF42: -0.798497474 | BG42: 24.58300505 | BH42: 0.006997063612 | BI42: 0.007505088771 | BJ42: 24.58300505 | BK42: -0.798497474 | BL42: 23.78450758 | BM42: 0.006430930638 | BN42: 0.00692986932 | BO42: 23.78450758 | BP42: -0.798497474 | BQ42: 22.9860101 | BR42: 0.005864797664 | BS42: 0.006354649869 | BT42: 22.9860101 | BU42: -0.798497474 | BV42: 22.18751263 | BW42: 0.005298664691 | BX42: 0.005779430418 | BY42: 22.18751263 | BZ42: -0.798497474 | CA42: 21.38901516 | CB42: 0.004732531717 | CC42: 0.005204210966 | CD42: 21.38901516 | CE42: -0.798497474 | CF42: 20.59051768 | CG42: 0.004166398743 | CH42: 0.004628991515 | CI42: 20.59051768 | CJ42: -0.798497474 | CK42: 19.79202021 | CL42: 0.003600265769 | CM42: 0.004053772064 | CN42: 19.79202021 | CO42: -0.798497474 | CP42: 18.99352273 | CQ42: 0.003034132795 | CR42: 0.003478552612 | CS42: 18.99352273 | CT42: -6.243522734 | CU42: 12.75 | CV42: -0.001392511256 | CW42: -0.001019139413 | CX42: 12.75 | CY42: 0 | CZ42: 12.75 | DA42: -0.001392511256 | DB42: -0.001019139413
A43: 4 | B43: 17.87625669 | C43: 16 | D43: 14.46233766 | E43: 27.84 | F43: 24.64 | G43: 17.87625669 | H43: 0.4 | I43: 18.27625669 | J43: 0.0003408023723 | K43: 0.0003527724488 | L43: 18.27625669 | M43: 0.6763743309 | N43: 18.95263102 | O43: 0.000933716554 | P43: 0.0009675126789 | Q43: 18.95263102 | R43: 0.7100014195 | S43: 19.66263244 | T43: 0.001580928418 | U43: 0.001640169738 | V43: 19.66263244 | W43: 0.7304417783 | X43: 20.39307422 | Y43: 0.002276828953 | Z43: 0.002365601881 | AA43: 20.39307422 | AB43: 0.7453003354 | AC43: 21.13837456 | AD43: 0.003023052821 | AE43: 0.003146430055 | AF43: 21.13837456 | AG43: 0.7570333595 | AH43: 21.89540791 | AI43: 0.003824864731 | AJ43: 0.003989497504 | AK43: 21.89540791 | AL43: 0.7667569211 | AM43: 22.66216484 | AN43: 0.004690947472 | AO43: 0.004906015793 | AP43: 22.66216484 | AQ43: 0.7750754482 | AR43: 23.43724028 | AS43: 0.005634458388 | AT43: 0.005913421848 | AU43: 23.43724028 | AV43: 1.201959716 | AW43: 24.6392 | AX43: 0.007280701222 | AY43: 0.007704294655 | AZ43: 24.64 | BA43: -0.7515270343 | BB43: 23.88847297 | BC43: 0.006734897757 | BD43: 0.007149047172 | BE43: 23.88847297 | BF43: -0.7515270343 | BG43: 23.13694593 | BH43: 0.006187903829 | BI43: 0.006592483721 | BJ43: 23.13694593 | BK43: -0.7515270343 | BL43: 22.3854189 | BM43: 0.005640909901 | BN43: 0.00603592027 | BO43: 22.3854189 | BP43: -0.7515270343 | BQ43: 21.63389186 | BR43: 0.005093915973 | BS43: 0.005479356819 | BT43: 21.63389186 | BU43: -0.7515270343 | BV43: 20.88236483 | BW43: 0.004546922045 | BX43: 0.004922793368 | BY43: 20.88236483 | BZ43: -0.7515270343 | CA43: 20.13083779 | CB43: 0.003999928117 | CC43: 0.004366229917 | CD43: 20.13083779 | CE43: -0.7515270343 | CF43: 19.37931076 | CG43: 0.003452934188 | CH43: 0.003809666466 | CI43: 19.37931076 | CJ43: -0.7515270343 | CK43: 18.62778373 | CL43: 0.00290594026 | CM43: 0.003253103015 | CN43: 18.62778373 | CO43: -0.7515270343 | CP43: 17.87625669 | CQ43: 0.002358946332 | CR43: 0.002696539564 | CS43: 17.87625669 | CT43: -5.876256691 | CU43: 12 | CV43: -0.001918047819 | CW43: -0.001655279538 | CX43: 12 | CY43: 0 | CZ43: 12 | DA43: -0.001918047819 | DB43: -0.001655279538
A44: 5 | B44: 16.75899065 | C44: 16 | D44: 14.07792208 | E44: 27.1 | F44: 23.1 | G44: 16.75899065 | H44: 0.375 | I44: 17.13399065 | J44: 0.0003175555289 | K44: 0.0003291789506 | L44: 17.13399065 | M44: 0.6341009352 | N44: 17.76809158 | O44: 0.000868432712 | P44: 0.000901074633 | Q44: 17.76809158 | R44: 0.6656263308 | S44: 18.43371791 | T44: 0.001467234847 | U44: 0.001524081633 | V44: 18.43371791 | W44: 0.6847891672 | X44: 19.11850708 | Y44: 0.002107800539 | Z44: 0.002192314746 | AA44: 19.11850708 | AB44: 0.6987190645 | AC44: 19.81722615 | AD44: 0.00279040864 | AE44: 0.002906730731 | AF44: 19.81722615 | AG44: 0.7097187746 | AH44: 20.52694492 | AI44: 0.00351819781 | AJ44: 0.003671531271 | AK44: 20.52694492 | AL44: 0.7188346136 | AM44: 21.24577953 | AN44: 0.004296621172 | AO44: 0.004493784322 | AP44: 21.24577953 | AQ44: 0.7266332327 | AR44: 21.97241277 | AS44: 0.005133782932 | AT44: 0.00538412066 | AU44: 21.97241277 | AV44: 1.126837234 | AW44: 23.09925 | AX44: 0.006559687112 | AY44: 0.006920194167 | AZ44: 23.1 | BA44: -0.7045565947 | BB44: 22.39544341 | BC44: 0.006033889248 | BD44: 0.006384393503 | BE44: 22.39544341 | BF44: -0.7045565947 | BG44: 21.69088681 | BH44: 0.005507079598 | BI44: 0.005847491713 | BJ44: 21.69088681 | BK44: -0.7045565947 | BL44: 20.98633022 | BM44: 0.004980269947 | BN44: 0.005310589924 | BO44: 20.98633022 | BP44: -0.7045565947 | BQ44: 20.28177362 | BR44: 0.004453460297 | BS44: 0.004773688135 | BT44: 20.28177362 | BU44: -0.7045565947 | BV44: 19.57721703 | BW44: 0.003926650647 | BX44: 0.004236786346 | BY44: 19.57721703 | BZ44: -0.7045565947 | CA44: 18.87266043 | CB44: 0.003399840996 | CC44: 0.003699884556 | CD44: 18.87266043 | CE44: -0.7045565947 | CF44: 18.16810384 | CG44: 0.002873031346 | CH44: 0.003162982767 | CI44: 18.16810384 | CJ44: -0.7045565947 | CK44: 17.46354724 | CL44: 0.002346221696 | CM44: 0.002626080978 | CN44: 17.46354724 | CO44: -0.7045565947 | CP44: 16.75899065 | CQ44: 0.001819412045 | CR44: 0.002089179189 | CS44: 16.75899065 | CT44: -5.508990648 | CU44: 11.25 | CV44: -0.002299759443 | CW44: -0.002108903631 | CX44: 11.25 | CY44: 0 | CZ44: 11.25 | DA44: -0.002299759443 | DB44: -0.002108903631
A45: 6 | B45: 15.6417246 | C45: 16 | D45: 13.69350649 | E45: 26.36 | F45: 21.56 | G45: 15.6417246 | H45: 0.35 | I45: 15.9917246 | J45: 0.0002949070479 | K45: 0.0003062312884 | L45: 15.9917246 | M45: 0.5918275395 | N45: 16.58355214 | O45: 0.0008051374251 | P45: 0.0008367850686 | Q45: 16.58355214 | R45: 0.6212512421 | S45: 17.20480339 | T45: 0.001357642798 | U45: 0.001412438822 | V45: 17.20480339 | W45: 0.639136556 | X45: 17.84393994 | Y45: 0.001945993008 | Z45: 0.002026896774 | AA45: 17.84393994 | AB45: 0.6521377935 | AC45: 18.49607774 | AD45: 0.002569546447 | AE45: 0.002679977544 | AF45: 18.49607774 | AG45: 0.6624041896 | AH45: 19.15848193 | AI45: 0.00322999973 | AJ45: 0.00337409877 | AK45: 19.15848193 | AL45: 0.670912306 | AM45: 19.82939423 | AN45: 0.003930698774 | AO45: 0.004113659973 | AP45: 19.82939423 | AQ45: 0.6781910172 | AR45: 20.50758525 | AS45: 0.00467664355 | AT45: 0.004905213241 | AU45: 20.50758525 | AV45: 1.051714751 | AW45: 21.5593 | AX45: 0.005924876461 | AY45: 0.006242281787 | AZ45: 21.56 | BA45: -0.657586155 | BB45: 20.90241384 | BC45: 0.00542025843 | BD45: 0.005727073839 | BE45: 20.90241384 | BF45: -0.657586155 | BG45: 20.24482769 | BH45: 0.004914766317 | BI45: 0.005210922957 | BJ45: 20.24482769 | BK45: -0.657586155 | BL45: 19.58724153 | BM45: 0.004409274204 | BN45: 0.004694772076 | BO45: 19.58724153 | BP45: -0.657586155 | BQ45: 18.92965538 | BR45: 0.003903782092 | BS45: 0.004178621194 | BT45: 18.92965538 | BU45: -0.657586155 | BV45: 18.27206922 | BW45: 0.003398289979 | BX45: 0.003662470313 | BY45: 18.27206922 | BZ45: -0.657586155 | CA45: 17.61448307 | CB45: 0.002892797866 | CC45: 0.003146319431 | CD45: 17.61448307 | CE45: -0.657586155 | CF45: 16.95689691 | CG45: 0.002387305754 | CH45: 0.00263016855 | CI45: 16.95689691 | CJ45: -0.657586155 | CK45: 16.29931076 | CL45: 0.001881813641 | CM45: 0.002114017668 | CN45: 16.29931076 | CO45: -0.657586155 | CP45: 15.6417246 | CQ45: 0.001376321529 | CR45: 0.001597866787 | CS45: 15.6417246 | CT45: -5.141724605 | CU45: 10.5 | CV45: -0.002576166238 | CW45: -0.00243796284 | CX45: 10.5 | CY45: 0 | CZ45: 10.5 | DA45: -0.002576166238 | DB45: -0.00243796284
A46: 6.67 | B46: 14.89315636 | C46: 16 | D46: 13.43594805 | E46: 25.8642 | F46: 20.5282 | G46: 14.89315636 | H46: 0.33325 | I46: 15.22640636 | J46: 0.0002800241398 | K46: 0.0001926019479 | L46: 15.22640636 | M46: 0.5635043644 | N46: 15.78991072 | O46: 0.0007636991962 | P46: 0.0005255602681 | Q46: 15.78991072 | R46: 0.5915199326 | S46: 16.38143065 | T46: 0.001286210145 | U46: 0.0008856907358 | V46: 16.38143065 | W46: 0.6085493066 | X46: 16.98997996 | Y46: 0.001841069393 | Z46: 0.001268665904 | AA46: 16.98997996 | AB46: 0.620928342 | AC46: 17.6109083 | AD46: 0.002427199233 | AE46: 0.001673909803 | AF46: 17.6109083 | AG46: 0.6307034177 | AH46: 18.24161172 | AI46: 0.003045600129 | AJ46: 0.002102325953 | AK46: 18.24161172 | AL46: 0.6388043599 | AM46: 18.88041608 | AN46: 0.003698623464 | AO46: 0.00255582295 | AP46: 18.88041608 | AQ46: 0.6457347328 | AR46: 19.52615081 | AS46: 0.004389861957 | AT46: 0.003037279345 | AU46: 19.52615081 | AV46: 1.001382688 | AW46: 20.5275335 | AX46: 0.005535653267 | AY46: 0.003839277459 | AZ46: 20.5282 | BA46: -0.6261159605 | BB46: 19.90208404 | BC46: 0.005045923217 | BD46: 0.003506170852 | BE46: 19.90208404 | BF46: -0.6261159605 | BG46: 19.27596808 | BH46: 0.004555396289 | BI46: 0.003172504473 | BJ46: 19.27596808 | BK46: -0.6261159605 | BL46: 18.64985212 | BM46: 0.004064869361 | BN46: 0.002838838094 | BO46: 18.64985212 | BP46: -0.6261159605 | BQ46: 18.02373616 | BR46: 0.003574342433 | BS46: 0.002505171716 | BT46: 18.02373616 | BU46: -0.6261159605 | BV46: 17.3976202 | BW46: 0.003083815505 | BX46: 0.002171505337 | BY46: 17.3976202 | BZ46: -0.6261159605 | CA46: 16.77150424 | CB46: 0.002593288578 | CC46: 0.001837838959 | CD46: 16.77150424 | CE46: -0.6261159605 | CF46: 16.14538828 | CG46: 0.00210276165 | CH46: 0.00150417258 | CI46: 16.14538828 | CJ46: -0.6261159605 | CK46: 15.51927232 | CL46: 0.001612234722 | CM46: 0.001170506202 | CN46: 15.51927232 | CO46: -0.6261159605 | CP46: 14.89315636 | CQ46: 0.001121707794 | CR46: 0.0008368398231 | CS46: 14.89315636 | CT46: -4.895656356 | CU46: 9.9975 | CV46: -0.002713765862 | CW46: -0.001772127253 | CX46: 9.9975 | CY46: 0 | CZ46: 9.9975 | DA46: -0.002713765862 | DB46: -0.001772127253
BB48: d (x) | BC48: =def_cR*($E$39-BB$39)/($E$39-cR) -> 0.01189125054 | BG48: d (x) | BH48: =def_cR*($E$39-BG$39)/($E$39-cR) -> 0.02378250109 | BL48: d (x) | BM48: =def_cR*($E$39-BL$39)/($E$39-cR) -> 0.03567375163 | BQ48: d (x) | BR48: =def_cR*($E$39-BQ$39)/($E$39-cR) -> 0.04756500217 | BV48: d (x) | BW48: =def_cR*($E$39-BV$39)/($E$39-cR) -> 0.05945625271 | CA48: d (x) | CB48: =def_cR*($E$39-CA$39)/($E$39-cR) -> 0.07134750326 | CF48: d (x) | CG48: =def_cR*($E$39-CF$39)/($E$39-cR) -> 0.0832387538 | CK48: d (x) | CL48: =def_cR*($E$39-CK$39)/($E$39-cR) -> 0.09513000434 | CP48: d (x) | CQ48: =def_cR*($E$39-CP$39)/($E$39-cR) -> 0.1070212549 | CU48: d (x) | CV48: =def_cR*($E$39-CU$39)/($E$39-cR) -> 0.2 | CZ48: d (x) | DA48: =def_cR*($E$39-CZ$39)/($E$39-cR) -> 0.2
BB49: d (slip) | BC49: =IF((BB39-cR)<1,IF((BC53-BC48-SUM(BD39:BD46))<0,BC53-BC48-SUM(BD39:BD46),0),0) -> 0 | BG49: d (slip) | BH49: =IF((BG39-cR)<1,IF((BH53-BH48-SUM(BI39:BI46))<0,BH53-BH48-SUM(BI39:BI46),0),0) -> 0 | BL49: d (slip) | BM49: =IF((BL39-cR)<1,IF((BM53-BM48-SUM(BN39:BN46))<0,BM53-BM48-SUM(BN39:BN46),0),0) -> 0 | BQ49: d (slip) | BR49: =IF((BQ39-cR)<1,IF((BR53-BR48-SUM(BS39:BS46))<0,BR53-BR48-SUM(BS39:BS46),0),0) -> 0 | BV49: d (slip) | BW49: =IF((BV39-cR)<1,IF((BW53-BW48-SUM(BX39:BX46))<0,BW53-BW48-SUM(BX39:BX46),0),0) -> 0 | CA49: d (slip) | CB49: =IF((CA39-cR)<1,IF((CB53-CB48-SUM(CC39:CC46))<0,CB53-CB48-SUM(CC39:CC46),0),0) -> 0 | CF49: d (slip) | CG49: =IF((CF39-cR)<1,IF((CG53-CG48-SUM(CH39:CH46))<0,CG53-CG48-SUM(CH39:CH46),0),0) -> 0 | CK49: d (slip) | CL49: =IF((CK39-cR)<1,IF((CL53-CL48-SUM(CM39:CM46))<0,CL53-CL48-SUM(CM39:CM46),0),0) -> 0 | CP49: d (slip) | CQ49: =IF((CP39-cR)<1,IF((CQ53-CQ48-SUM(CR39:CR46))<0,CQ53-CQ48-SUM(CR39:CR46),0),0) -> 0 | CU49: d (slip) | CV49: =IF((CU39-cR)<=1,IF((CV53-CV48-SUM(CW39:CW46))<0,CV53-CV48-SUM(CW39:CW46),0),0) -> -0.06388172417 | CZ49: d (slip) | DA49: =DA53-SUM(DB39:DB46)-DA48 -> 0.01513570887
A50: D N | I50: D N | J50: =(((I39+G39)/2)-$B$39)*$B$30 -> 9.096456515 | N50: D N | O50: =(((N39+L39)/2)-$B$39)*C30 -> 15.72454655 | S50: D N | T50: =(((S39+Q39)/2)-$B$39)*D30 -> 17.02126089 | X50: D N | Y50: =(((X39+V39)/2)-$B$39)*E30 -> 18.1413565 | AC50: D N | AD50: =(((AC39+AA39)/2)-$B$39)*F30 -> 19.28619344 | AH50: D N | AI50: =(((AH39+AF39)/2)-$B$39)*G30 -> 20.57663236 | AM50: D N | AN50: =(((AM39+AK39)/2)-$B$39)*H30 -> 22.13586178 | AR50: D N | AS50: =(((AR39+AP39)/2)-$B$39)*I30 -> 24.2506487 | AW50: D N | AX50: =(((AW39+AU39)/2)-$B$39)*J30 -> 46.7922508 | BB50: D N | BC50: =(((BB39+AZ39)/2)-$B$39)*K30 -> 22.37347164 | BG50: D N | BH50: =(((BG39+BE39)/2)-$B$39)*L30 -> 17.78592663 | BL50: D N | BM50: =(((BL39+BJ39)/2)-$B$39)*M30 -> 14.37767926 | BQ50: D N | BR50: =(((BQ39+BO39)/2)-$B$39)*N30 -> 11.54432568 | BV50: D N | BW50: =(((BV39+BT39)/2)-$B$39)*O30 -> 9.077563662 | CA50: D N | CB50: =(((CA39+BY39)/2)-$B$39)*P30 -> 6.853046178 | CF50: D N | CG50: =(((CF39+CD39)/2)-$B$39)*Q30 -> 4.79044847 | CK50: D N | CL50: =(((CK39+CI39)/2)-$B$39)*R30 -> 2.836853361 | CP50: D N | CQ50: =(((CP39+CN39)/2)-$B$39)*S30 -> 0.9391379683 | CU50: D N | CV50: =(((CU39+CS39)/2)-$B$39)*T30 -> -6.791130319e-12 | CZ50: D N | DA50: =(((CZ39+CX39)/2)-$B$39)*U30 -> -283.6030832
A51: SD N | I51: SD N | J51: =J50 -> 9.096456515 | N51: SD N | O51: =O50+J51 -> 24.82100306 | S51: SD N | T51: =T50+O51 -> 41.84226395 | X51: SD N | Y51: =Y50+T51 -> 59.98362045 | AC51: SD N | AD51: =AD50+Y51 -> 79.26981389 | AH51: SD N | AI51: =AI50+AD51 -> 99.84644625 | AM51: SD N | AN51: =AN50+AI51 -> 121.982308 | AR51: SD N | AS51: =AS50+AN51 -> 146.2329567 | AW51: SD N | AX51: =AX50+AS51 -> 193.0252075 | BB51: SD N | BC51: =AX51+BC50 -> 215.3986792 | BG51: SD N | BH51: =BC51+BH50 -> 233.1846058 | BL51: SD N | BM51: =BM50+BH51 -> 247.5622851 | BQ51: SD N | BR51: =BR50+BM51 -> 259.1066107 | BV51: SD N | BW51: =BW50+BR51 -> 268.1841744 | CA51: SD N | CB51: =CB50+BW51 -> 275.0372206 | CF51: SD N | CG51: =CG50+CB51 -> 279.8276691 | CK51: SD N | CL51: =CL50+CG51 -> 282.6645224 | CP51: SD N | CQ51: =CQ50+CL51 -> 283.6036604 | CU51: SD N | CV51: =CV50+CQ51 -> 283.6036604 | CZ51: SD N | DA51: =DA50+CV51 -> 0.0005772127537
A52: d (N) | I52: d (N) | J52: =(J50+0)/2*B30/Emean/Height -> 0.002388440968 | N52: d (N) | O52: =(J51+O50/2)*C30/Emean/Height -> 0.004170949855 | S52: d (N) | T52: =(O51+T50/2)*D30/Emean/Height -> 0.004576409663 | X52: d (N) | Y52: =(T51+Y50/2)*E30/Emean/Height -> 0.004956408618 | AC52: d (N) | AD52: =(Y51+AD50/2)*F30/Emean/Height -> 0.00536580149 | AH52: d (N) | AI52: =(AD51+AI50/2)*G30/Emean/Height -> 0.005844296453 | AM52: d (N) | AN52: =(AI51+AN50/2)*H30/Emean/Height -> 0.006438904651 | AR52: d (N) | AS52: =(AN51+AS50/2)*I30/Emean/Height -> 0.00725816696 | AW52: d (N) | AX52: =(AS51+AX50/2)*J30/Emean/Height -> 0.01487253974 | BB52: d (N) | BC52: =(AX51+BC50/2)*K30/Emean/Height -> 0.008258116215 | BG52: d (N) | BH52: =(BC51+BH50/2)*L30/Emean/Height -> 0.008171724647 | BL52: d (N) | BM52: =(BH51+BM50/2)*M30/Emean/Height -> 0.00816859422 | BQ52: d (N) | BR52: =(BM51+BR50/2)*N30/Emean/Height -> 0.008169312866 | BV52: d (N) | BW52: =(BR51+BW50/2)*O30/Emean/Height -> 0.008170758522 | CA52: d (N) | CB52: =(BW51+CB50/2)*P30/Emean/Height -> 0.008170485895 | CF52: d (N) | CG52: =(CB51+CG50/2)*Q30/Emean/Height -> 0.008167305733 | CK52: d (N) | CL52: =(CG51+CL50/2)*R30/Emean/Height -> 0.008171796266 | CP52: d (N) | CQ52: =(CL51+CQ50/2)*S30/Emean/Height -> 0.008170280356 | CU52: d (N) | CV52: =(CQ51+CV50/2)*T30/Emean/Height -> 7.568557959e-15 | CZ52: d (N) | DA52: =(CV51+DA50/2)*U30/Emean/Height -> 0.07901743304
A53: S d (N) | I53: S d (N) | J53: =J52 -> 0.002388440968 | N53: S d (N) | O53: =O52+J53 -> 0.006559390823 | S53: S d (N) | T53: =T52+O53 -> 0.01113580049 | X53: S d (N) | Y53: =Y52+T53 -> 0.0160922091 | AC53: S d (N) | AD53: =AD52+Y53 -> 0.02145801059 | AH53: S d (N) | AI53: =AI52+AD53 -> 0.02730230705 | AM53: S d (N) | AN53: =AN52+AI53 -> 0.0337412117 | AR53: S d (N) | AS53: =AS52+AN53 -> 0.04099937866 | AW53: S d (N) | AX53: =AX52+AS53 -> 0.05587191839 | BB53: S d (N) | BC53: =BC52+AX53 -> 0.06413003461 | BG53: S d (N) | BH53: =BH52+BC53 -> 0.07230175926 | BL53: S d (N) | BM53: =BM52+BH53 -> 0.08047035348 | BQ53: S d (N) | BR53: =BR52+BM53 -> 0.08863966634 | BV53: S d (N) | BW53: =BW52+BR53 -> 0.09681042486 | CA53: S d (N) | CB53: =CB52+BW53 -> 0.1049809108 | CF53: S d (N) | CG53: =CG52+CB53 -> 0.1131482165 | CK53: S d (N) | CL53: =CL52+CG53 -> 0.1213200128 | CP53: S d (N) | CQ53: =CQ52+CL53 -> 0.1294902931 | CU53: S d (N) | CV53: =CV52+CQ53 -> 0.1294902931 | CZ53: S d (N) | DA53: =DA52+CV53 -> 0.2085077262
A54: S d (t) | I54: S d (t) | J54: =SUM(def) -> 0.002388703522 | N54: S d (t) | O54: =SUM(P39:P49) -> 0.006559022654 | S54: S d (t) | T54: =SUM(U39:U49) -> 0.01113586675 | X54: S d (t) | Y54: =SUM(Z39:Z49) -> 0.01609207205 | AC54: S d (t) | AD54: =SUM(AE39:AE49) -> 0.02145780022 | AH54: S d (t) | AI54: =SUM(AJ39:AJ49) -> 0.02730141792 | AM54: S d (t) | AN54: =SUM(AO39:AO49) -> 0.03374231555 | AR54: S d (t) | AS54: =SUM(AT39:AT49) -> 0.04099962152 | AW54: S d (t) | AX54: =SUM(AY39:AY49) -> 0.0558708951 | BB54: S d (t) | BC54: =SUM(BD39:BD47)+BC48+BC49 -> 0.06413013317 | BG54: S d (t) | BH54: =SUM(BI39:BI47)+BH48+BH49 -> 0.07230012861 | BL54: S d (t) | BM54: =SUM(BN39:BN47)+BM48+BM49 -> 0.08047012405 | BQ54: S d (t) | BR54: =SUM(BS39:BS47)+BR48+BR49 -> 0.08864011948 | BV54: S d (t) | BW54: =SUM(BX39:BX47)+BW48+BW49 -> 0.09681011492 | CA54: S d (t) | CB54: =SUM(CC39:CC47)+CB48+CB49 -> 0.1049801104 | CF54: S d (t) | CG54: =SUM(CH39:CH47)+CG48+CG49 -> 0.1131501058 | CK54: S d (t) | CL54: =SUM(CM39:CM47)+CL48+CL49 -> 0.1213201012 | CP54: S d (t) | CQ54: =SUM(CR39:CR47)+CQ48+CQ49 -> 0.1294900967 | CU54: S d (t) | CV54: =SUM(CW39:CW47)+CV48+CV49 -> 0.1294902931 | CZ54: S d (t) | DA54: =SUM(DB39:DB47)+DA48+DA49 -> 0.2085077262
A55: Difference | C55: sum stage I | D55: =SUM(I55:AX55) -> 0.04303557794 | J55: =ABS(J53-J54)*10000 -> 0.00262553743 | O55: =ABS(O53-O54)*10000 -> 0.003681695063 | T55: =ABS(T53-T54)*10000 -> 0.0006626794809 | Y55: =ABS(Y53-Y54)*10000 -> 0.001370555852 | AD55: =ABS(AD53-AD54)*10000 -> 0.002103783409 | AI55: =ABS(AI53-AI54)*10000 -> 0.00889123329 | AN55: =ABS(AN53-AN54)*10000 -> 0.01103853796 | AS55: =ABS(AS53-AS54)*10000 -> 0.00242860292 | AX55: =ABS(AX53-AX54)*10000 -> 0.01023295254 | BC55: =ABS(BC53-BC54)*10000 -> 0.0009856491898 | BH55: =ABS(BH53-BH54)*10000 -> 0.016306462 | BM55: =ABS(BM53-BM54)*10000 -> 0.002294299117 | BR55: =ABS(BR53-BR54)*10000 -> 0.004531400076 | BW55: =ABS(BW53-BW54)*10000 -> 0.003099451825 | CB55: =ABS(CB53-CB54)*10000 -> 0.008004042502 | CG55: =ABS(CG53-CG54)*10000 -> 0.01889299108 | CL55: =ABS(CL53-CL54)*10000 -> 0.0008846933421 | CQ55: =ABS(CQ53-CQ54)*10000 -> 0.001964499328 | CV55: =ABS(CV53-CV54)*10000 -> 0 | DA55: =ABS(DA53-DA54)*10000 -> 0
A56: Compatibility | C56: sum stage II | D56: =SUM(BC55:DA55) -> 0.05696348846 | J56: =IF(ABS(J55)<=0.5,"Ok","Not ok") -> Ok | O56: =IF(ABS(O55)<=0.5,"Ok","Not ok") -> Ok | T56: =IF(ABS(T55)<=0.5,"Ok","Not ok") -> Ok | Y56: =IF(ABS(Y55)<=0.5,"Ok","Not ok") -> Ok | AD56: =IF(ABS(AD55)<=0.5,"Ok","Not ok") -> Ok | AI56: =IF(ABS(AI55)<=0.5,"Ok","Not ok") -> Ok | AN56: =IF(ABS(AN55)<=0.5,"Ok","Not ok") -> Ok | AS56: =IF(ABS(AS55)<=0.5,"Ok","Not ok") -> Ok | AX56: =IF(ABS(AX55)<=0.5,"Ok","Not ok") -> Ok | BC56: =IF(ABS(BC55)<=0.5,"Ok","Not ok") -> Ok | BH56: =IF(ABS(BH55)<=0.5,"Ok","Not ok") -> Ok | BM56: =IF(ABS(BM55)<=0.5,"Ok","Not ok") -> Ok | BR56: =IF(ABS(BR55)<=0.5,"Ok","Not ok") -> Ok | BW56: =IF(ABS(BW55)<=0.5,"Ok","Not ok") -> Ok | CB56: =IF(ABS(CB55)<=0.5,"Ok","Not ok") -> Ok | CG56: =IF(ABS(CG55)<=0.5,"Ok","Not ok") -> Ok | CL56: =IF(ABS(CL55)<=0.5,"Ok","Not ok") -> Ok | CQ56: =IF(ABS(CQ55)<=0.5,"Ok","Not ok") -> Ok | CV56: =IF(ABS(CV55)<=0.5,"Ok","Not ok") -> Ok | DA56: =IF(ABS(DA55)<=0.5,"Ok","Not ok") -> Ok
C57: Both | D57: =D55+D56 -> 0.0999990664
A59: t(x,z)
C60: Stage I | L60: Stage II
B61: start value | C61: Dx1 | D61: Dx2 | E61: Dx3 | F61: Dx4 | G61: Dx5 | H61: Dx6 | I61: Dx7 | J61: Dx8 | K61: Dx9 | L61: Dx10 | M61: Dx11 | N61: Dx12 | O61: Dx13 | P61: Dx14 | Q61: Dx15 | R61: Dx16 | S61: Dx17 | T61: Dx18 | U61: Dx19 | V61: Dx20 | W61: SDx
A62: Distance from X=0 | B62: 0 | C62: =($B$32+$C$32)/2 -> 18 | D62: =($C$32+$D$32)/2 -> 44.5 | E62: =($D$32+$E$32)/2 -> 58 | F62: =($E$32+$F$32)/2 -> 66.5 | G62: =($F$32+$G$32)/2 -> 72.5 | H62: =($G$32+$H$32)/2 -> 77.5 | I62: =($H$32+$I$32)/2 -> 82 | J62: =($I$32+$J$32)/2 -> 85.5 | K62: =($J$32+$K$32)/2 -> 90 | L62: =($K$32+$L$32)/2 -> 94.5 | M62: =($L$32+$M$32)/2 -> 97.5 | N62: =($M$32+$N$32)/2 -> 100 | O62: =($N$32+$O$32)/2 -> 102 | P62: =($O$32+$P$32)/2 -> 104 | Q62: =($P$32+$Q$32)/2 -> 106.5 | R62: =($Q$32+$R$32)/2 -> 109 | S62: =($R$32+$S$32)/2 -> 111 | T62: =($S$32+$T$32)/2 -> 113 | U62: =($T$32+$U$32)/2 -> 114
A63: Z från slip surface
A64: 0 | B64: 0 | C64: =OFFSET($G39,0,(COLUMN(B1)-COLUMN($B$1))*5) -> 22.34532086 | D64: 22.84532086 | E64: 23.69078878 | F64: 24.57829055 | G64: 25.49134277 | H64: 26.42296819 | I64: 27.36925989 | J64: 28.32770605 | K64: 29.29655036 | L64: 30.8 | M64: 29.86059121 | N64: 28.92118241 | O64: 27.98177362 | P64: 27.04236483 | Q64: 26.10295604 | R64: 25.16354724 | S64: 24.22413845 | T64: 23.28472966 | U64: 22.34532086 | V64: 15
A65: =IF(A64<Height/3,A64+1,"") -> 1 | B65: 0 | C65: 21.22805482 | D65: =OFFSET($G40,0,(COLUMN(cS)-COLUMN($B$1))*5) -> 21.70305482 | E65: 22.50624934 | F65: 23.34937602 | G65: 24.21677564 | H65: 25.10181978 | I65: 26.0007969 | J65: 26.91132074 | K65: 27.83172284 | L65: 29.26 | M65: 28.36756165 | N65: 27.47512329 | O65: 26.58268494 | P65: 25.69024659 | Q65: 24.79780823 | R65: 23.90536988 | S65: 23.01293153 | T65: 22.12049317 | U65: 21.22805482 | V65: 14.25
A66: 2 | B66: 0 | C66: 20.11078878 | D66: =OFFSET($G41,0,(COLUMN(C3)-COLUMN($B$1))*5) -> 20.56078878 | E66: =OFFSET($G41,0,(COLUMN(D3)-COLUMN($B$1))*5) -> 21.3217099 | F66: =OFFSET($G41,0,(COLUMN(#REF!)-COLUMN($B$1))*5) ->  | G66: =OFFSET($G41,0,(COLUMN(#REF!)-COLUMN($B$1))*5) ->  | H66: =OFFSET($G41,0,(COLUMN(#REF!)-COLUMN($B$1))*5) ->  | I66: =OFFSET($G41,0,(COLUMN(#REF!)-COLUMN($B$1))*5) ->  | J66: 25.49493544 | K66: 26.36689532 | L66: 27.72 | M66: 26.87453209 | N66: 26.02906417 | O66: 25.18359626 | P66: 24.33812835 | Q66: 23.49266043 | R66: 22.64719252 | S66: 21.8017246 | T66: 20.95625669 | U66: 20.11078878 | V66: 13.5
A67: 3 | B67: 0 | C67: 18.99352273 | D67: =OFFSET($G42,0,(COLUMN(c_peak)-COLUMN($B$1))*5) -> 19.41852273 | E67: =OFFSET($G42,0,(COLUMN(D4)-COLUMN($B$1))*5) -> 20.13717046 | F67: 20.89154697 | G67: 21.66764136 | H67: 22.45952297 | I67: 23.26387091 | J67: 24.07855014 | K67: 24.9020678 | L67: 26.18 | M67: 25.38150253 | N67: 24.58300505 | O67: 23.78450758 | P67: 22.9860101 | Q67: 22.18751263 | R67: 21.38901516 | S67: 20.59051768 | T67: 19.79202021 | U67: 18.99352273 | V67: 12.75
A68: 4 | B68: 0 | C68: 17.87625669 | D68: =OFFSET($G43,0,(COLUMN(cR)-COLUMN($B$1))*5) -> 18.27625669 | E68: 18.95263102 | F68: 19.66263244 | G68: 20.39307422 | H68: 21.13837456 | I68: 21.89540791 | J68: 22.66216484 | K68: 23.43724028 | L68: 24.64 | M68: 23.88847297 | N68: 23.13694593 | O68: 22.3854189 | P68: 21.63389186 | Q68: 20.88236483 | R68: 20.13083779 | S68: 19.37931076 | T68: 18.62778373 | U68: 17.87625669 | V68: 12
A69: 5 | B69: 0 | C69: 16.75899065 | D69: =OFFSET($G44,0,(COLUMN(tel)-COLUMN($B$1))*5) -> 17.13399065 | E69: 17.76809158 | F69: 18.43371791 | G69: 19.11850708 | H69: 19.81722615 | I69: 20.52694492 | J69: 21.24577953 | K69: 21.97241277 | L69: 23.1 | M69: 22.39544341 | N69: 21.69088681 | O69: 20.98633022 | P69: 20.28177362 | Q69: 19.57721703 | R69: 18.87266043 | S69: 18.16810384 | T69: 17.46354724 | U69: 16.75899065 | V69: 11.25
A70: 6 | B70: 0 | C70: 15.6417246 | D70: =OFFSET($G45,0,(COLUMN(gel)-COLUMN($B$1))*5) -> 15.9917246 | E70: 16.58355214 | F70: 17.20480339 | G70: 17.84393994 | H70: 18.49607774 | I70: 19.15848193 | J70: 19.82939423 | K70: 20.50758525 | L70: 21.56 | M70: 20.90241384 | N70: 20.24482769 | O70: 19.58724153 | P70: 18.92965538 | Q70: 18.27206922 | R70: 17.61448307 | S70: 16.95689691 | T70: 16.29931076 | U70: 15.6417246 | V70: 10.5
A71: 7 | B71: 0 | C71: 14.89315636 | D71: =OFFSET($G46,0,(COLUMN(g_f)-COLUMN($B$1))*5) -> 15.22640636 | E71: 15.78991072 | F71: 16.38143065 | G71: 16.98997996 | H71: 17.6109083 | I71: 18.24161172 | J71: 18.88041608 | K71: 19.52615081 | L71: 20.5282 | M71: 19.90208404 | N71: 19.27596808 | O71: 18.64985212 | P71: 18.02373616 | Q71: 17.3976202 | R71: 16.77150424 | S71: 16.14538828 | T71: 15.51927232 | U71: 14.89315636 | V71: 9.9975
A75: Dt
C76: Stage I | L76: Stage II
B77: start value | C77: Dx1 | D77: Dx2 | E77: Dx3 | F77: Dx4 | G77: Dx5 | H77: Dx6 | I77: Dx7 | J77: Dx8 | K77: Dx9 | L77: Dx10 | M77: Dx11 | N77: Dx12 | O77: Dx13 | P77: Dx14 | Q77: Dx15 | R77: Dx16 | S77: Dx17 | T77: Dx18 | U77: Dx19 | V77: Dx20 | W77: SDx
A78: Distance from X=0 | B78: 0 | C78: =($B$32+$C$32)/2 -> 18 | D78: =($C$32+$D$32)/2 -> 44.5 | E78: =($D$32+$E$32)/2 -> 58 | F78: =($E$32+$F$32)/2 -> 66.5 | G78: =($F$32+$G$32)/2 -> 72.5 | H78: =($G$32+$H$32)/2 -> 77.5 | I78: =($H$32+$I$32)/2 -> 82 | J78: =($I$32+$J$32)/2 -> 85.5 | K78: =($J$32+$K$32)/2 -> 90 | L78: =($K$32+$L$32)/2 -> 94.5 | M78: =($L$32+$M$32)/2 -> 97.5 | N78: =($M$32+$N$32)/2 -> 100 | O78: =($N$32+$O$32)/2 -> 102 | P78: =($O$32+$P$32)/2 -> 104 | Q78: =($P$32+$Q$32)/2 -> 106.5 | R78: =($Q$32+$R$32)/2 -> 109 | S78: =($R$32+$S$32)/2 -> 111 | T78: =($S$32+$T$32)/2 -> 113 | U78: =($T$32+$U$32)/2 -> 114
A79: Z från slip surface
A80: 0 | B80: 0 | C80: =OFFSET($H39,0,(COLUMN(B$1)-COLUMN($B$1))*5) -> 0.5 | D80: 0.8454679136 | E80: 0.8875017744 | F80: 0.9130522229 | G80: 0.9316254193 | H80: 0.9462916994 | I80: 0.9584461514 | J80: 0.9688443102 | K80: 1.502449645 | L80: -0.9394087929 | M80: -0.9394087929 | N80: -0.9394087929 | O80: -0.9394087929 | P80: -0.9394087929 | Q80: -0.9394087929 | R80: -0.9394087929 | S80: -0.9394087929 | T80: -0.9394087929 | U80: -7.345320864 | V80: 0
A81: =IF(A80<Height/3,A80+1,"") -> 1 | B81: 0 | C81: 0.475 | D81: 0.8031945179 | E81: 0.8431266857 | F81: 0.8673996118 | G81: 0.8850441483 | H81: 0.8989771145 | I81: 0.9105238438 | J81: 0.9204020947 | K81: 1.427327162 | L81: -0.8924383532 | M81: -0.8924383532 | N81: -0.8924383532 | O81: -0.8924383532 | P81: -0.8924383532 | Q81: -0.8924383532 | R81: -0.8924383532 | S81: -0.8924383532 | T81: -0.8924383532 | U81: -6.978054821 | V81: 0
A82: 2 | B82: 0 | C82: 0.45 | D82: 0.7609211222 | E82: 0.7987515969 | F82: 0.8217470006 | G82: 0.8384628774 | H82: 0.8516625295 | I82: 0.8626015363 | J82: 0.8719598792 | K82: 1.35220468 | L82: -0.8454679136 | M82: -0.8454679136 | N82: -0.8454679136 | O82: -0.8454679136 | P82: -0.8454679136 | Q82: -0.8454679136 | R82: -0.8454679136 | S82: -0.8454679136 | T82: -0.8454679136 | U82: -6.610788778 | V82: 0
A83: 3 | B83: 0 | C83: 0.425 | D83: 0.7186477266 | E83: 0.7543765082 | F83: 0.7760943895 | G83: 0.7918816064 | H83: 0.8043479445 | I83: 0.8146792287 | J83: 0.8235176637 | K83: 1.277082198 | L83: -0.798497474 | M83: -0.798497474 | N83: -0.798497474 | O83: -0.798497474 | P83: -0.798497474 | Q83: -0.798497474 | R83: -0.798497474 | S83: -0.798497474 | T83: -0.798497474 | U83: -6.243522734 | V83: 0
A84: 4 | B84: 0 | C84: 0.4 | D84: 0.6763743309 | E84: 0.7100014195 | F84: 0.7304417783 | G84: 0.7453003354 | H84: 0.7570333595 | I84: 0.7667569211 | J84: 0.7750754482 | K84: 1.201959716 | L84: -0.7515270343 | M84: -0.7515270343 | N84: -0.7515270343 | O84: -0.7515270343 | P84: -0.7515270343 | Q84: -0.7515270343 | R84: -0.7515270343 | S84: -0.7515270343 | T84: -0.7515270343 | U84: -5.876256691 | V84: 0
A85: 5 | B85: 0 | C85: 0.375 | D85: 0.6341009352 | E85: 0.6656263308 | F85: 0.6847891672 | G85: 0.6987190645 | H85: 0.7097187746 | I85: 0.7188346136 | J85: 0.7266332327 | K85: 1.126837234 | L85: -0.7045565947 | M85: -0.7045565947 | N85: -0.7045565947 | O85: -0.7045565947 | P85: -0.7045565947 | Q85: -0.7045565947 | R85: -0.7045565947 | S85: -0.7045565947 | T85: -0.7045565947 | U85: -5.508990648 | V85: 0
A86: 6 | B86: 0 | C86: 0.35 | D86: 0.5918275395 | E86: 0.6212512421 | F86: 0.639136556 | G86: 0.6521377935 | H86: 0.6624041896 | I86: 0.670912306 | J86: 0.6781910172 | K86: 1.051714751 | L86: -0.657586155 | M86: -0.657586155 | N86: -0.657586155 | O86: -0.657586155 | P86: -0.657586155 | Q86: -0.657586155 | R86: -0.657586155 | S86: -0.657586155 | T86: -0.657586155 | U86: -5.141724605 | V86: 0
A87: 7 | B87: 0 | C87: 0.33325 | D87: 0.5635043644 | E87: 0.5915199326 | F87: 0.6085493066 | G87: 0.620928342 | H87: 0.6307034177 | I87: 0.6388043599 | J87: 0.6457347328 | K87: 1.001382688 | L87: -0.6261159605 | M87: -0.6261159605 | N87: -0.6261159605 | O87: -0.6261159605 | P87: -0.6261159605 | Q87: -0.6261159605 | R87: -0.6261159605 | S87: -0.6261159605 | T87: -0.6261159605 | U87: -4.895656356 | V87: 0
A91: t+Dt
C92: Stage I | L92: Stage II
C93: Dx1 | D93: Dx2 | E93: Dx3 | F93: Dx4 | G93: Dx5 | H93: Dx6 | I93: Dx7 | J93: Dx8 | K93: Dx9 | L93: Dx10 | M93: Dx11 | N93: Dx12 | O93: Dx13 | P93: Dx14 | Q93: Dx15 | R93: Dx16 | S93: Dx17 | T93: Dx18 | U93: Dx19 | V93: Dx20 | W93: SDx
A94: Distance from x=0 | C94: =($B$32+$C$32)/2 -> 18 | D94: =($C$32+$D$32)/2 -> 44.5 | E94: =($D$32+$E$32)/2 -> 58 | F94: =($E$32+$F$32)/2 -> 66.5 | G94: =($F$32+$G$32)/2 -> 72.5 | H94: =($G$32+$H$32)/2 -> 77.5 | I94: =($H$32+$I$32)/2 -> 82 | J94: =($I$32+$J$32)/2 -> 85.5 | K94: =($J$32+$K$32)/2 -> 90 | L94: =($K$32+$L$32)/2 -> 94.5 | M94: =($L$32+$M$32)/2 -> 97.5 | N94: =($M$32+$N$32)/2 -> 100 | O94: =($N$32+$O$32)/2 -> 102 | P94: =($O$32+$P$32)/2 -> 104 | Q94: =($P$32+$Q$32)/2 -> 106.5 | R94: =($Q$32+$R$32)/2 -> 109 | S94: =($R$32+$S$32)/2 -> 111 | T94: =($S$32+$T$32)/2 -> 113 | U94: =($T$32+$U$32)/2 -> 114
A95: Z från slip surface
A96: 0 | C96: =OFFSET($I39,0,(COLUMN(B$1)-COLUMN($B$1))*5) -> 22.84532086 | D96: 23.69078878 | E96: 24.57829055 | F96: 25.49134277 | G96: 26.42296819 | H96: 27.36925989 | I96: 28.32770605 | J96: 29.29655036 | K96: 30.799 | L96: 29.86059121 | M96: 28.92118241 | N96: 27.98177362 | O96: 27.04236483 | P96: 26.10295604 | Q96: 25.16354724 | R96: 24.22413845 | S96: 23.28472966 | T96: 22.34532086 | U96: 15 | V96: 15
A97: =IF(A96<Height/3,A96+1,"") -> 1 | C97: 21.70305482 | D97: 22.50624934 | E97: 23.34937602 | F97: 24.21677564 | G97: 25.10181978 | H97: 26.0007969 | I97: 26.91132074 | J97: 27.83172284 | K97: 29.25905 | L97: 28.36756165 | M97: 27.47512329 | N97: 26.58268494 | O97: 25.69024659 | P97: 24.79780823 | Q97: 23.90536988 | R97: 23.01293153 | S97: 22.12049317 | T97: 21.22805482 | U97: 14.25 | V97: 14.25
A98: 2 | C98: 20.56078878 | D98: 21.3217099 | E98: 22.1204615 | F98: 22.9422085 | G98: 23.78067137 | H98: 24.6323339 | I98: 25.49493544 | J98: 26.36689532 | K98: 27.7191 | L98: 26.87453209 | M98: 26.02906417 | N98: 25.18359626 | O98: 24.33812835 | P98: 23.49266043 | Q98: 22.64719252 | R98: 21.8017246 | S98: 20.95625669 | T98: 20.11078878 | U98: 13.5 | V98: 13.5
A99: 3 | C99: 19.41852273 | D99: 20.13717046 | E99: 20.89154697 | F99: 21.66764136 | G99: 22.45952297 | H99: 23.26387091 | I99: 24.07855014 | J99: 24.9020678 | K99: 26.17915 | L99: 25.38150253 | M99: 24.58300505 | N99: 23.78450758 | O99: 22.9860101 | P99: 22.18751263 | Q99: 21.38901516 | R99: 20.59051768 | S99: 19.79202021 | T99: 18.99352273 | U99: 12.75 | V99: 12.75
A100: 4 | C100: 18.27625669 | D100: 18.95263102 | E100: 19.66263244 | F100: 20.39307422 | G100: 21.13837456 | H100: 21.89540791 | I100: 22.66216484 | J100: 23.43724028 | K100: 24.6392 | L100: 23.88847297 | M100: 23.13694593 | N100: 22.3854189 | O100: 21.63389186 | P100: 20.88236483 | Q100: 20.13083779 | R100: 19.37931076 | S100: 18.62778373 | T100: 17.87625669 | U100: 12 | V100: 12
A101: 5 | C101: 17.13399065 | D101: 17.76809158 | E101: 18.43371791 | F101: 19.11850708 | G101: 19.81722615 | H101: 20.52694492 | I101: 21.24577953 | J101: 21.97241277 | K101: 23.09925 | L101: 22.39544341 | M101: 21.69088681 | N101: 20.98633022 | O101: 20.28177362 | P101: 19.57721703 | Q101: 18.87266043 | R101: 18.16810384 | S101: 17.46354724 | T101: 16.75899065 | U101: 11.25 | V101: 11.25
A102: 6 | C102: 15.9917246 | D102: 16.58355214 | E102: 17.20480339 | F102: 17.84393994 | G102: 18.49607774 | H102: 19.15848193 | I102: 19.82939423 | J102: 20.50758525 | K102: 21.5593 | L102: 20.90241384 | M102: 20.24482769 | N102: 19.58724153 | O102: 18.92965538 | P102: 18.27206922 | Q102: 17.61448307 | R102: 16.95689691 | S102: 16.29931076 | T102: 15.6417246 | U102: 10.5 | V102: 10.5
A103: 7 | C103: 15.22640636 | D103: 15.78991072 | E103: 16.38143065 | F103: 16.98997996 | G103: 17.6109083 | H103: 18.24161172 | I103: 18.88041608 | J103: 19.52615081 | K103: 20.5275335 | L103: 19.90208404 | M103: 19.27596808 | N103: 18.64985212 | O103: 18.02373616 | P103: 17.3976202 | Q103: 16.77150424 | R103: 16.14538828 | S103: 15.51927232 | T103: 14.89315636 | U103: 9.9975 | V103: 9.9975
A105: =IF(#REF!<Height/3,#REF!+1,"") -> 
A106: g(t)
C107: Stage I | L107: Stage II
B108: start value | C108: Dx1 | D108: Dx2 | E108: Dx3 | F108: Dx4 | G108: Dx5 | H108: Dx6 | I108: Dx7 | J108: Dx8 | K108: Dx9 | L108: Dx10 | M108: Dx11 | N108: Dx12 | O108: Dx13 | P108: Dx14 | Q108: Dx15 | R108: Dx16 | S108: Dx17 | T108: Dx18 | U108: Dx19 | V108: Dx20 | W108: SDx
A109: Distance from X=0 | C109: =($B$32+$C$32)/2 -> 18 | D109: =($C$32+$D$32)/2 -> 44.5 | E109: =($D$32+$E$32)/2 -> 58 | F109: =($E$32+$F$32)/2 -> 66.5 | G109: =($F$32+$G$32)/2 -> 72.5 | H109: =($G$32+$H$32)/2 -> 77.5 | I109: =($H$32+$I$32)/2 -> 82 | J109: =($I$32+$J$32)/2 -> 85.5 | K109: =($J$32+$K$32)/2 -> 90 | L109: =($K$32+$L$32)/2 -> 94.5 | M109: =($L$32+$M$32)/2 -> 97.5 | N109: =($M$32+$N$32)/2 -> 100 | O109: =($N$32+$O$32)/2 -> 102 | P109: =($O$32+$P$32)/2 -> 104 | Q109: =($P$32+$Q$32)/2 -> 106.5 | R109: =($Q$32+$R$32)/2 -> 109 | S109: =($R$32+$S$32)/2 -> 111 | T109: =($S$32+$T$32)/2 -> 113 | U109: =($T$32+$U$32)/2 -> 114
A110: Z från slip surface
A111: 0 | B111: 0 | C111: =OFFSET($J39,0,(COLUMN(B$1)-COLUMN($B$1))*5) -> 0.0004418520693 | D111: =OFFSET($J39,0,(COLUMN(C$1)-COLUMN($B$1))*5) -> 0.001221865417 | E111: 0.002092392798 | F111: 0.003055595157 | G111: 0.004128305167 | H111: 0.005342715891 | I111: 0.006759415683 | J111: 0.008511863575 | K111: 0.01455850452 | L111: 0.01410054512 | M111: 0.01348251301 | N111: 0.01286448091 | O111: 0.01224644881 | P111: 0.01162841671 | Q111: 0.01101038461 | R111: 0.01039235251 | S111: 0.009774320411 | T111: 0.009156288311 | U111: 0.004323840374 | V111: 0.004323840374
A112: =IF(A111<Height/3,A111+1,"") -> 1 | B112: 0 | C112: =OFFSET($J40,0,(COLUMN(B$1)-COLUMN($B$1))*5) -> 0.000415139726 | D112: 0.001144929481 | E112: 0.001954098997 | F112: 0.002841609607 | G112: 0.003818112083 | H112: 0.004904120219 | I112: 0.006135358565 | J112: 0.007578805766 | K112: 0.01064177039 | L112: 0.01004290656 | M112: 0.009441322416 | N112: 0.008839738276 | O112: 0.008238154135 | P112: 0.007636569995 | Q112: 0.007034985854 | R112: 0.006433401714 | S112: 0.005831817573 | T112: 0.005230233433 | U112: 0.0005263935581 | V112: 0.0005263935581
A113: 2 | B113: 0 | C113: 0.0003894818628 | D113: 0.001071573414 | E113: 0.001823484901 | F113: 0.002641998152 | G113: 0.003533583773 | H113: 0.004511421124 | I113: 0.00559742405 | J113: 0.006828656218 | K113: 0.009179880339 | L113: 0.008597419859 | M113: 0.008013113931 | N113: 0.007428808002 | O113: 0.006844502073 | P113: 0.006260196145 | Q113: 0.005675890216 | R113: 0.005091584287 | S113: 0.004507278359 | T113: 0.00392297243 | U113: -0.0006457675704 | V113: -0.0006457675704
A114: 3 | B114: 0 | C114: 0.0003647425254 | D114: 0.001001308804 | E114: 0.001699411057 | F114: 0.00245437481 | G114: 0.003269807289 | H114: 0.004154130276 | I114: 0.005121084114 | J114: 0.006192385307 | K114: 0.008127888087 | L114: 0.007563196586 | M114: 0.006997063612 | N114: 0.006430930638 | O114: 0.005864797664 | P114: 0.005298664691 | Q114: 0.004732531717 | R114: 0.004166398743 | S114: 0.003600265769 | T114: 0.003034132795 | U114: -0.001392511256 | V114: -0.001392511256
A115: 4 | B115: 0 | C115: 0.0003408023723 | D115: 0.000933716554 | E115: 0.001580928418 | F115: 0.002276828953 | G115: 0.003023052821 | H115: 0.003824864731 | I115: 0.004690947472 | J115: 0.005634458388 | K115: 0.007280701222 | L115: 0.006734897757 | M115: 0.006187903829 | N115: 0.005640909901 | O115: 0.005093915973 | P115: 0.004546922045 | Q115: 0.003999928117 | R115: 0.003452934188 | S115: 0.00290594026 | T115: 0.002358946332 | U115: -0.001918047819 | V115: -0.001918047819
A116: 5 | B116: 0 | C116: 0.0003175555289 | D116: 0.000868432712 | E116: 0.001467234847 | F116: 0.002107800539 | G116: 0.00279040864 | H116: 0.00351819781 | I116: 0.004296621172 | J116: 0.005133782932 | K116: 0.006559687112 | L116: 0.006033889248 | M116: 0.005507079598 | N116: 0.004980269947 | O116: 0.004453460297 | P116: 0.003926650647 | Q116: 0.003399840996 | R116: 0.002873031346 | S116: 0.002346221696 | T116: 0.001819412045 | U116: -0.002299759443 | V116: -0.002299759443
A117: 6 | B117: 0 | C117: 0.0002949070479 | D117: 0.0008051374251 | E117: 0.001357642798 | F117: 0.001945993008 | G117: 0.002569546447 | H117: 0.00322999973 | I117: 0.003930698774 | J117: 0.00467664355 | K117: 0.005924876461 | L117: 0.00542025843 | M117: 0.004914766317 | N117: 0.004409274204 | O117: 0.003903782092 | P117: 0.003398289979 | Q117: 0.002892797866 | R117: 0.002387305754 | S117: 0.001881813641 | T117: 0.001376321529 | U117: -0.002576166238 | V117: -0.002576166238
A118: 7 | B118: 0 | C118: 0.0002800241398 | D118: 0.0007636991962 | E118: 0.001286210145 | F118: 0.001841069393 | G118: 0.002427199233 | H118: 0.003045600129 | I118: 0.003698623464 | J118: 0.004389861957 | K118: 0.005535653267 | L118: 0.005045923217 | M118: 0.004555396289 | N118: 0.004064869361 | O118: 0.003574342433 | P118: 0.003083815505 | Q118: 0.002593288578 | R118: 0.00210276165 | S118: 0.001612234722 | T118: 0.001121707794 | U118: -0.002713765862 | V118: -0.002713765862
A121: d (t)
C122: Stage I | L122: Stage II
B123: start value | C123: Dx1 | D123: Dx2 | E123: Dx3 | F123: Dx4 | G123: Dx5 | H123: Dx6 | I123: Dx7 | J123: Dx8 | K123: Dx9 | L123: Dx10 | M123: Dx11 | N123: Dx12 | O123: Dx13 | P123: Dx14 | Q123: Dx15 | R123: Dx16 | S123: Dx17 | T123: Dx18 | U123: Dx19 | V123: Dx20 | W123: SDx
A124: Distance from X=0 | C124: =($B$32+$C$32)/2 -> 18 | D124: =($C$32+$D$32)/2 -> 44.5 | E124: =($D$32+$E$32)/2 -> 58 | F124: =($E$32+$F$32)/2 -> 66.5 | G124: =($F$32+$G$32)/2 -> 72.5 | H124: =($G$32+$H$32)/2 -> 77.5 | I124: =($H$32+$I$32)/2 -> 82 | J124: =($I$32+$J$32)/2 -> 85.5 | K124: =($J$32+$K$32)/2 -> 90 | L124: =($K$32+$L$32)/2 -> 94.5 | M124: =($L$32+$M$32)/2 -> 97.5 | N124: =($M$32+$N$32)/2 -> 100 | O124: =(N14+O14)/2 -> 0 | P124: =($O$32+$P$32)/2 -> 104 | Q124: =($P$32+$Q$32)/2 -> 106.5 | R124: =($Q$32+$R$32)/2 -> 109 | S124: =($R$32+$S$32)/2 -> 111 | T124: =($S$32+$T$32)/2 -> 113 | U124: =($T$32+$U$32)/2 -> 114
A125: Z från slip surface
A126: 0 | B126: 0 | C126: =OFFSET($K39,0,(COLUMN(B$1)-COLUMN($B$1))*5) -> 0 | D126: 0 | E126: 0 | F126: 0 | G126: 0 | H126: 0 | I126: 0 | J126: 0 | K126: 0 | L126: 0 | M126: 0 | N126: 0 | O126: 0 | P126: 0 | Q126: 0 | R126: 0 | S126: 0 | T126: 0 | U126: 0 | V126: 0
A127: =IF(A126<Height/3,A126+1,"") -> 1 | B127: 0 | C127: 0.0004284958977 | D127: 0.001183397449 | E127: 0.002023245897 | F127: 0.002948602382 | G127: 0.003973208625 | H127: 0.005123418055 | I127: 0.006447387124 | J127: 0.00804533467 | K127: 0.01260013745 | L127: 0.01207172584 | M127: 0.01146191772 | N127: 0.01085210959 | O127: 0.01024230147 | P127: 0.009632493354 | Q127: 0.009022685233 | R127: 0.008412877113 | S127: 0.007803068992 | T127: 0.007193260872 | U127: 0.002425116966 | V127: 0.002425116966
A128: 2 | B128: 0 | C128: 0.0004023107944 | D128: 0.001108251447 | E128: 0.001888791949 | F128: 0.00274180388 | G128: 0.003675847928 | H128: 0.004707770671 | I128: 0.005866391308 | J128: 0.007203730992 | K128: 0.009910825365 | L128: 0.009320163208 | M128: 0.008727218173 | N128: 0.008134273139 | O128: 0.007541328104 | P128: 0.00694838307 | Q128: 0.006355438035 | R128: 0.005762493 | S128: 0.005169547966 | T128: 0.004576602931 | U128: -5.968700614e-05 | V128: -5.968700614e-05
A129: 3 | B129: 0 | C129: 0.0003771121941 | D129: 0.001036441109 | E129: 0.001761447979 | F129: 0.002548186481 | G129: 0.003401695531 | H129: 0.0043327757 | I129: 0.005359254082 | J129: 0.006510520762 | K129: 0.008653884213 | L129: 0.008080308223 | M129: 0.007505088771 | N129: 0.00692986932 | O129: 0.006354649869 | P129: 0.005779430418 | Q129: 0.005204210966 | R129: 0.004628991515 | S129: 0.004053772064 | T129: 0.003478552612 | U129: -0.001019139413 | V129: -0.001019139413
A130: 4 | B130: 0 | C130: 0.0003527724488 | D130: 0.0009675126789 | E130: 0.001640169738 | F130: 0.002365601881 | G130: 0.003146430055 | H130: 0.003989497504 | I130: 0.004906015793 | J130: 0.005913421848 | K130: 0.007704294655 | L130: 0.007149047172 | M130: 0.006592483721 | N130: 0.00603592027 | O130: 0.005479356819 | P130: 0.004922793368 | Q130: 0.004366229917 | R130: 0.003809666466 | S130: 0.003253103015 | T130: 0.002696539564 | U130: -0.001655279538 | V130: -0.001655279538
A131: 5 | B131: 0 | C131: 0.0003291789506 | D131: 0.000901074633 | E131: 0.001524081633 | F131: 0.002192314746 | G131: 0.002906730731 | H131: 0.003671531271 | I131: 0.004493784322 | J131: 0.00538412066 | K131: 0.006920194167 | L131: 0.006384393503 | M131: 0.005847491713 | N131: 0.005310589924 | O131: 0.004773688135 | P131: 0.004236786346 | Q131: 0.003699884556 | R131: 0.003162982767 | S131: 0.002626080978 | T131: 0.002089179189 | U131: -0.002108903631 | V131: -0.002108903631
A132: 6 | B132: 0 | C132: 0.0003062312884 | D132: 0.0008367850686 | E132: 0.001412438822 | F132: 0.002026896774 | G132: 0.002679977544 | H132: 0.00337409877 | I132: 0.004113659973 | J132: 0.004905213241 | K132: 0.006242281787 | L132: 0.005727073839 | M132: 0.005210922957 | N132: 0.004694772076 | O132: 0.004178621194 | P132: 0.003662470313 | Q132: 0.003146319431 | R132: 0.00263016855 | S132: 0.002114017668 | T132: 0.001597866787 | U132: -0.00243796284 | V132: -0.00243796284
A133: 7 | B133: 0 | C133: 0.0001926019479 | D133: 0.0005255602681 | E133: 0.0008856907358 | F133: 0.001268665904 | G133: 0.001673909803 | H133: 0.002102325953 | I133: 0.00255582295 | J133: 0.003037279345 | K133: 0.003839277459 | L133: 0.003506170852 | M133: 0.003172504473 | N133: 0.002838838094 | O133: 0.002505171716 | P133: 0.002171505337 | Q133: 0.001837838959 | R133: 0.00150417258 | S133: 0.001170506202 | T133: 0.0008368398231 | U133: -0.001772127253 | V133: -0.001772127253
A136: Summary
C137: Stage I | L137: Stage II
B138: start value | C138: Dx1 | D138: Dx2 | E138: Dx3 | F138: Dx4 | G138: Dx5 | H138: Dx6 | I138: Dx7 | J138: Dx8 | K138: Dx9 | L138: Dx10 | M138: Dx11 | N138: Dx12 | O138: Dx13 | P138: Dx14 | Q138: Dx15 | R138: Dx16 | S138: Dx17 | T138: Dx18 | U138: Dx19 | V138: Dx20
A139: Distance from foot of slope where x=0 | C139: =B32&" ("&ROUND($V$30,0)&")" -> 0 (152) | D139: 36 (152) | E139: 53 (152) | F139: 63 (152) | G139: 70 (152) | H139: 75 (152) | I139: 80 (152) | J139: 84 (152) | K139: 87 (152) | L139: 93 (152) | M139: 96 (152) | N139: 99 (152) | O139: 101 (152) | P139: 103 (152) | Q139: 105 (152) | R139: 108 (152) | S139: 110 (152) | T139: 112 (152) | U139: 114 (152) | V139: 114 (152)
B140: 0 | C140: =($B$32+$C$32)/2 -> 18 | D140: =($C$32+$D$32)/2 -> 44.5 | E140: =($D$32+$E$32)/2 -> 58 | F140: =($E$32+$F$32)/2 -> 66.5 | G140: =($F$32+$G$32)/2 -> 72.5 | H140: =($G$32+$H$32)/2 -> 77.5 | I140: =($H$32+$I$32)/2 -> 82 | J140: =($I$32+$J$32)/2 -> 85.5 | K140: =($J$32+$K$32)/2 -> 90 | L140: =($K$32+$L$32)/2 -> 94.5 | M140: =($L$32+$M$32)/2 -> 97.5 | N140: =($M$32+$N$32)/2 -> 100 | O140: =($N$32+$O$32)/2 -> 102 | P140: =($O$32+$P$32)/2 -> 104 | Q140: =($P$32+$Q$32)/2 -> 106.5 | R140: =($Q$32+$R$32)/2 -> 109 | S140: =($R$32+$S$32)/2 -> 111 | T140: =($S$32+$T$32)/2 -> 113 | U140: =($T$32+$U$32)/2 -> 114 | V140: =($T$32+V30)/2 -> 133.1018345
A141: D N | B141: 0 | C141: =OFFSET($J50,0,(COLUMN(B$1)-COLUMN($B$1))*5) -> 9.096456515 | D141: 15.72454655 | E141: 17.02126089 | F141: 18.1413565 | G141: 19.28619344 | H141: 20.57663236 | I141: 22.13586178 | J141: 24.2506487 | K141: 46.7922508 | L141: 22.37347164 | M141: 17.78592663 | N141: 14.37767926 | O141: 11.54432568 | P141: 9.077563662 | Q141: 6.853046178 | R141: 4.79044847 | S141: 2.836853361 | T141: 0.9391379683 | U141: -6.791130319e-12 | V141: -283.6030832 | W141: D N
A142: SD N | B142: 0 | C142: 9.096456515 | D142: 24.82100306 | E142: 41.84226395 | F142: 59.98362045 | G142: 79.26981389 | H142: 99.84644625 | I142: 121.982308 | J142: 146.2329567 | K142: 193.0252075 | L142: 215.3986792 | M142: 233.1846058 | N142: 247.5622851 | O142: 259.1066107 | P142: 268.1841744 | Q142: 275.0372206 | R142: 279.8276691 | S142: 282.6645224 | T142: 283.6036604 | U142: 283.6036604 | V142: 0.0005772127537 | W142: SD N
A143: d (N) | B143: 0 | C143: 0.002388440968 | D143: 0.004170949855 | E143: 0.004576409663 | F143: 0.004956408618 | G143: 0.00536580149 | H143: 0.005844296453 | I143: 0.006438904651 | J143: 0.00725816696 | K143: 0.01487253974 | L143: 0.008258116215 | M143: 0.008171724647 | N143: 0.00816859422 | O143: 0.008169312866 | P143: 0.008170758522 | Q143: 0.008170485895 | R143: 0.008167305733 | S143: 0.008171796266 | T143: 0.008170280356 | U143: 7.568557959e-15 | V143: 0.07901743304 | W143: d (N)
A144: S d (N) | B144: 0 | C144: 0.002388440968 | D144: 0.006559390823 | E144: 0.01113580049 | F144: 0.0160922091 | G144: 0.02145801059 | H144: 0.02730230705 | I144: 0.0337412117 | J144: 0.04099937866 | K144: 0.05587191839 | L144: 0.06413003461 | M144: 0.07230175926 | N144: 0.08047035348 | O144: 0.08863966634 | P144: 0.09681042486 | Q144: 0.1049809108 | R144: 0.1131482165 | S144: 0.1213200128 | T144: 0.1294902931 | U144: 0.1294902931 | V144: 0.2085077262 | W144: S d (N)
A145: S d (t) | B145: 0 | C145: 0.002388703522 | D145: 0.006559022654 | E145: 0.01113586675 | F145: 0.01609207205 | G145: 0.02145780022 | H145: 0.02730141792 | I145: 0.03374231555 | J145: 0.04099962152 | K145: 0.0558708951 | L145: 0.06413013317 | M145: 0.07230012861 | N145: 0.08047012405 | O145: 0.08864011948 | P145: 0.09681011492 | Q145: 0.1049801104 | R145: 0.1131501058 | S145: 0.1213201012 | T145: 0.1294900967 | U145: 0.1294902931 | V145: 0.2085077262 | W145: S d (t)
A146: =IF(A145<Height/3,A145+1,"") -> 
A149: End of Stage I | B149: N | C149: =K142 -> 193.0252075 | D149: kN/m3
A150: End of stageI | B150: x | C150: =K32 -> 93 | D150: m
A151: Critical Load | B151: Ncrit [kN/m3] | C151: =MAX(C142:V142) -> 283.6036604 | D151: kN/m3
A152: Critical lenght | B152: Lcrit [m] | C152: =T32 -> 114 | D152: m
B153: Linstab | C153: =U30 -> 38.6100333 | D153: m
B154: q | C154: =C151/Height -> 14.18018302 | D154: kN/m2
A155: Critical deformation | B155: dcrit | C155: =$T$145 -> 0.1294900967 | D155: m
A156: Momentarily def | B156: dinstab | C156: =$V$145 -> 0.2085077262 | D156: m
